Workbook

Sheet KAPAK
B6: Sermaye Piyasası Kurulu
B13: ULUSLARARASI EKONOMİK VE FİNANSAL GÖSTERGELER
B16: EYLÜL 2022
B17: Güncelleme Tarihi
B18: 2022-12-08
B24: ARAŞTIRMA DAİRESİ

Sheet ACIKLAMA
A4: Yayına Hazırlayan
A6: SPK Araştırma Dairesi
A10: Hazırlayanlar
A12: Dr. Oya CAN MUTAN
A13: Dr. Ayhan TOPCU
A17: Bilgi İçin
A19: Araştırma Dairesi
A20: E-posta: oya.canmutan@spk.gov.tr
A21: E-posta: ayhan.topcu@spk.gov.tr
A24: SERMAYE PİYASASI KURULU
A25: MUSTAFA KEMAL MAH. DUMLUPINAR BULV. NO:156 06530
A26: ANKARA-TÜRKİYE
A28: Tel: (312) 292 90 90
A29: Faks: (312) 292 90 00

Sheet KISALTMA ve KAYNAKLAR
A3: Kullanılan Kısaltmalar
A4: BIS | B4: : Bank for International Settlements (Uluslararası Takas Bankası)
A5: EFAMA | B5: : European Fund and Asset Management Association (Avrupa Fon ve Varlık Yönetim Birliği)
A6: EMBI | B6: : Emerging Markets Bond Index (Gelişmekte Olan Piyasalar Tahvil Endeksi)
A7: GSYH | B7: : Gayri Safi Yurtiçi Hasıla
A8: IMF | B8: : International Monetary Fund (Uluslararası Para Fonu)
A9: OECD | B9: : Organization for Economic Co-operation and Development (Ekonomik İşbirliği ve Kalkınma Örgütü)
A10: TÜİK | B10: : Türkiye İstatistik Kurumu
A11: WFE | B11: : World Federation of Exchanges (Dünya Borsalar Federasyonu)
A14: Yararlanılan Kaynaklar
A15: BIS | B15: : http://www.bis.org
A16: CEIC | B16: : https://www.ceicdata.com/en
A17: EFAMA | B17: : http://www.efama.org
A18: Fraser Institute | B18: : http://www.fraserinstitute.org
A19: IMF | B19: : http://imf.org
A20: OECD | B20: : http://www.oecd.org
A21: TÜİK | B21: : http://www.tuik.gov.tr
A22: WFE | B22: : http://www.world-exchanges.org
A23: World Bank Group | B23: : http://devdata.worldbank.org

Sheet ICINDEKILER
A1: İÇİNDEKİLER
A2: BÖLÜM I: ULUSLARARASI SERMAYE PİYASASI GÖSTERGELERİ
A3: I.1. BORSA PERFORMANSLARI
A4: I.2. BORSA ŞİRKETLERİNİN PİYASA KAPİTALİZASYONU
A5: I.3. BORSA ŞİRKETLERİNİN PİYASA KAPİTALİZASYONU/GSYH
A6: I.4. TOPLAM İŞLEM HACMİ
A7: I.5. TOPLAM İŞLEM HACMİ/GSYH
A8: I.6. BORSALARDA İŞLEM GÖREN ŞİRKET SAYILARI
A9: I.7. YATIRIM FONLARI NET AKTİF DEĞERİ
A10: I.8. YATIRIM FONLARI SAYISI
A11: BÖLÜM II: KÜRESEL FİNANS PİYASALARINA İLİŞKİN GÖSTERGELER
A12: II.1. DOĞRUDAN YABANCI YATIRIMLAR
A13: II.2. EKONOMİK ÖZGÜRLÜK ENDEKSİ
A14: BÖLÜM III: ULUSLARARASI MAKROEKONOMİK GÖSTERGELER
A15: III.1. GSYH
A16: III.2. KİŞİBAŞI GSYH
A17: III.3. BÜYÜME
A18: III.4. ENFLASYON
A19: III.5. TAHVİL STOKU
A20: III.6. TAHVİL STOKU/GSYH
A21: III.7. DIŞ BORÇ STOKU
A22: III.8. DIŞ TİCARET GÖSTERGELERİ
A23: III.9. CARİ İŞLEMLER DENGESİ
A24: III.10. İŞSİZLİK ORANI

Sheet BÖLÜMI
A12: BÖLÜM I: ULUSLARARASI SERMAYE PİYASASI GÖSTERGELERİ

Sheet I.1
A1: I.1. BORSA PERFORMANSLARI
A2: Borsalar | B2: Endeks Adı | C2: 2003/12 | D2: 2004/12 | E2: 2005/12 | F2: 2006/12 | G2: 2007/12 | H2: 2008/12 | I2: 2009/12 | J2: 2010/12 | K2: 2011/12 | L2: 2012/12 | M2: 2013/12 | N2: 2014/12 | O2: 2015/12 | P2: 2016/12 | Q2: 2017/12 | R2: 2018/12 | S2: 2019/12 | T2: 2020/12 | U2: 2021/12 | V2: 2022/09 | W2: % Değişim 2022/09 2021/12
T3: 2019/12 | U3: 2019/12
A4: Amerika
A5: Buse Merval | B5: MERV | C5: 1,071.95 | D5: 1,375.37 | E5: 1,543.31 | F5: 2,090.46 | G5: 2,151.73 | H5: 1,079.66 | I5: 2,320.73 | J5: 3,523.59 | K5: 2,462.63 | L5: 2,854.29 | M5: 5,391.03 | N5: 8,579.02 | O5: 11,675.18 | P5: 16,917.86 | Q5: 30,065.6 | R5: 30,292.5 | S5: 41,671.4 | T5: 51,226.5 | U5: 83,500.11 | V5: 139,115.09 | W5: =(V5-U5)/U5 -> 66.6%
A6: Lima SE | B6: S&P/BVL Peru General | C6: 2,435.04 | D6: 3,710.39 | E6: 4,802.25 | F6: 12,884.20 | G6: 17,524.79 | H6: 7,048.67 | I6: 14,167.20 | J6: 23,374.57 | K6: 19,473.31 | L6: 20,629.35 | M6: 15,753.65 | N6: 14,794.32 | O6: 9,848.59 | P6: 15,566.96 | Q6: 19,974.38 | R6: 19,350.40 | S6: 20,526.13 | T6: 20,822.15 | U6: 21,082.90 | V6: 19,448.06 | W6: =(V6-U6)/U6 -> -7.8%
A7: Mexican Exchange | B7: S&P/BMV IPC COMPMX | C7: - | D7: - | E7: - | F7: 200.61 | G7: 226.94 | H7: 168.63 | I7: 245.00 | J7: 296.07 | K7: 288.11 | L7: 345.53 | M7: 346.05 | N7: 351.19 | O7: 353.18 | P7: 373.43 | Q7: 403.47 | R7: 342.33 | S7: 357.57 | T7: 367.36 | U7: 443.52 | V7: 372.68 | W7: =(V7-U7)/U7 -> -16.0%
A8: Nasdaq | B8: Composite | C8: 2,003.37 | D8: 2,175.44 | E8: 2,205.32 | F8: 2,415.29 | G8: 2,652.28 | H8: 1,577.03 | I8: 2,269.15 | J8: 2,652.87 | K8: 2,605.15 | L8: 3,019.51 | M8: 4,176.59 | N8: 4,736.05 | O8: 5,007.41 | P8: 5,383.12 | Q8: 6,903.39 | R8: 6,635.28 | S8: 8,972.60 | T8: 12,888.28 | U8: 15,644.97 | V8: 10,575.62 | W8: -32.4%
A9: NYSE | B9: Composite | C9: 6,440.30 | D9: 7,250.06 | E9: 7,753.95 | F9: 9,139.02 | G9: 9,740.32 | H9: 5,757.05 | I9: 7,184.96 | J9: 7,964.02 | K9: 7,477.03 | L9: 8,443.51 | M9: 10,400.33 | N9: 10,839.24 | O9: 10,143.42 | P9: 11,056.89 | Q9: 12,808.84 | R9: 11,374.39 | S9: 13,913.03 | T9: 14,524.80 | U9: 17,164.13 | V9: 13,472.18 | W9: -21.5%
A10: Santiago SE | B10: S&P/CLX IGPA (CLP) | C10: 7,336.67 | D10: 8,962.56 | E10: 9,206.10 | F10: 12,373.68 | G10: 14,076.25 | H10: 11,324.07 | I10: 16,630.91 | J10: 22,979.22 | K10: 20,129.80 | L10: 21,070.28 | M10: 18,227.05 | N10: 18,870.40 | O10: 18,151.50 | P10: 20,734.17 | Q10: 27,980.78 | R10: 25,949.84 | S10: 23,393.53 | T10: 21,007.46 | U10: 21,537.62 | V10: 27,680.69 | W10: 28.5%
A11: Brasil Bolsa Balcão | B11: bovespa | C11: 22,236.39 | D11: 26,196.25 | E11: 33,455.94 | F11: 44,473.71 | G11: 63,886.10 | H11: 37,550.31 | I11: 68,588.41 | J11: 69,304.81 | K11: 56,754.08 | L11: 60,952.08 | M11: 51,507.16 | N11: 50,007.41 | O11: 43,349.96 | P11: 60,227.29 | Q11: 76,402.08 | R11: 87,887.26 | S11: 115,645.34 | T11: 119,017.24 | U11: 104,822.44 | V11: 110,036.79 | W11: 5.0%
A12: TMX Group | B12: GSPTSE | C12: 8,220.89 | D12: 9,246.65 | E12: 11,272.26 | F12: 12,908.39 | G12: 13,833.06 | H12: 8,987.70 | I12: 11,746.11 | J12: 13,443.22 | K12: 11,955.09 | L12: 12,433.53 | M12: 13,621.55 | N12: 14,632.44 | O12: 13,009.95 | P12: 15,287.59 | Q12: 16,209.13 | R12: 14,322.86 | S12: 17,063.43 | T12: 17,433.36 | U12: 21,222.84 | V12: 18,444.22 | W12: -13.1%
A13: Asya - Pasifik
A14: BSE India | B14: NIFTY 500 Index | C14: 1,531.35 | D14: 1,804.90 | E14: 2,459.20 | F14: 3,295.05 | G14: 5,354.70 | H14: 2,295.75 | I14: 4,329.10 | J14: 4,940.95 | K14: 3,597.75 | L14: 4,743.45 | M14: 4,914.85 | N14: 6,773.65 | O14: 6,724.75 | P14: 6,982.80 | Q14: 9,490.65 | R14: 9,170.00 | S14: 9,872.55 | T14: 11,518.30 | U14: 14,996.20 | V14: 14,829.35 | W14: -1.1%
A15: Bursa Malaysia | B15: KLSE | C15: 793.94 | D15: 907.43 | E15: 899.79 | F15: 1,096.24 | G15: 1,445.03 | H15: 876.75 | I15: 1,272.78 | J15: 1,518.91 | K15: 1,530.73 | L15: 1,688.95 | M15: 1,866.96 | N15: 1,761.25 | O15: 1,692.51 | P15: 1,641.73 | Q15: 1,796.81 | R15: 1,690.58 | S15: 1,588.76 | T15: 1,627.21 | U15: 1,567.53 | V15: 1,394.63 | W15: -11.0%
A16: Colombo SE | B16: CSE All Share | C16: 1,062.10 | D16: 1,506.89 | E16: 1,922.21 | F16: 2,722.36 | G16: 2,540.99 | H16: 1,503.02 | I16: 3,385.55 | J16: 6,635.87 | K16: 6,074.42 | L16: 5,643.00 | M16: 5,912.78 | N16: 7,298.95 | O16: 6,894.50 | P16: 6,228.26 | Q16: 6,369.26 | R16: 6,052.37 | S16: 6,129.21 | T16: 6,774.22 | U16: 12,226.01 | V16: 9,931.07 | W16: -18.8%
A17: Hong Kong Exchanges | B17: Hang Seng Index | C17: 12,575.94 | D17: 14,230.14 | E17: 14,876.43 | F17: 19,964.72 | G17: 27,812.65 | H17: 14,387.48 | I17: 21,872.50 | J17: 23,035.45 | K17: 18,434.39 | L17: 22,656.92 | M17: 23,306.39 | N17: 23,605.04 | O17: 21,914.40 | P17: 22,000.56 | Q17: 29,919.15 | R17: 25,845.70 | S17: 28,189.75 | T17: 27,231.13 | U17: 23,397.67 | V17: 17,222.83 | W17: -26.4%
A18: Indonesia SE | B18: JKSE Index | C18: 691.90 | D18: 1,000.23 | E18: 1,162.64 | F18: 1,805.52 | G18: 2,745.83 | H18: 1,355.41 | I18: 2,534.36 | J18: 3,703.51 | K18: 3,821.99 | L18: 4,316.69 | M18: 4,274.18 | N18: 5,226.95 | O18: 4,593.01 | P18: 5,296.71 | Q18: 6,355.65 | R18: 6,194.50 | S18: 6,299.54 | T18: 5,979.07 | U18: 6,581.48 | V18: 7,040.80 | W18: 7.0%
A19: National Stock Exchange India | B19: S&P Sensex Index | C19: 5,838.96 | D19: 6,602.69 | E19: 9,397.93 | F19: 13,786.91 | G19: 20,286.99 | H19: 9,647.31 | I19: 17,464.81 | J19: 20,509.09 | K19: 15,454.92 | L19: 19,426.71 | M19: 21,170.68 | N19: 27,499.42 | O19: 26,117.54 | P19: 26,626.46 | Q19: 34,056.83 | R19: 36,068.33 | S19: 41,253.74 | T19: 47,751.33 | U19: 58,253.82 | V19: 57,426.92 | W19: -1.4%
A20: Philippine SE | B20: PSE Index (PSEi) | C20: 1,442.37 | D20: 1,822.83 | E20: 2,096.04 | F20: 2,982.54 | G20: 3,621.60 | H20: 1,872.85 | I20: 3,052.68 | J20: 4,201.14 | K20: 4,371.96 | L20: 5,812.73 | M20: 5,889.83 | N20: 7,230.57 | O20: 6,952.08 | P20: 6,840.64 | Q20: 8,558.42 | R20: 7,466.02 | S20: 7,815.26 | T20: 7,139.71 | U20: 7,122.63 | V20: 5,741.07 | W20: -19.4%
A21: Shanghai SE | B21: SSE Composite Index | C21: 1,497.04 | D21: 1,266.50 | E21: 1,161.06 | F21: 2,675.47 | G21: 5,261.56 | H21: 1,820.81 | I21: 3,277.14 | J21: 2,808.08 | K21: 2,199.42 | L21: 2,269.13 | M21: 2,115.98 | N21: 3,234.68 | O21: 3,539.18 | P21: 3,103.64 | Q21: 3,307.17 | R21: 2,493.90 | S21: 3,050.12 | T21: 3,473.07 | U21: 3,639.78 | V21: 3,024.39 | W21: -16.9%
A22: Shenzhen SE | B22: SZSE Composite Index | C22: 378.63 | D22: 315.81 | E22: 278.74 | F22: 550.59 | G22: 1,447.02 | H22: 553.30 | I22: 1,201.34 | J22: 1,290.87 | K22: 866.65 | L22: 881.17 | M22: 1,057.67 | N22: 1,415.19 | O22: 2,308.91 | P22: 1,969.11 | Q22: 1,899.34 | R22: 1,267.87 | S22: 1,722.95 | T22: 2,329.37 | U22: 2,530.14 | V22: 1,912.00 | W22: -24.4%
A23: Thailand SE | B23: SET | C23: 772.15 | D23: 668.10 | E23: 713.73 | F23: 679.84 | G23: 858.10 | H23: 449.96 | I23: 734.54 | J23: 1,032.76 | K23: 1,025.32 | L23: 1,391.93 | M23: 1,298.71 | N23: 1,497.67 | O23: 1,288.02 | P23: 1,542.94 | Q23: 1,753.71 | R23: 1,563.88 | S23: 1,579.84 | T23: 1,449.35 | U23: 1,657.62 | V23: 1,589.51 | W23: -4.1%
A24: Japan Exchange Group - Tokyo | B24: TOPIX | C24: 1,043.69 | D24: 1,149.63 | E24: 1,649.76 | F24: 1,681.07 | G24: 1,475.68 | H24: 859.24 | I24: 907.59 | J24: 898.80 | K24: 728.61 | L24: 859.80 | M24: 1,302.29 | N24: 1,407.51 | O24: 1,547.30 | P24: 1,518.61 | Q24: 1,817.56 | R24: 1,494.09 | S24: 1,721.36 | T24: 1,804.68 | U24: 1,992.33 | V24: 1,835.94 | W24: -7.8%
A25: Avrupa - Afrika - Orta Doğu
A26: Athens Exchange | B26: ATG | C26: 2,263.58 | D26: 2,786.18 | E26: 3,663.90 | F26: 4,394.13 | G26: 5,178.83 | H26: 1,786.51 | I26: 2,196.16 | J26: 1,413.94 | K26: 680.42 | L26: 907.90 | M26: 1,162.68 | N26: 826.18 | O26: 631.35 | P26: 643.64 | Q26: 802.37 | R26: 613.30 | S26: 916.67 | T26: 808.99 | U26: 893.34 | V26: 792.90 | W26: -11.2%
A27: LSE Group Borsa Italiana | B27: FTSE MIB Index | C27: 26,887.00 | D27: 30,903.00 | E27: 35,704.00 | F27: 41,434.00 | G27: 38,554.00 | H27: 19,460.00 | I27: 23,248.39 | J27: 20,173.29 | K27: 15,089.74 | L27: 16,273.38 | M27: 18,967.71 | N27: 19,011.96 | O27: 21,418.37 | P27: 19,234.58 | Q27: 21,853.34 | R27: 18,324.03 | S27: 23,506.37 | T27: 22,232.90 | U27: 27,346.83 | V27: 20,648.85 | W27: -24.5%
A28: Budapest SE | B28: BUX | C28: 9,379.99 | D28: 14,742.57 | E28: 20,784.74 | F28: 24,844.32 | G28: 26,235.63 | H28: 12,241.69 | I28: 21,227.01 | J28: 21,327.07 | K28: 16,974.24 | L28: 18,173.20 | M28: 18,564.08 | N28: 16,634.00 | O28: 23,920.65 | P28: 32,003.05 | Q28: 39,377.31 | R28: 39,138.95 | S28: 46,082.82 | T28: 42,107.57 | U28: 50,720.71 | V28: 37,838.30 | W28: -25.4%
A29: Egyptian Exchange | B29: EGX 30 Index | C29: 1,155.53 | D29: 2,567.99 | E29: 6,324.70 | F29: 6,973.41 | G29: 10,549.74 | H29: 4,596.49 | I29: 6,208.77 | J29: 7,142.14 | K29: 3,622.35 | L29: 5,462.42 | M29: 6,782.84 | N29: 8,926.58 | O29: 7,006.01 | P29: 12,344.89 | Q29: 15,019.14 | R29: 13,035.77 | S29: 13,961.56 | T29: 10,845.26 | U29: 11,949.18 | V29: 9,827.46 | W29: -17.8%
A30: Deutsche Börse | B30: GDAXI | C30: 3,965.16 | D30: 4,256.08 | E30: 5,408.26 | F30: 6,596.92 | G30: 8,067.32 | H30: 4,810.20 | I30: 5,957.43 | J30: 6,914.19 | K30: 5,898.35 | L30: 7,612.39 | M30: 9,552.16 | N30: 9,805.55 | O30: 10,743.01 | P30: 11,481.06 | Q30: 12,917.64 | R30: 10,558.96 | S30: 13,249.01 | T30: 13,718.78 | U30: 15,884.86 | V30: 12,114.36 | W30: -23.7%
A31: Irish SE | B31: ISEQ Index | C31: 4,920.73 | D31: 6,197.83 | E31: 7,363.96 | F31: 9,408.12 | G31: 6,934.35 | H31: 2,343.27 | I31: 2,974.93 | J31: 2,885.10 | K31: 2,901.82 | L31: 3,396.67 | M31: 4,539.43 | N31: 5,224.56 | O31: 6,791.68 | P31: 6,517.24 | Q31: 7,038.28 | R31: 5,479.81 | S31: 7,183.41 | T31: 7,376.33 | U31: 8,444.52 | V31: 6,311.47 | W31: -25.3%
A32: Borsa Istanbul | B32: BIST 100 Index | C32: 186.25 | D32: 249.72 | E32: 397.78 | F32: 391.17 | G32: 555.38 | H32: 268.64 | I32: 528.25 | J32: 660.04 | K32: 512.67 | L32: 782.08 | M32: 678.02 | N32: 857.21 | O32: 717.27 | P32: 781.39 | Q32: 1,153.33 | R32: 912.70 | S32: 1,144.25 | T32: 1,476.72 | U32: 1,857.65 | V32: 3,179.99 | W32: 71.2%
A33: Luxembourg SE | B33: Luxx Index | C33: 1,018.88 | D33: 1,292.22 | E33: 1,636.98 | F33: 2,176.92 | G33: 2,419.28 | H33: 980.91 | I33: 1,371.47 | J33: 1,542.12 | K33: 1,135.10 | L33: 1,248.00 | M33: 1,448.94 | N33: 1,520.37 | O33: 1,390.72 | P33: 1,669.07 | Q33: 1,638.41 | R33: 1,316.94 | S33: 1,378.43 | T33: 1,345.60 | U33: 1,662.22 | V33: 1,236.09 | W33: -25.6%
A34: Tel Aviv SE | B34: TA35 Index | C34: 504.15 | D34: 617.94 | E34: 823.42 | F34: 926.30 | G34: 1,217.07 | H34: 654.85 | I34: 1,145.06 | J34: 1,326.44 | K34: 1,085.59 | L34: 1,185.60 | M34: 1,329.39 | N34: 1,464.99 | O34: 1,528.74 | P34: 1,470.78 | Q34: 1,509.78 | R34: 1,463.87 | S34: 1,683.29 | T34: 1,499.05 | U34: 1,978.06 | V34: 1,837.23 | W34: -7.1%
A35: Warsaw SE | B35: WIG Index | C35: 20,820.07 | D35: 26,636.19 | E35: 35,600.79 | F35: 50,411.82 | G35: 55,648.54 | H35: 27,228.64 | I35: 39,985.99 | J35: 47,489.91 | K35: 37,595.44 | L35: 47,460.59 | M35: 51,284.25 | N35: 51,416.08 | O35: 46,467.38 | P35: 51,754.03 | Q35: 63,746.20 | R35: 57,690.50 | S35: 57,832.88 | T35: 57,025.84 | U35: 69,296.26 | V35: 45,970.64 | W35: -33.7%
A36: Wiener Börse | B36: ATX | C36: 1,545.15 | D36: 2,431.38 | E36: 3,667.03 | F36: 4,463.47 | G36: 4,512.98 | H36: 1,750.83 | I36: 2,495.56 | J36: 2,904.47 | K36: 1,891.68 | L36: 2,401.21 | M36: 2,546.54 | N36: 2,160.08 | O36: 2,396.94 | P36: 2,618.43 | Q36: 3,420.14 | R36: 2,745.78 | S36: 3,186.94 | T36: 2,780.44 | U36: 3,861.06 | V36: 2,691.95 | W36: -30.3%
A37: Kaynak: Reuters
A38: Güncelleme Tarihi: 01.11.2022
A40: İÇİNDEKİLER SAYFASI

Sheet I.2
A1: I.2. BORSA ŞİRKETLERİNİN PİYASA KAPİTALİZASYONU (milyon dolar)
A3: Ülkeler | B3: 1996 | C3: 1997 | D3: 1998 | E3: 1999 | F3: 2000 | G3: 2001 | H3: 2002 | I3: 2003 | J3: 2004 | K3: 2005 | L3: 2006 | M3: 2007 | N3: 2008 | O3: 2009 | P3: 2010 | Q3: 2011 | R3: 2012 | S3: 2013 | T3: 2014 | U3: 2015 | V3: 2016 | W3: 2017 | X3: 2018 | Y3: 2019 | Z3: 2020 | AA3: 2021 | AB3: 2022/09
A5: Almanya | B5: 664,913 | C5: 825,233 | D5: 1,086,749 | E5: 1,432,167 | F5: 1,270,243 | G5: 1,071,749 | H5: 686,014 | I5: 1,079,026 | J5: 1,194,517 | K5: 1,221,106 | L5: 1,637,610 | M5: 2,105,198 | N5: 1,110,580 | O5: 1,292,355 | P5: 1,429,719 | Q5: 1,184,500 | R5: 1,486,315 | S5: 1,936,106 | T5: 1,738,539 | U5: 1,715,800 | V5: 1,732,270 | W5: 2,262,223 | X5: 1,755,173 | Y5: 2,098,174 | Z5: 2,284,109 | AA5: 2,503,046 | AB5: 1,540,549
A6: ABD | B6: 8,451,723 | C6: 10,730,627 | D6: 12,647,941 | E6: 16,732,963 | F6: 15,214,416 | G6: 13,826,485 | H6: 11,055,455 | I6: 14,266,023 | J6: 16,323,509 | K6: 17,437,691 | L6: 19,568,973 | M6: 19,922,280 | N6: 11,737,646 | O6: 15,077,286 | P6: 17,283,452 | Q6: 15,640,707 | R6: 18,668,333 | S6: 24,034,854 | T6: 26,330,589 | U6: 25,067,540 | V6: 27,352,201 | W6: 32,120,702 | X6: 30,436,313 | Y6: 36,329,852 | Z6: 40,719,661 | AA6: 52,243,997 | AB6: 16,591,117
A7: Arjantin | B7: 44,692 | C7: 59,252 | D7: 45,333 | E7: 55,848 | F7: 45,839 | G7: 33,384 | H7: 16,549 | I7: 34,995 | J7: 40,594 | K7: 47,590 | L7: 51,240 | M7: 57,070 | N7: 39,850 | O7: 45,745 | P7: 63,910 | Q7: 43,580 | R7: 34,255 | S7: 53,105 | T7: 60,142 | U7: 56,135 | V7: 63,882 | W7: 108,740 | X7: 45,986 | Y7: 39,394 | Z7: - | AA7: - | AB7: -
A8: Avusturya | B8: 33,629 | C8: 37,280 | D8: 35,544 | E8: 33,023 | F8: 29,935 | G8: 25,204 | H8: 33,578 | I8: 56,522 | J8: 87,776 | K8: 126,309 | L8: 199,121 | M8: 236,448 | N8: 76,289 | O8: 114,076 | P8: 126,032 | Q8: 85,270 | R8: 106,037 | S8: 117,671 | T8: 96,790 | U8: 96,079 | V8: 101,148 | W8: 150,646 | X8: 116,802 | Y8: 133,098 | Z8: 132,083 | AA8: 162,889 | AB8: 102,819
A9: Brezilya | B9: 216,906 | C9: 255,478 | D9: 160,886 | E9: 227,962 | F9: 226,152 | G9: 186,238 | H9: 121,640 | I9: 226,358 | J9: 330,347 | K9: 474,647 | L9: 710,247 | M9: 1,369,711 | N9: 591,966 | O9: 1,337,248 | P9: 1,545,566 | Q9: 1,228,936 | R9: 1,227,447 | S9: 1,020,455 | T9: 843,894 | U9: 496,194 | V9: 774,133 | W9: 954,715 | X9: 916,824 | Y9: 1,187,362 | Z9: 988,374 | AA9: - | AB9: -
A10: Çin** | B10: - | C10: - | D10: - | E10: - | F10: - | G10: - | H10: 463,091 | I10: 512,979 | J10: 447,720 | K10: 401,852 | L10: 1,145,455 | M10: 4,478,867 | N10: 1,778,784 | O10: 3,573,152 | P10: 4,027,840 | Q10: 3,412,108 | R10: 3,697,376 | S10: 3,949,143 | T10: 6,004,948 | U10: 8,188,019 | V10: 7,320,738 | W10: 8,711,267 | X10: 6,324,880 | Y10: 8,515,504 | Z10: 12,214,466 | AA10: 14,374,520 | AB10: 10,722,895
A11: Endonezya | B11: 90,857 | C11: 29,050 | D11: 22,078 | E11: 64,045 | F11: 26,813 | G11: 22,998 | H11: 30,067 | I11: 54,659 | J11: 73,251 | K11: 81,428 | L11: 138,886 | M11: 211,693 | N11: 98,760 | O11: 214,940 | P11: 360,388 | Q11: 390,107 | R11: 428,223 | S11: 346,674 | T11: 422,127 | U11: 353,271 | V11: 433,822 | W11: 520,687 | X11: 486,766 | Y11: 523,322 | Z11: - | AA11: 578,631 | AB11: -
A12: Filipinler | B12: 80,464 | C12: 31,211 | D12: 34,911 | E12: 41,536 | F12: 25,261 | G12: 20,606 | H12: 18,198 | I12: 23,190 | J12: 28,602 | K12: 39,818 | L12: 68,270 | M12: 102,853 | N12: 52,031 | O12: 86,349 | P12: 157,321 | Q12: 165,066 | R12: 229,317 | S12: 217,320 | T12: 261,841 | U12: 238,820 | V12: 239,882 | W12: 290,401 | X12: 258,156 | Y12: 275,302 | Z12: 272,790 | AA12: 285,423 | AB12: 204,243
A13: Hindistan | B13: - | C13: - | D13: - | E13: - | F13: - | G13: - | H13: 130,390 | I13: 278,663 | J13: 386,321 | K13: 553,074 | L13: 818,879 | M13: 1,819,101 | N13: 647,205 | O13: 1,306,520 | P13: 1,631,830 | Q13: 1,007,183 | R13: 1,263,335 | S13: 1,138,834 | T13: 1,558,300 | U13: 1,516,217 | V13: 1,561,270 | W13: 2,351,462 | X13: 2,056,337 | Y13: 2,162,703 | Z13: 2,552,464 | AA13: 3,548,018 | AB13: 3,309,715
A14: İrlanda | B14: 34,738 | C14: 49,371 | D14: 66,596 | E14: 68,773 | F14: 81,883 | G14: 75,298 | H14: 59,938 | I14: 85,071 | J14: 114,086 | K14: 114,086 | L14: 163,269 | M14: 143,905 | N14: 49,490 | O14: 61,291 | P14: 60,368 | Q14: 108,393 | R14: 108,989 | S14: 170,123 | T14: 143,466 | U14: 128,009 | V14: 120,962 | W14: 146,554 | X14: 110,154 | Y14: - | Z14: - | AA14: - | AB14: -
A15: İspanya | B15: 241,028 | C15: 290,355 | D15: 399,848 | E15: 431,649 | F15: 504,222 | G15: 468,203 | H15: 461,560 | I15: 726,243 | J15: 940,673 | K15: 959,910 | L15: 1,322,915 | M15: 1,781,133 | N15: 948,352 | O15: 1,297,227 | P15: 1,171,625 | Q15: 1,030,988 | R15: 995,088 | S15: 1,116,561 | T15: 992,914 | U15: 787,192 | V15: 711,214 | W15: 888,838 | X15: 723,691 | Y15: 797,286 | Z15: 759,175 | AA15: 775,650 | AB15: 559,644
A16: İsrail | B16: 34,463 | C16: 44,371 | D16: 39,230 | E16: 63,472 | F16: 65,338 | G16: 58,229 | H16: 40,774 | I16: 68,904 | J16: 90,158 | K16: 122,578 | L16: 161,732 | M16: 235,056 | N16: 134,802 | O16: 188,734 | P16: 227,614 | Q16: 156,939 | R16: 161,855 | S16: 203,301 | T16: 200,525 | U16: 243,904 | V16: 215,007 | W16: 231,049 | X16: 187,466 | Y16: 237,371 | Z16: 262,062 | AA16: 362,118 | AB16: 282,546
A17: Japonya | B17: 3,011,161 | C17: 2,160,585 | D17: 2,439,549 | E17: 4,463,298 | F17: 3,157,222 | G17: 2,264,528 | H17: 2,069,299 | I17: 2,953,098 | J17: 3,557,674 | K17: 4,572,901 | L17: 4,726,269 | M17: 4,451,576 | N17: 3,208,980 | O17: 3,395,649 | P17: 3,827,774 | Q17: 3,325,388 | R17: 3,478,832 | S17: 4,543,169 | T17: 4,377,994 | U17: 4,894,919 | V17: 5,061,537 | W17: 6,222,825 | X17: 5,296,811 | Y17: 6,191,073 | Z17: 6,718,220 | AA17: 6,544,303 | AB17: 4,756,464
A18: Kanada | B18: 486,978 | C18: 567,635 | D18: 543,394 | E18: 789,180 | F18: 766,204 | G18: 611,493 | H18: 570,223 | I18: 888,678 | J18: 1,177,518 | K18: 1,482,185 | L18: 1,700,708 | M18: 2,186,550 | N18: 1,033,449 | O18: 1,608,053 | P18: 2,170,433 | Q18: 1,912,122 | R18: 2,058,839 | S18: 2,113,822 | T18: 2,093,697 | U18: 1,591,929 | V18: 2,041,534 | W18: 2,367,060 | X18: 1,937,903 | Y18: 2,409,099 | Z18: 2,608,377 | AA18: 3,264,137 | AB18: 2,591,735
A19: Kolombiya | B19: - | C19: - | D19: - | E19: - | F19: - | G19: - | H19: - | I19: 14,259 | J19: 25,223 | K19: 50,501 | L19: 56,204 | M19: 101,956 | N19: 87,716 | O19: 140,520 | P19: 208,502 | Q19: 201,296 | R19: 262,101 | S19: 202,693 | T19: 146,746 | U19: 85,955 | V19: 103,405 | W19: 121,477 | X19: 103,848 | Y19: 132,040 | Z19: 106,315 | AA19: 90,541 | AB19: 67,196
A20: Kore | B20: 139,122 | C20: 41,881 | D20: 114,593 | E20: 306,128 | F20: 148,361 | G20: 194,470 | H20: 215,894 | I20: 298,248 | J20: 398,559 | K20: 718,011 | L20: 834,404 | M20: 1,122,606 | N20: 470,798 | O20: 834,597 | P20: 1,091,911 | Q20: 996,140 | R20: 1,179,419 | S20: 1,234,549 | T20: 1,212,759 | U20: 1,231,200 | V20: 1,282,166 | W20: 1,771,768 | X20: 1,413,717 | Y20: 1,484,840 | Z20: 2,176,190 | AA20: 2,218,658 | AB20: 1,387,509
A21: Lüksemburg | B21: 32,411 | C21: 33,892 | D21: 37,931 | E21: 35,939 | F21: 34,016 | G21: 23,783 | H21: 24,551 | I21: 37,333 | J21: 50,144 | K21: 51,248 | L21: 79,514 | M21: 166,094 | N21: 66,615 | O21: 105,048 | P21: 101,129 | Q21: 67,627 | R21: 70,338 | S21: 78,641 | T21: 63,168 | U21: 47,131 | V21: 61,486 | W21: 68,639 | X21: 49,483 | Y21: 44,234 | Z21: 51,568 | AA21: 61,194 | AB21: 37,486
A22: Macaristan | B22: - | C22: - | D22: - | E22: - | F22: 11,909 | G22: 10,367 | H22: 12,989 | I22: 18,868 | J22: 28,300 | K22: 32,576 | L22: 41,934 | M22: 46,196 | N22: 18,465 | O22: 30,037 | P22: 27,708 | Q22: 18,773 | R22: 20,760 | S22: 19,797 | T22: 14,513 | U22: 17,687 | V22: 18,073 | W22: 31,554 | X22: 28,945 | Y22: 32,887 | Z22: 27,971 | AA22: 31,571 | AB22: 18,124
A23: Malezya | B23: 306,165 | C23: 93,174 | D23: 95,561 | E23: 139,908 | F23: 113,155 | G23: 118,981 | H23: 122,892 | I23: 160,970 | J23: 181,624 | K23: 180,518 | L23: 235,581 | M23: 325,290 | N23: 189,087 | O23: 289,219 | P23: 408,689 | Q23: 395,624 | R23: 466,588 | S23: 500,387 | T23: 459,004 | U23: 382,977 | V23: 363,150 | W23: 455,772 | X23: 398,019 | Y23: 403,957 | Z23: 436,538 | AA23: 414,285 | AB23: 333,274
A24: Meksika | B24: 106,770 | C24: 156,595 | D24: 91,746 | E24: 154,044 | F24: 125,204 | G24: 126,258 | H24: 103,941 | I24: 122,533 | J24: 171,940 | K24: 239,128 | L24: 348,345 | M24: 397,725 | N24: 234,055 | O24: 352,045 | P24: 454,345 | Q24: 408,690 | R24: 525,057 | S24: 526,016 | T24: 480,245 | U24: 402,253 | V24: 333,541 | W24: 417,021 | X24: 385,051 | Y24: 413,619 | Z24: 399,617 | AA24: 459,708 | AB24: 409,321
A25: Mısır | B25: - | C25: - | D25: - | E25: - | F25: - | G25: - | H25: - | I25: - | J25: 38,533 | K25: 79,509 | L25: 93,496 | M25: 139,274 | N25: 85,247 | O25: 91,207 | P25: 84,277 | Q25: 48,682 | R25: 59,182 | S25: 61,630 | T25: 70,084 | U25: 55,192 | V25: 32,118 | W25: 46,546 | X25: 42,006 | Y25: 44,200 | Z25: 41,351 | AA25: 48,731 | AB25: 35,303
A26: NNE | B26: - | C26: - | D26: - | E26: - | F26: - | G26: - | H26: - | I26: - | J26: 728,769 | K26: 802,561 | L26: 1,122,705 | M26: 1,242,578 | N26: 563,100 | O26: 817,223 | P26: 1,042,154 | Q26: 842,101 | R26: 995,719 | S26: 1,269,214 | T26: 1,196,725 | U26: 1,268,042 | V26: 1,249,628 | W26: 1,533,497 | X26: 1,322,817 | Y26: 1,612,577 | Z26: 2,110,440 | AA26: 2,557,376 | AB26: 1,532,308
A27: Peru | B27: 12,583 | C27: 15,485 | D27: 9,869 | E27: 12,092 | F27: 9,750 | G27: 9,790 | H27: 11,441 | I27: 14,125 | J27: 17,975 | K27: 24,140 | L27: 40,022 | M27: 69,386 | N27: 37,877 | O27: 71,663 | P27: 103,347 | Q27: 81,878 | R27: 102,617 | S27: 80,978 | T27: 78,840 | U27: 56,556 | V27: 80,138 | W27: 99,218 | X27: 93,385 | Y27: 98,965 | Z27: 87,092 | AA27: 78,026 | AB27: 65,301
A28: Polonya | B28: 8,413 | C28: 12,135 | D28: 20,461 | E28: 29,577 | F28: 31,429 | G28: 26,155 | H28: 28,849 | I28: 37,405 | J28: 71,547 | K28: 93,602 | L28: 151,809 | M28: 211,620 | N28: 90,815 | O28: 150,962 | P28: 190,232 | Q28: 138,244 | R28: 177,408 | S28: 204,543 | T28: 168,896 | U28: 137,770 | V28: 140,859 | W28: 201,393 | X28: 160,483 | Y28: 151,619 | Z28: 177,508 | AA28: 197,389 | AB28: 106,656
A29: Rusya | B29: - | C29: - | D29: - | E29: - | F29: - | G29: - | H29: - | I29: - | J29: - | K29: - | L29: - | M29: - | N29: - | O29: - | P29: - | Q29: - | R29: 825,340 | S29: 770,657 | T29: 385,927 | U29: 393,238 | V29: 635,945 | W29: 623,425 | X29: 576,116 | Y29: 791,519 | Z29: 694,739 | AA29: 841,850 | AB29: 570,041
A30: Sri Lanka | B30: 1,865 | C30: 2,096 | D30: 1,705 | E30: 1,584 | F30: 1,074 | G30: 1,332 | H30: 1,680 | I30: 2,711 | J30: 3,657 | K30: 5,720 | L30: 7,769 | M30: 7,553 | N30: 4,286 | O30: 9,547 | P30: 19,924 | Q30: 19,437 | R30: 16,974 | S30: 18,807 | T30: 23,665 | U30: 20,804 | V30: 18,627 | W30: 18,960 | X30: 15,575 | Y30: 15,721 | Z30: 15,982 | AA30: 27,057 | AB30: 11,992
A31: Şili | B31: 65,971 | C31: 72,046 | D31: 51,866 | E31: 68,228 | F31: 60,401 | G31: 56,310 | H31: 49,828 | I31: 87,508 | J31: 116,924 | K31: 136,493 | L31: 174,419 | M31: 212,910 | N31: 131,808 | O31: 230,732 | P31: 341,799 | Q31: 270,289 | R31: 313,325 | S31: 265,150 | T31: 233,245 | U31: 190,352 | V31: 212,465 | W31: 294,676 | X31: 250,740 | Y31: 203,792 | Z31: - | AA31: - | AB31: 101,125
A32: Tayland | B32: 95,901 | C32: 22,792 | D32: 34,118 | E32: 57,177 | F32: 29,217 | G32: 35,950 | H32: 45,406 | I32: 119,017 | J32: 115,390 | K32: 123,885 | L32: 140,161 | M32: 197,129 | N32: 103,128 | O32: 176,956 | P32: 277,732 | Q32: 268,489 | R32: 389,756 | S32: 354,340 | T32: 430,427 | U32: 348,798 | V32: 437,314 | W32: 548,795 | X32: 500,741 | Y32: 569,228 | Z32: 543,165 | AA32: 598,908 | AB32: 521,586
A33: TÜRKİYE | B33: 30,312 | C33: 61,095 | D33: 33,646 | E33: 112,716 | F33: 69,659 | G33: 47,150 | H33: 34,217 | I33: 68,379 | J33: 98,299 | K33: 161,538 | L33: 162,399 | M33: 286,572 | N33: 118,329 | O33: 233,997 | P33: 307,052 | Q33: 197,074 | R33: 315,198 | S33: 195,746 | T33: 219,763 | U33: 188,862 | V33: 157,702 | W33: 227,512 | X33: 149,264 | Y33: 184,966 | Z33: 237,474 | AA33: 140,207 | AB33: 172,718
A34: Yunanistan | B34: 23,558 | C34: 33,784 | D34: 80,126 | E34: 196,847 | F34: 107,503 | G34: 83,481 | H34: 66,040 | I34: 103,764 | J34: 121,921 | K34: 145,121 | L34: 208,256 | M34: 264,961 | N34: 90,945 | O34: 112,632 | P34: 67,586 | Q34: 33,779 | R34: 44,877 | S34: 70,192 | T34: 55,154 | U34: 42,080 | V34: 37,515 | W34: 50,605 | X34: 38,371 | Y34: 53,654 | Z34: 50,987 | AA34: 59,242 | AB34: 47,147
A35: Kaynak: WFE
A36: Not 1: NNE (Nasdaq Nordic Exchange), Helsinki, İzlanda,Kopenhag, Riga, Stockholm, Tallinn ve Vilnius Borsalarından oluşmaktadır.
A37: Not 2: Ülkelerin rakamlarına WFE'de verilen o ülkeye ait olan borsa ya da borsaların verileri toplanarak ulaşılmıştır.
A38: Güncelleme tarihi: 25.11.2022
A40: İÇİNDEKİLER SAYFASI

Sheet I.3
A1: I.3. BORSA ŞİRKETLERİNİN PİYASA KAPİTALİZASYONU/GSYH
A3: Ülkeler | B3: 1997 | C3: 1998 | D3: 1999 | E3: 2000 | F3: 2001 | G3: 2002 | H3: 2003 | I3: 2004 | J3: 2005 | K3: 2006 | L3: 2007 | M3: 2008 | N3: 2009 | O3: 2010 | P3: 2011 | Q3: 2012 | R3: 2013 | S3: 2014 | T3: 2015 | U3: 2016 | V3: 2017 | W3: 2018 | X3: 2019 | Y3: 2020 | Z3: 2021(*) | AA3: 2022/06(*)
A4: Almanya | B4: 0.37 | C4: 0.48 | D4: 0.65 | E4: 0.65 | F4: 0.55 | G4: 0.33 | H4: 0.43 | I4: 0.42 | J4: 0.43 | K4: 0.55 | L4: 0.61 | M4: 0.30 | N4: 0.38 | O4: 0.42 | P4: 0.32 | Q4: 0.42 | R4: 0.52 | S4: 0.45 | T4: 0.51 | U4: 0.50 | V4: 0.61 | W4: 0.44 | X4: 0.54 | Y4: 0.59 | Z4: 0.59 | AA4: 0.38
A5: ABD | B5: 1.25 | C5: 1.40 | D5: 1.74 | E5: 1.48 | F5: 1.31 | G5: 1.01 | H5: 1.25 | I5: 1.34 | J5: 1.34 | K5: 1.42 | L5: 1.38 | M5: 0.80 | N5: 1.04 | O5: 1.15 | P5: 1.01 | Q5: 1.15 | R5: 1.43 | S5: 1.50 | T5: 1.37 | U5: 1.46 | V5: 1.64 | W5: 1.48 | X5: 1.70 | Y5: 1.95 | Z5: 2.27 | AA5: 0.66
A6: Arjantin | B6: 0.19 | C6: 0.14 | D6: 0.18 | E6: 0.14 | F6: 0.11 | G6: 0.15 | H6: 0.25 | I6: 0.25 | J6: 0.24 | K6: 0.22 | L6: 0.20 | M6: 0.11 | N6: 0.14 | O6: 0.15 | P6: 0.08 | Q6: 0.06 | R6: 0.09 | S6: 0.11 | T6: 0.09 | U6: 0.11 | V6: 0.17 | W6: 0.09 | X6: 0.09 | Y6: - | Z6: - | AA6: -
A7: Avusturya | B7: 0.18 | C7: 0.16 | D7: 0.15 | E7: 0.15 | F7: 0.13 | G7: 0.16 | H7: 0.22 | I7: 0.29 | J7: 0.40 | K7: 0.59 | L7: 0.61 | M7: 0.18 | N7: 0.28 | O7: 0.32 | P7: 0.20 | Q7: 0.26 | R7: 0.27 | S7: 0.22 | T7: 0.25 | U7: 0.26 | V7: 0.36 | W7: 0.26 | X7: 0.30 | Y7: 0.31 | Z7: 0.34 | AA7: 0.22
A8: Brezilya | B8: 0.29 | C8: 0.19 | D8: 0.38 | E8: 0.35 | F8: 0.33 | G8: 0.24 | H8: 0.41 | I8: 0.49 | J8: 0.53 | K8: 0.64 | L8: 0.98 | M8: 0.35 | N8: 0.80 | O8: 0.70 | P8: 0.47 | Q8: 0.50 | R8: 0.41 | S8: 0.34 | T8: 0.28 | U8: 0.43 | V8: 0.46 | W8: 0.48 | X8: 0.63 | Y8: 0.68 | Z8: - | AA8: -
A9: Çin | B9: - | C9: - | D9: - | E9: - | F9: - | G9: 0.32 | H9: 0.31 | I9: 0.23 | J9: 0.18 | K9: 0.42 | L9: 1.26 | M9: 0.39 | N9: 0.70 | O9: 0.67 | P9: 0.46 | Q9: 0.43 | R9: 0.41 | S9: 0.57 | T9: 0.74 | U9: 0.65 | V9: 0.71 | W9: 0.46 | X9: 0.59 | Y9: 0.82 | Z9: 0.82 | AA9: 0.59
A10: Endonezya | B10: 0.11 | C10: 0.19 | D10: 0.38 | E10: 0.15 | F10: 0.13 | G10: 0.14 | H10: 0.21 | I10: 0.26 | J10: 0.26 | K10: 0.35 | L10: 0.45 | M10: 0.18 | N10: 0.37 | O10: 0.48 | P10: 0.44 | Q10: 0.47 | R10: 0.38 | S10: 0.47 | T10: 0.41 | U10: 0.47 | V10: 0.51 | W10: 0.47 | X10: 0.47 | Y10: - | Z10: 0.49 | AA10: -
A11: Filipinler | B11: 0.34 | C11: 0.48 | D11: 0.49 | E11: 0.30 | F11: 0.26 | G11: 0.22 | H11: 0.27 | I11: 0.30 | J11: 0.37 | K11: 0.53 | L11: 0.66 | M11: 0.29 | N11: 0.49 | O11: 0.76 | P11: 0.70 | Q11: 0.88 | R11: 0.77 | S11: 0.88 | T11: 0.78 | U11: 0.75 | V11: 0.88 | W11: 0.74 | X11: 0.73 | Y11: 0.75 | Z11: 0.73 | AA11: 0.51
A12: Hindistan | B12: - | C12: - | D12: - | E12: - | F12: - | G12: 0.25 | H12: 0.45 | I12: 0.54 | J12: 0.66 | K12: 0.86 | L12: 1.47 | M12: 0.53 | N12: 0.96 | O12: 0.96 | P12: 0.55 | Q12: 0.69 | R12: 0.61 | S12: 0.76 | T12: 0.72 | U12: 0.68 | V12: 0.89 | W12: 0.76 | X12: 0.76 | Y12: 0.96 | Z12: 1.12 | AA12: 0.95
A13: İrlanda | B13: 0.60 | C13: 0.74 | D13: 0.69 | E13: 0.82 | F13: 0.69 | G13: 0.47 | H13: 0.52 | I13: 0.59 | J13: 0.54 | K13: 0.70 | L13: 0.53 | M13: 0.18 | N13: 0.26 | O13: 0.27 | P13: 0.46 | Q13: 0.48 | R13: 0.71 | S13: 0.55 | T13: 0.44 | U13: 0.40 | V13: 0.43 | W13: 0.28 | X13: - | Y13: - | Z13: - | AA13: -
A14: İspanya | B14: 0.49 | C14: 0.65 | D14: 0.68 | E14: 0.84 | F14: 0.75 | G14: 0.65 | H14: 0.80 | I14: 0.88 | J14: 0.83 | K14: 1.05 | L14: 1.21 | M14: 0.58 | N14: 0.87 | O14: 0.82 | P14: 0.70 | Q14: 0.75 | R14: 0.82 | S14: 0.72 | T14: 0.66 | U14: 0.58 | V14: 0.68 | W14: 0.51 | X14: 0.57 | Y14: 0.59 | Z14: 0.54 | AA14: 0.40
A15: İsrail | B15: 0.39 | C15: 0.34 | D15: 0.54 | E15: 0.49 | F15: 0.44 | G15: 0.34 | H15: 0.54 | I15: 0.66 | J15: 0.86 | K15: 1.05 | L15: 1.31 | M15: 0.62 | N15: 0.91 | O15: 0.97 | P15: 0.60 | Q15: 0.63 | R15: 0.69 | S15: 0.65 | T15: 0.81 | U15: 0.67 | V15: 0.66 | W15: 0.51 | X15: 0.60 | Y15: 0.64 | Z15: 0.75 | AA15: 0.54
A16: Japonya | B16: 0.49 | C16: 0.60 | D16: 0.96 | E16: 0.64 | F16: 0.52 | G16: 0.49 | H16: 0.65 | I16: 0.73 | J16: 0.95 | K16: 1.03 | L16: 0.97 | M16: 0.63 | N16: 0.64 | O16: 0.66 | P16: 0.53 | Q16: 0.55 | R16: 0.87 | S16: 0.89 | T16: 1.10 | U16: 1.01 | V16: 1.26 | W16: 1.05 | X16: 1.21 | Y16: 1.33 | Z16: 1.33 | AA16: 1.11
A17: Kanada | B17: 0.87 | C17: 0.86 | D17: 1.16 | E17: 1.03 | F17: 0.83 | G17: 0.75 | H17: 0.99 | I17: 1.15 | J17: 1.26 | K17: 1.29 | L17: 1.49 | M17: 0.67 | N17: 1.17 | O17: 1.34 | P17: 1.07 | Q17: 1.13 | R17: 1.14 | S17: 1.16 | T17: 1.02 | U17: 1.34 | V17: 1.44 | W17: 1.13 | X17: 1.38 | Y17: 1.59 | Z17: 1.64 | AA17: 1.18
A18: Kolombiya | B18: - | C18: - | D18: - | E18: - | F18: - | G18: - | H18: 0.15 | I18: 0.22 | J18: 0.35 | K18: 0.35 | L18: 0.49 | M18: 0.36 | N18: 0.60 | O18: 0.73 | P18: 0.60 | Q18: 0.71 | R18: 0.53 | S18: 0.38 | T18: 0.29 | U18: 0.37 | V18: 0.39 | W18: 0.31 | X18: 0.41 | Y18: 0.39 | Z18: 0.29 | AA18: 0.20
A19: Kore | B19: 0.08 | C19: 0.31 | D19: 0.62 | E19: 0.26 | F19: 0.36 | G19: 0.34 | H19: 0.42 | I19: 0.50 | J19: 0.77 | K19: 0.79 | L19: 0.96 | M19: 0.45 | N19: 0.88 | O19: 0.95 | P19: 0.79 | Q19: 0.92 | R19: 0.90 | S19: 0.82 | T19: 0.84 | U19: 0.86 | V19: 1.09 | W19: 0.82 | X19: 0.90 | Y19: 1.33 | Z19: 1.23 | AA19: 0.80
A20: Lüksemburg | B20: 1.83 | C20: 1.96 | D20: 1.70 | E20: 1.60 | F20: 1.12 | G20: 1.04 | H20: 1.26 | I20: 1.44 | J20: 1.37 | K20: 1.87 | L20: 3.26 | M20: 1.19 | N20: 2.04 | O20: 1.90 | P20: 1.13 | Q20: 1.24 | R20: 1.27 | S20: 0.95 | T20: 0.82 | U20: 1.01 | V20: 1.07 | W20: 0.70 | X20: 0.63 | Y20: 0.70 | Z20: 0.71 | AA20: 0.46
A21: Macaristan | B21: - | C21: - | D21: - | E21: 0.25 | F21: 0.19 | G21: 0.19 | H21: 0.22 | I21: 0.27 | J21: 0.29 | K21: 0.36 | L21: 0.33 | M21: 0.12 | N21: 0.23 | O21: 0.21 | P21: 0.13 | Q21: 0.16 | R21: 0.15 | S21: 0.10 | T21: 0.14 | U21: 0.14 | V21: 0.22 | W21: 0.18 | X21: 0.20 | Y21: 0.18 | Z21: 0.17 | AA21: 0.10
A22: Malezya | B22: 0.87 | C22: 1.23 | D22: 1.62 | E22: 1.11 | F22: 1.18 | G22: 1.12 | H22: 1.34 | I22: 1.34 | J22: 1.20 | K22: 1.38 | L22: 1.60 | M22: 0.78 | N22: 1.37 | O22: 1.58 | P22: 1.31 | Q22: 1.46 | R22: 1.53 | S22: 1.34 | T22: 1.27 | U22: 1.21 | V22: 1.43 | W22: 1.11 | X22: 1.11 | Y22: 1.29 | Z22: 1.11 | AA22: 0.77
A23: Meksika | B23: 0.33 | C23: 0.17 | D23: 0.26 | E23: 0.18 | F23: 0.17 | G23: 0.13 | H23: 0.17 | I23: 0.22 | J23: 0.27 | K23: 0.36 | L23: 0.38 | M23: 0.21 | N23: 0.39 | O23: 0.43 | P23: 0.35 | Q23: 0.44 | R23: 0.41 | S23: 0.37 | T23: 0.34 | U23: 0.31 | V23: 0.36 | W23: 0.32 | X23: 0.33 | Y23: 0.37 | Z23: 0.36 | AA23: 0.29
A24: Mısır | B24: - | C24: - | D24: - | E24: - | F24: - | G24: - | H24: - | I24: 0.47 | J24: 0.84 | K24: 0.83 | L24: 1.02 | M24: 0.50 | N24: 0.46 | O24: 0.37 | P24: 0.20 | Q24: 0.21 | R24: 0.21 | S24: 0.23 | T24: 0.17 | U24: 0.10 | V24: 0.20 | W24: 0.17 | X24: 0.15 | Y24: 0.11 | Z24: 0.12 | AA24: 0.08
A25: Peru | B25: 0.27 | C25: 0.18 | D25: 0.25 | E25: 0.19 | F25: 0.19 | G25: 0.21 | H25: 0.24 | I25: 0.27 | J25: 0.33 | K25: 0.46 | L25: 0.68 | M25: 0.31 | N25: 0.59 | O25: 0.69 | P25: 0.48 | Q25: 0.53 | R25: 0.40 | S25: 0.39 | T25: 0.30 | U25: 0.41 | V25: 0.46 | W25: 0.41 | X25: 0.43 | Y25: 0.42 | Z25: 0.35 | AA25: 0.27
A26: Polonya | B26: 0.08 | C26: 0.12 | D26: 0.18 | E26: 0.18 | F26: 0.14 | G26: 0.14 | H26: 0.17 | I26: 0.28 | J26: 0.31 | K26: 0.44 | L26: 0.49 | M26: 0.17 | N26: 0.34 | O26: 0.40 | P26: 0.26 | Q26: 0.36 | R26: 0.39 | S26: 0.31 | T26: 0.29 | U26: 0.30 | V26: 0.38 | W26: 0.27 | X26: 0.25 | Y26: 0.30 | Z26: 0.29 | AA26: 0.15
A27: Rusya | B27: - | C27: - | D27: - | E27: - | F27: - | G27: - | H27: - | I27: - | J27: - | K27: - | L27: - | M27: - | N27: - | O27: - | P27: - | Q27: 0.38 | R27: 0.34 | S27: 0.19 | T27: 0.29 | U27: 0.50 | V27: 0.40 | W27: 0.35 | X27: 0.47 | Y27: 0.47 | Z27: 0.47 | AA27: 0.27
A28: Sri Lanka | B28: 0.12 | C28: 0.09 | D28: 0.09 | E28: 0.06 | F28: 0.07 | G28: 0.09 | H28: 0.13 | I28: 0.15 | J28: 0.20 | K28: 0.24 | L28: 0.20 | M28: 0.09 | N28: 0.20 | O28: 0.35 | P28: 0.30 | Q28: 0.25 | R28: 0.25 | S28: 0.30 | T28: 0.26 | U28: 0.23 | V28: 0.22 | W28: 0.18 | X28: 0.19 | Y28: 0.20 | Z28: 0.33 | AA28: 0.16
A29: Şili | B29: 0.85 | C29: 0.64 | D29: 0.91 | E29: 0.78 | F29: 0.79 | G29: 0.71 | H29: 1.16 | I29: 1.18 | J29: 1.11 | K29: 1.13 | L29: 1.23 | M29: 0.73 | N29: 1.34 | O29: 1.57 | P29: 1.07 | Q29: 1.17 | R29: 0.95 | S29: 0.90 | T29: 0.78 | U29: 0.85 | V29: 1.06 | W29: 0.84 | X29: 0.73 | Y29: - | Z29: - | AA29: 0.33
A30: Tayland | B30: 0.15 | C30: 0.30 | D30: 0.45 | E30: 0.23 | F30: 0.30 | G30: 0.34 | H30: 0.78 | I30: 0.67 | J30: 0.66 | K30: 0.63 | L30: 0.75 | M30: 0.35 | N30: 0.63 | O30: 0.81 | P30: 0.72 | Q30: 0.98 | R30: 0.84 | S30: 1.06 | T30: 0.87 | U30: 1.06 | V30: 1.20 | W30: 0.99 | X30: 1.05 | Y30: 1.09 | Z30: 1.17 | AA30: 0.98
A31: TÜRKİYE | B31: 0.23 | C31: 0.12 | D31: 0.44 | E31: 0.25 | F31: 0.23 | G31: 0.14 | H31: 0.22 | I31: 0.24 | J31: 0.32 | K31: 0.29 | L31: 0.42 | M31: 0.15 | N31: 0.36 | O31: 0.40 | P31: 0.24 | Q31: 0.36 | R31: 0.20 | S31: 0.23 | T31: 0.22 | U31: 0.18 | V31: 0.26 | W31: 0.19 | X31: 0.24 | Y31: 0.33 | Z31: 0.17 | AA31: 0.20
A32: Yunanistan | B32: 0.24 | C32: 0.55 | D32: 1.33 | E32: 0.82 | F32: 0.62 | G32: 0.43 | H32: 0.52 | I32: 0.51 | J32: 0.59 | K32: 0.77 | L32: 0.84 | M32: 0.26 | N32: 0.34 | O32: 0.23 | P32: 0.12 | Q32: 0.19 | R32: 0.29 | S32: 0.23 | T32: 0.22 | U32: 0.19 | V32: 0.25 | W32: 0.18 | X32: 0.26 | Y32: 0.27 | Z32: 0.27 | AA32: 0.21
A33: Kaynak: IMF. WFE
A34: * Gölgeli hücrelerdeki GSYH rakamları IMF tahminidir.
A35: Ülkelerin Piyasa Kapitalizasyonu rakamlarına WFE'de verilen o ülkeye ait olan borsa ya da borsaların verileri toplanarak ulaşılmıştır.
A36: Güncelleme tarihi: 25.11.2022
A37: İÇİNDEKİLER SAYFASI

Sheet I.4
A1: I.4. TOPLAM İŞLEM HACMİ (milyon dolar)
A3: Ülkeler | B3: 1996 | C3: 1997 | D3: 1998 | E3: 1999 | F3: 2000 | G3: 2001 | H3: 2002 | I3: 2003 | J3: 2004 | K3: 2005 | L3: 2006 | M3: 2007 | N3: 2008 | O3: 2009 | P3: 2010 | Q3: 2011 | R3: 2012 | S3: 2013 | T3: 2014 | U3: 2015 | V3: 2016 | W3: 2017 | X3: 2018 | Y3: 2019 | Z3: 2020 | AA3: 2021 | AB3: 2022/01-09
A4: Almanya | B4: 811,626.0 | C4: 1,067,688.3 | D4: 1,491,796 | E4: 1,551,467 | F4: 2,119,785 | G4: 1,423,371 | H4: 1,212,302 | I4: 1,299,327 | J4: 1,541,123 | K4: 1,915,305 | L4: 2,737,195 | M4: 4,324,928 | N4: 4,678,829 | O4: 2,240,331 | P4: 1,628,496 | Q4: 1,758,185 | R4: 1,275,949 | S4: 1,334,545 | T4: 1,469,729 | U4: 1,555,549 | V4: 1,306,428 | W4: 1,558,592 | X4: 1,760,398 | Y4: 1,506,507 | Z4: 2,069,823 | AA4: 1,909,579 | AB4: 1,273,805
A5: ABD | B5: 7,456,760.8 | C5: 10,402,513.7 | D5: 13,124,824 | E5: 19,890,396 | F5: 31,804,236 | G5: 22,240,645 | H5: 18,206,831 | I5: 17,322,982 | J5: 20,975,924 | K5: 24,820,123 | L5: 34,198,150 | M5: 57,900,406 | N5: 70,647,088 | O5: 46,735,935 | P5: 30,454,798 | Q5: 30,750,596 | R5: 23,226,926 | S5: 23,285,193 | T5: 28,104,938 | U5: 29,992,641 | V5: 28,388,867 | W5: 25,871,634 | X5: 36,130,733 | Y5: 28,157,425 | Z5: 51,100,933 | AA5: 58,029,218 | AB5: 21,655,754
A6: Arjantin | B6: 31,325.7 | C6: 38,424.0 | D6: 26,056 | E6: 11,875 | F6: 9,701 | G6: 7,564 | H6: 1,277 | I6: 3,078 | J6: 4,832 | K6: 6,853 | L6: 5,277 | M6: 7,381 | N6: 6,617 | O6: 2,983 | P6: 3,805 | Q6: 3,284 | R6: 2,191 | S6: 3,342 | T6: 4,803 | U6: 5,091 | V6: 4,624 | W6: 6,593 | X6: 5,278 | Y6: 4,384 | Z6: 2,379 | AA6: 2,368 | AB6: -
A7: Avusturya | B7: 10,692.4 | C7: 12,723.8 | D7: 18,677 | E7: 12,734 | F7: 9,642 | G7: 7,693 | H7: 6,109 | I7: 11,135 | J7: 24,159 | K7: 46,468 | L7: 82,049 | M7: 129,974 | N7: 104,688 | O7: 51,327 | P7: 48,626 | Q7: 42,356 | R7: 23,405 | S7: 25,843 | T7: 31,592 | U7: 32,197 | V7: 30,867 | W7: 39,987 | X7: 40,311 | Y7: 26,349 | Z7: 39,294 | AA7: 41,517 | AB7: 31,051
A8: Brezilya | B8: 97,510.4 | C8: 190,657.5 | D8: 139,583 | E8: 83,772 | F8: 101,537 | G8: 63,475 | H8: 46,300 | I8: 66,428 | J8: 103,990 | K8: 165,276 | L8: 276,150 | M8: 597,995 | N8: 724,199 | O8: 644,732 | P8: 868,813 | Q8: 930,698 | R8: 875,418 | S8: 810,596 | T8: 728,403 | U8: 498,336 | V8: 535,163 | W8: 642,505 | X8: 771,924 | Y8: 1,047,637 | Z8: 1,381,964 | AA8: - | AB8: 1,003,418
A9: Çin | B9: - | C9: - | D9: - | E9: - | F9: - | G9: 493,731 | H9: 352,305 | I9: 396,252 | J9: 517,286 | K9: 392,772 | L9: 1,158,997 | M9: 6,074,604 | N9: 3,848,930 | O9: 7,836,305 | P9: 8,068,723 | Q9: 6,496,032 | R9: 4,967,885 | S9: 7,589,638 | T9: 12,026,132 | U9: 40,954,093 | V9: 19,098,233 | W9: 17,241,194 | X9: 13,070,642 | Y9: 19,045,454 | Z9: 29,960,707 | AA9: 40,353,122 | AB9: 26,198,396
A10: Endonezya | B10: 32,452.3 | C10: 42,604.9 | D10: 10,637 | E10: 17,241 | F10: 15,109 | G10: 9,410 | H10: 13,050 | I10: 14,652 | J10: 27,518 | K10: 41,633 | L10: 48,810 | M10: 114,631 | N10: 109,432 | O10: 96,714 | P10: 103,842 | Q10: 109,421 | R10: 94,586 | S10: 115,972 | T10: 87,867 | U10: 77,674 | V10: 92,162 | W10: 92,513 | X10: 104,652 | Y10: 102,067 | Z10: 127,243 | AA10: 202,772 | AB10: -
A11: Filipinler | B11: 25,510.4 | C11: 20,350.0 | D11: 10,148 | E11: 19,950 | F11: 8,187 | G11: 3,129 | H11: 3,093 | I11: 2,673 | J11: 3,681 | K11: 6,982 | L11: 11,214 | M11: 29,172 | N11: 17,090 | O11: 20,849 | P11: 21,778 | Q11: 27,765 | R11: 34,783 | S11: 46,670 | T11: 39,068 | U11: 39,683 | V11: 37,425 | W11: 33,805 | X11: 29,235 | Y11: 30,017 | Z11: 31,879 | AA11: 35,884 | AB11: 21,588
A12: Hindistan | B12: - | C12: - | D12: - | E12: - | F12: - | G12: 247,883 | H12: 197,073 | I12: 291,975 | J12: 378,657 | K12: 473,671 | L12: 638,051 | M12: 1,095,109 | N12: 1,027,047 | O12: 1,056,885 | P12: 1,059,713 | Q12: 730,122 | R12: 636,509 | S12: 563,507 | T12: 756,170 | U12: 797,400 | V12: 798,643 | W12: 1,034,098 | X12: 1,145,469 | Y12: 1,183,343 | Z12: 1,816,939 | AA12: 2,299,666 | AB12: 1,380,665
A13: İrlanda | B13: 11,794.4 | C13: 17,300.9 | D13: 39,865 | E13: 47,611 | F13: 14,381 | G13: 22,789 | H13: 33,270 | I13: 44,074 | J13: 45,144 | K13: 67,423 | L13: 81,669 | M13: 136,936 | N13: 81,916 | O13: 37,336 | P13: 8,894 | Q13: 8,956 | R13: 9,262 | S13: 14,471 | T13: 18,147 | U13: 21,219 | V13: 26,000 | W13: 27,578 | X13: 33,156 | Y13: - | Z13: - | AA13: - | AB13: -
A14: İspanya | B14: - | C14: - | D14: - | E14: - | F14: 450,000 | G14: 500,000 | H14: 653,221 | I14: 933,060 | J14: 1,203,360 | K14: 1,566,107 | L14: 1,933,793 | M14: 2,969,519 | N14: 2,410,721 | O14: 1,610,210 | P14: 1,360,910 | Q14: 1,226,224 | R14: 851,828 | S14: 893,572 | T14: 1,098,457 | U14: 997,646 | V14: 684,032 | W14: 741,729 | X14: 627,878 | Y14: 408,765 | Z14: 463,336 | AA14: 403,433 | AB14: -
A15: İsrail | B15: 8,100.1 | C15: 14,158.2 | D15: 15,079 | E15: 20,958 | F15: 28,539 | G15: 15,674 | H15: 12,676 | I15: 19,115 | J15: 33,067 | K15: 48,970 | L15: 65,476 | M15: 100,960 | N15: 110,136 | O15: 87,374 | P15: 102,694 | Q15: 82,043 | R15: 49,365 | S15: 53,703 | T15: 51,209 | U15: 56,443 | V15: 51,970 | W15: 69,037 | X15: 62,440 | Y15: 68,469 | Z15: 98,416 | AA15: 106,291 | AB15: 94,067
A16: Japonya | B16: 1,191,940.8 | C16: 1,118,044.9 | D16: 932,919 | E16: 1,891,669 | F16: 2,641,068 | G16: 1,834,418 | H16: 1,688,261 | I16: 2,221,254 | J16: 3,352,475 | K16: 4,679,558 | L16: 6,258,821 | M16: 6,765,972 | N16: 5,887,892 | O16: 4,158,347 | P16: 3,966,746 | Q16: 4,160,543 | R16: 3,605,593 | S16: 6,516,058 | T16: 5,443,887 | U16: 5,540,697 | V16: 5,618,264 | W16: 5,778,420 | X16: 6,306,096 | Y16: 5,098,665 | Z16: 6,155,538 | AA16: 6,344,141 | AB16: 4,438,875
A17: Kanada | B17: 221,215.9 | C17: 305,154.9 | D17: 331,848 | E17: 357,443 | F17: 636,533 | G17: 461,557 | H17: 408,165 | I17: 471,544 | J17: 651,059 | K17: 900,493 | L17: 1,281,799 | M17: 1,634,870 | N17: 1,716,228 | O17: 1,245,457 | P17: 1,368,954 | Q17: 1,542,174 | R17: 1,357,293 | S17: 1,371,478 | T17: 1,408,145 | U17: 1,184,829 | V17: 1,176,203 | W17: 1,287,152 | X17: 1,380,239 | Y17: 1,415,444 | Z17: 1,871,423 | AA17: 2,208,690 | AB17: 1,845,346
A18: Kolombiya | B18: - | C18: - | D18: - | E18: - | F18: - | G18: - | H18: - | I18: 806 | J18: 2,080 | K18: 9,419 | L18: 14,845 | M18: 16,775 | N18: 20,274 | O18: 19,169 | P18: 25,149 | Q18: 34,044 | R18: 39,433 | S18: 25,943 | T18: 24,490 | U18: 14,868 | V18: 13,967 | W18: 13,865 | X18: 13,696 | Y18: 13,996 | Z18: 9,393 | AA18: 7,249 | AB18: 6,426
A19: Kore | D19: - | E19: - | F19: - | G19: - | H19: - | I19: - | J19: - | K19: - | L19: - | M19: - | N19: - | O19: - | P19: - | Q19: - | R19: 1,517,897 | S19: 1,284,599 | T19: 1,350,370 | U19: 1,929,558 | V19: 1,672,918 | W19: 2,011,925 | X19: 2,475,712 | Y19: 1,926,880 | Z19: 4,851,627 | AA19: 5,631,980 | AB19: 2,423,080
A20: Lüksemburg | B20: 785.6 | C20: 1,048.1 | D20: 1,673 | E20: 1,421 | F20: 1,661 | G20: 703 | H20: 496 | I20: 414 | J20: 645 | K20: 330 | L20: 264 | M20: 242 | N20: 1,910 | O20: 296 | P20: 216 | Q20: 156 | R20: 132 | S20: 140 | T20: 141 | U20: 110 | V20: 82 | W20: 94 | X20: 93 | Y20: 38 | Z20: 55 | AA20: 66 | AB20: 38
A21: Macaristan | B21: - | C21: - | D21: - | E21: - | F21: 12,162 | G21: 4,815 | H21: 5,908 | I21: 8,270 | J21: 12,994 | K21: 24,151 | L21: 31,158 | M21: 47,586 | N21: 30,706 | O21: 25,972 | P21: 26,277 | Q21: 19,172 | R21: 10,883 | S21: 10,429 | T21: 7,971 | U21: 7,605 | V21: 8,130 | W21: 10,383 | X21: 9,890 | Y21: 8,669 | Z21: 10,828 | AA21: 8,652 | AB21: 8,366
A22: Malezya | B22: 178,011.4 | C22: 145,687.8 | D22: 26,840 | E22: 42,431 | F22: 52,869 | G22: 23,880 | H22: 32,923 | I22: 52,233 | J22: 61,636 | K22: 51,601 | L22: 75,205 | M22: 169,723 | N22: 93,784 | O22: 86,214 | P22: 112,292 | Q22: 135,949 | R22: 124,333 | S22: 147,873 | T22: 153,075 | U22: 124,113 | V22: 106,965 | W22: 137,419 | X22: 139,444 | Y22: 108,712 | Z22: 239,795 | AA22: 204,351 | AB22: 86,210
A23: Meksika | B23: 43,583.7 | C23: 54,961.9 | D23: 31,192 | E23: 35,172 | F23: 45,768 | G23: 38,469 | H23: 32,286 | I23: 25,868 | J23: 45,389 | K23: 56,683 | L23: 96,918 | M23: 143,945 | N23: 110,474 | O23: 84,909 | P23: 122,584 | Q23: 121,640 | R23: 126,139 | S23: 177,356 | T23: 156,574 | U23: 127,412 | V23: 122,989 | W23: 109,071 | X23: 109,658 | Y23: 99,116 | Z23: 104,779 | AA23: 127,442 | AB23: 69,332
A24: Mısır | B24: - | C24: - | D24: - | E24: - | F24: - | G24: - | H24: - | I24: - | J24: 6,513 | K24: 26,241 | L24: 48,084 | M24: 60,196 | N24: 93,476 | O24: 73,652 | P24: 38,397 | Q24: 16,133 | R24: 17,856 | S24: 12,920 | T24: 26,847 | U24: 15,209 | V24: 16,985 | W24: 14,429 | X24: 14,650 | Y24: 10,882 | Z24: 16,071 | AA24: 21,073 | AB24: 9,263
A25: NNE | B25: - | C25: - | D25: - | E25: - | F25: - | G25: - | H25: - | I25: - | J25: 793,241 | K25: 951,421 | L25: 1,332,369 | M25: 1,818,208 | N25: 1,338,181 | O25: 778,356 | P25: 750,279 | Q25: 828,308 | R25: 586,971 | S25: 625,832 | T25: 722,720 | U25: 754,640 | V25: 709,689 | W25: 1,034,098 | X25: 1,145,469 | Y25: 1,167,021 | Z25: 1,030,999 | AA25: 1,106,664 | AB25: 720,895
A26: Peru | B26: 3,830.1 | C26: 4,278.6 | D26: 3,050 | E26: 2,729 | F26: 2,518 | G26: 934 | H26: 1,187 | I26: 1,140 | J26: 1,560 | K26: 2,650 | L26: 5,486 | M26: 11,266 | N26: 6,329 | O26: 4,592 | P26: 5,012 | Q26: 6,228 | R26: 6,102 | S26: 4,051 | T26: 3,439 | U26: 1,887 | V26: 2,683 | W26: 6,355 | X26: 4,082 | Y26: 3,533 | Z26: 3,653 | AA26: 4,015 | AB26: 1,623
A27: Polonya | B27: 5,543.8 | C27: 7,952.9 | D27: 8,913 | E27: 11,139 | F27: 19,305 | G27: 9,876 | H27: 7,811 | I27: 9,663 | J27: 16,269 | K27: 30,422 | L27: 56,373 | M27: 87,962 | N27: 69,499 | O27: 58,374 | P27: 69,231 | Q27: 86,518 | R27: 58,364 | S27: 69,952 | T27: 65,274 | U27: 54,091 | V27: 48,188 | W27: 68,001 | X27: 54,923 | Y27: 38,967 | Z27: 80,771 | AA27: 81,996 | AB27: 51,862
A28: Rusya | D28: - | E28: - | F28: - | G28: - | H28: - | I28: - | J28: - | K28: - | L28: - | M28: - | N28: - | O28: - | P28: - | Q28: - | R28: 337,111 | S28: 242,002 | T28: 227,922 | U28: 140,904 | V28: 128,853 | W28: 145,515 | X28: 150,834 | Y28: 187,407 | Z28: 310,394 | AA28: 379,969 | AB28: 187,902
A29: Sri Lanka | B29: 130.2 | C29: 309.2 | D29: 282 | E29: 209 | F29: 143 | G29: 156 | H29: 319 | I29: 765 | J29: 575 | K29: 1,096 | L29: 1,010 | M29: 950 | N29: 1,016 | O29: 1,241 | P29: 5,009 | Q29: - | R29: 1,679 | S29: 1,555 | T29: 2,610 | U29: 1,889 | V29: 1,228 | W29: 1,443 | X29: 1,097 | Y29: 654 | Z29: 1,859 | AA29: 5,273 | AB29: 1,243
A30: Şili | B30: 8,488.3 | C30: 7,443.8 | D30: 4,412 | E30: 6,859 | F30: 6,083 | G30: 4,450 | H30: 3,011 | I30: 6,647 | J30: 12,123 | K30: 18,961 | L30: 29,620 | M30: 47,997 | N30: 36,196 | O30: 38,107 | P30: 53,818 | Q30: 55,260 | R30: 45,653 | S30: 43,980 | T30: 28,834 | U30: 21,350 | V30: 23,684 | W30: 38,092 | X30: 43,634 | Y30: 38,752 | Z30: 37,440 | AA30: 42,264 | AB30: 32,237
A31: Tayland | B31: 51,396.9 | C31: 24,598.7 | D31: 20,976 | E31: 37,246 | F31: 21,117 | G31: 30,811 | H31: 41,289 | I31: 102,421 | J31: 116,381 | K31: 95,646 | L31: 100,929 | M31: 117,893 | N31: 115,980 | O31: 127,141 | P31: 214,086 | Q31: 222,605 | R31: 235,168 | S31: 376,024 | T31: 314,190 | U31: 285,755 | V31: 330,367 | W31: 339,529 | X31: 386,543 | Y31: 367,106 | Z31: 462,727 | AA31: 597,944 | AB31: 382,313
A32: TÜRKİYE | B32: 36,232.8 | C32: 56,087.9 | D32: 68,485 | E32: 81,099 | F32: 178,998 | G32: 74,530 | H32: 69,937 | I32: 98,160 | J32: 146,605 | K32: 200,858 | L32: 222,724 | M32: 294,295 | N32: 247,893 | O32: 305,036 | P32: 411,469 | Q32: 393,910 | R32: 357,779 | S32: 419,362 | T32: 393,976 | U32: 374,449 | V32: 327,118 | W32: 377,306 | X32: 369,921 | Y32: 363,322 | Z32: 900,190 | AA32: 539,036 | AB32: 565,327
A33: Yunanistan | B33: 8,234.4 | C33: 21,136.6 | D33: 50,020 | E33: 189,280 | F33: 94,163 | G33: 37,812 | H33: 23,462 | I33: 39,672 | J33: 44,383 | K33: 65,131 | L33: 107,893 | M33: 168,318 | N33: 113,666 | O33: 71,829 | P33: 43,261 | Q33: 27,660 | R33: 15,950 | S33: 23,776 | T33: 36,905 | U33: 18,584 | V33: 14,222 | W33: 15,212 | X33: 12,332 | Y33: 16,004 | Z33: 16,204 | AA33: 17,022 | AB33: 13,460
A34: Kaynak: WFE
A35: Not 1: NNE (Nasdaq Nordic Exchange), Helsinki, İzlanda,Kopenhag, Riga, Stockholm, Tallinn ve Vilnius Borsalarından oluşmaktadır.
A36: Not 2: Ülkelerin rakamlarına WFE'de verilen o ülkeye ait olan borsa yada borsaların verileri toplanarak ulaşılmıştır.
A37: Güncelleme tarihi: 25.11.2022
A39: İÇİNDEKİLER SAYFASI

Sheet I.5
A1: I.5. TOPLAM İŞLEM HACMİ/GSYH
A3: Ülkeler | B3: 1996 | C3: 1997 | D3: 1998 | E3: 1999 | F3: 2000 | G3: 2001 | H3: 2002 | I3: 2003 | J3: 2004 | K3: 2005 | L3: 2006 | M3: 2007 | N3: 2008 | O3: 2009 | P3: 2010 | Q3: 2011 | R3: 2012 | S3: 2013 | T3: 2014 | U3: 2015 | V3: 2016 | W3: 2017 | X3: 2018 | Y3: 2019 | Z3: 2020 (*) | AA3: 2021 (*)
A4: Almanya | B4: 0.33 | C4: 0.48 | D4: 0.66 | E4: 0.70 | F4: 1.08 | G4: 0.73 | H4: 0.58 | I4: 0.52 | J4: 0.55 | K4: 0.67 | L4: 0.91 | M4: 1.26 | N4: 1.24 | O4: 0.65 | P4: 0.48 | Q4: 0.47 | R4: 0.36 | S4: 0.36 | T4: 0.38 | U4: 0.46 | V4: 0.38 | W4: 0.43 | X4: 0.44 | Y4: 0.39 | Z4: 0.54 | AA4: 0.45
A5: ABD | B5: 0.92 | C5: 1.21 | D5: 1.44 | E5: 2.06 | F5: 3.09 | G5: 2.09 | H5: 1.66 | I5: 1.50 | J5: 1.71 | K5: 1.90 | L5: 2.47 | M5: 4.00 | N5: 4.80 | O5: 3.24 | P5: 2.04 | Q5: 1.98 | R5: 1.44 | S5: 1.40 | T5: 1.62 | U5: 1.66 | V5: 1.52 | W5: 1.33 | X5: 1.75 | Y5: 1.31 | Z5: 2.45 | AA5: 2.53
A6: Arjantin | B6: 0.10 | C6: 0.12 | D6: 0.08 | E6: 0.04 | F6: 0.03 | G6: 0.03 | H6: 0.01 | I6: 0.02 | J6: 0.03 | K6: 0.03 | L6: 0.02 | M6: 0.03 | N6: 0.02 | O6: 0.01 | P6: 0.01 | Q6: 0.01 | R6: 0.00 | S6: 0.01 | T6: 0.01 | U6: 0.01 | V6: 0.01 | W6: 0.01 | X6: 0.01 | Y6: 0.02 | Z6: 0.01 | AA6: 0.01
A7: Avusturya | B7: 0.05 | C7: 0.06 | D7: 0.09 | E7: 0.06 | F7: 0.05 | G7: 0.04 | H7: 0.03 | I7: 0.04 | J7: 0.08 | K7: 0.15 | L7: 0.25 | M7: 0.34 | N7: 0.24 | O7: 0.13 | P7: 0.12 | Q7: 0.10 | R7: 0.06 | S7: 0.06 | T7: 0.07 | U7: 0.09 | V7: 0.08 | W7: 0.10 | X7: 0.09 | Y7: 0.06 | Z7: 0.09 | AA7: 0.09
A8: Brezilya | B8: 0.12 | C8: 0.22 | D8: 0.16 | E8: 0.14 | F8: 0.15 | G8: 0.11 | H8: 0.09 | I8: 0.12 | J8: 0.16 | K8: 0.19 | L8: 0.25 | M8: 0.43 | N8: 0.43 | O8: 0.39 | P8: 0.39 | Q8: 0.36 | R8: 0.36 | S8: 0.33 | T8: 0.30 | U8: 0.28 | V8: 0.30 | W8: 0.31 | X8: 0.41 | Y8: 0.57 | Z8: 0.96 | AA8: -
A9: Çin | B9: - | C9: - | D9: - | E9: - | F9: - | G9: 0.37 | H9: 0.24 | I9: 0.24 | J9: 0.26 | K9: 0.17 | L9: 0.42 | M9: 1.70 | N9: 0.84 | O9: 1.53 | P9: 1.33 | Q9: 0.86 | R9: 0.58 | S9: 0.79 | T9: 1.14 | U9: 3.66 | V9: 1.70 | W9: 1.43 | X9: 0.94 | Y9: 1.32 | Z9: 2.02 | AA9: 2.39
A10: Endonezya | B10: 0.14 | C10: 0.16 | D10: 0.09 | E10: 0.10 | F10: 0.08 | G10: 0.05 | H10: 0.06 | I10: 0.06 | J10: 0.10 | K10: 0.13 | L10: 0.12 | M10: 0.24 | N10: 0.20 | O10: 0.17 | P10: 0.14 | Q10: 0.12 | R10: 0.10 | S10: 0.13 | T10: 0.10 | U10: 0.09 | V10: 0.10 | W10: 0.09 | X10: 0.10 | Y10: 0.09 | Z10: 0.12 | AA10: 0.18
A11: Filipinler | B11: 0.28 | C11: 0.22 | D11: 0.14 | E11: 0.24 | F11: 0.10 | G11: 0.04 | H11: 0.04 | I11: 0.03 | J11: 0.04 | K11: 0.07 | L11: 0.09 | M11: 0.20 | N11: 0.10 | O11: 0.12 | P11: 0.11 | Q11: 0.12 | R11: 0.14 | S11: 0.17 | T11: 0.14 | U11: 0.14 | V11: 0.12 | W11: 0.11 | X11: 0.08 | Y11: 0.08 | Z11: 0.09 | AA11: 0.09
A12: Hindistan | B12: - | C12: - | D12: - | E12: - | F12: - | G12: 0.50 | H12: 0.38 | I12: 0.47 | J12: 0.52 | K12: 0.57 | L12: 0.67 | M12: 0.88 | N12: 0.84 | O12: 0.77 | P12: 0.62 | Q12: 0.40 | R12: 0.35 | S12: 0.30 | T12: 0.37 | U12: 0.38 | V12: 0.35 | W12: 0.39 | X12: 0.42 | Y12: 0.41 | Z12: 0.68 | AA12: 0.78
A13: İrlanda | B13: 0.16 | C13: 0.21 | D13: 0.44 | E13: 0.48 | F13: 0.14 | G13: 0.21 | H13: 0.26 | I13: 0.27 | J13: 0.23 | K13: 0.32 | L13: 0.35 | M13: 0.51 | N13: 0.30 | O13: 0.16 | P13: 0.04 | Q13: 0.04 | R13: 0.04 | S13: 0.06 | T13: 0.07 | U13: 0.07 | V13: 0.09 | W13: 0.08 | X13: 0.09 | Y13: - | Z13: - | AA13: -
A14: İspanya | B14: - | C14: - | D14: - | E14: - | F14: 0.75 | G14: 0.80 | H14: 0.92 | I14: 1.03 | J14: 1.12 | K14: 1.35 | L14: 1.53 | M14: 2.00 | N14: 1.47 | O14: 1.07 | P14: 0.95 | Q14: 0.82 | R14: 0.64 | S14: 0.65 | T14: 0.79 | U14: 0.83 | V14: 0.55 | W14: 0.56 | X14: 0.44 | Y14: 0.29 | Z14: 0.36 | AA14: 0.28
A15: İsrail | B15: 0.07 | C15: 0.12 | D15: 0.13 | E15: 0.18 | F15: 0.22 | G15: 0.12 | H15: 0.10 | I15: 0.15 | J15: 0.24 | K15: 0.34 | L15: 0.43 | M15: 0.56 | N15: 0.51 | O15: 0.42 | P15: 0.44 | Q15: 0.31 | R15: 0.19 | S15: 0.18 | T15: 0.17 | U15: 0.19 | V15: 0.16 | W15: 0.20 | X15: 0.17 | Y15: 0.17 | Z15: 0.24 | AA15: 0.23
A16: Japonya | B16: 0.25 | C16: 0.26 | D16: 0.24 | E16: 0.43 | F16: 0.56 | G16: 0.44 | H16: 0.42 | I16: 0.52 | J16: 0.72 | K16: 1.02 | L16: 1.44 | M16: 1.55 | N16: 1.21 | O16: 0.83 | P16: 0.72 | Q16: 0.70 | R16: 0.61 | S16: 1.33 | T16: 1.18 | U16: 1.34 | V16: 1.14 | W16: 1.19 | X16: 1.27 | Y16: 1.00 | Z16: 1.22 | AA16: 1.24
A17: Kanada | B17: 0.35 | C17: 0.47 | D17: 0.53 | E17: 0.53 | F17: 0.86 | G17: 0.63 | H17: 0.54 | I17: 0.53 | J17: 0.64 | K17: 0.77 | L17: 0.97 | M17: 1.12 | N17: 1.11 | O17: 0.91 | P17: 0.85 | Q17: 0.86 | R17: 0.74 | S17: 0.75 | T17: 0.79 | U17: 0.76 | V17: 0.77 | W17: 0.78 | X17: 0.80 | Y17: 0.83 | Z17: 1.14 | AA17: 1.10
A18: Kolombiya | B18: - | C18: - | D18: - | E18: - | F18: - | G18: - | H18: - | I18: 0.01 | J18: 0.02 | K18: 0.06 | L18: 0.09 | M18: 0.08 | N18: 0.08 | O18: 0.08 | P18: 0.09 | Q18: 0.10 | R18: 0.11 | S18: 0.07 | T18: 0.06 | U18: 0.05 | V18: 0.05 | W18: 0.04 | X18: 0.04 | Y18: 0.04 | Z18: 0.03 | AA18: 0.02
A19: Kore | B19: 0.00 | C19: 0.00 | D19: - | E19: - | F19: - | G19: - | H19: - | I19: - | J19: - | K19: - | L19: - | M19: - | N19: - | O19: - | P19: - | Q19: - | R19: 1.24 | S19: 0.98 | T19: 0.96 | U19: 1.40 | V19: 1.11 | W19: 1.24 | X19: 1.44 | Y19: 1.18 | Z19: 2.96 | AA19: 3.09
A20: Lüksemburg | B20: 0.04 | C20: 0.06 | D20: 0.09 | E20: 0.07 | F20: 0.08 | G20: 0.03 | H20: 0.02 | I20: 0.01 | J20: 0.02 | K20: 0.01 | L20: 0.01 | M20: 0.00 | N20: 0.03 | O20: 0.01 | P20: 0.00 | Q20: 0.00 | R20: 0.00 | S20: 0.00 | T20: 0.00 | U20: 0.00 | V20: 0.00 | W20: 0.00 | X20: 0.00 | Y20: 0.00 | Z20: 0.00 | AA20: 0.00
A21: Macaristan | B21: - | C21: - | D21: - | E21: - | F21: 0.26 | G21: 0.09 | H21: 0.09 | I21: 0.10 | J21: 0.13 | K21: 0.21 | L21: 0.27 | M21: 0.34 | N21: 0.20 | O21: 0.20 | P21: 0.20 | Q21: 0.14 | R21: 0.09 | S21: 0.08 | T21: 0.06 | U21: 0.06 | V21: 0.06 | W21: 0.07 | X21: 0.06 | Y21: 0.05 | Z21: 0.07 | AA21: 0.05
A22: Malezya | B22: 1.77 | C22: 1.35 | D22: 0.35 | E22: 0.50 | F22: 0.52 | G22: 0.24 | H22: 0.30 | I22: 0.44 | J22: 0.46 | K22: 0.35 | L22: 0.45 | M22: 0.85 | N22: 0.39 | O22: 0.41 | P22: 0.44 | Q22: 0.46 | R22: 0.40 | S22: 0.46 | T22: 0.45 | U22: 0.42 | V22: 0.36 | W22: 0.43 | X22: 0.39 | Y22: 0.30 | Z22: 0.71 | AA22: 0.55
A23: Meksika | B23: 0.11 | C23: 0.11 | D23: 0.06 | E23: 0.06 | F23: 0.07 | G23: 0.05 | H23: 0.04 | I23: 0.04 | J23: 0.06 | K23: 0.07 | L23: 0.10 | M23: 0.14 | N23: 0.10 | O23: 0.09 | P23: 0.12 | Q23: 0.10 | R23: 0.11 | S23: 0.14 | T23: 0.12 | U23: 0.11 | V23: 0.11 | W23: 0.09 | X23: 0.09 | Y23: 0.08 | Z23: 0.10 | AA23: 0.10
A24: Mısır | B24: - | C24: - | D24: - | E24: - | F24: - | G24: - | H24: - | I24: - | J24: 0.08 | K24: 0.28 | L24: 0.43 | M24: 0.44 | N24: 0.55 | O24: 0.37 | P24: 0.17 | Q24: 0.07 | R24: 0.06 | S24: 0.05 | T24: 0.09 | U24: 0.05 | V24: 0.05 | W24: 0.06 | X24: 0.06 | Y24: 0.04 | Z24: 0.04 | AA24: 0.05
A25: Peru | B25: 0.07 | C25: 0.08 | D25: 0.06 | E25: 0.06 | F25: 0.05 | G25: 0.02 | H25: 0.02 | I25: 0.02 | J25: 0.02 | K25: 0.04 | L25: 0.06 | M25: 0.11 | N25: 0.05 | O25: 0.04 | P25: 0.03 | Q25: 0.04 | R25: 0.03 | S25: 0.02 | T25: 0.02 | U25: 0.01 | V25: 0.01 | W25: 0.03 | X25: 0.02 | Y25: - | Z25: 0.02 | AA25: 0.02
A26: Polonya | B26: 0.04 | C26: 0.05 | D26: 0.05 | E26: 0.07 | F26: 0.11 | G26: 0.05 | H26: 0.04 | I26: 0.04 | J26: 0.06 | K26: 0.10 | L26: 0.16 | M26: 0.20 | N26: 0.13 | O26: 0.13 | P26: 0.14 | Q26: 0.16 | R26: 0.12 | S26: - | T26: - | U26: - | V26: 0.10 | W26: 0.13 | X26: 0.09 | Y26: 0.07 | Z26: 0.14 | AA26: 0.00
A27: Rusya | B27: 0.00 | C27: 0.00 | D27: - | E27: - | F27: - | G27: - | H27: - | I27: - | J27: - | K27: - | L27: - | M27: - | N27: - | O27: - | P27: - | Q27: - | R27: 0.16 | S27: 0.11 | T27: 0.11 | U27: 0.11 | V27: 0.10 | W27: 0.09 | X27: 0.09 | Y27: 0.11 | Z27: 0.21 | AA27: 0.23
A28: Sri Lanka | B28: 0.01 | C28: 0.02 | D28: 0.02 | E28: 0.01 | F28: 0.01 | G28: 0.01 | H28: 0.02 | I28: 0.04 | J28: 0.03 | K28: 0.04 | L28: 0.04 | M28: 0.03 | N28: 0.02 | O28: 0.03 | P28: 0.10 | Q28: - | R28: 0.03 | S28: 0.02 | T28: 0.03 | U28: 0.02 | V28: 0.01 | W28: 0.02 | X28: 0.01 | Y28: 0.01 | Z28: 0.02 | AA28: 0.07
A29: Şili | B29: 0.11 | C29: 0.09 | D29: 0.05 | E29: 0.09 | F29: 0.08 | G29: 0.06 | H29: 0.04 | I29: 0.09 | J29: 0.12 | K29: 0.15 | L29: 0.19 | M29: 0.28 | N29: 0.20 | O29: 0.22 | P29: 0.25 | Q29: 0.22 | R29: 0.17 | S29: 0.16 | T29: 0.11 | U29: 0.09 | V29: 0.09 | W29: 0.14 | X29: 0.15 | Y29: 0.14 | Z29: 0.15 | AA29: 0.13
A30: Tayland | B30: 0.28 | C30: 0.16 | D30: 0.18 | E30: 0.29 | F30: 0.17 | G30: 0.26 | H30: 0.31 | I30: 0.67 | J30: 0.67 | K30: 0.51 | L30: 0.46 | M30: 0.45 | N30: 0.40 | O30: 0.45 | P30: 0.63 | Q30: 0.60 | R30: 0.59 | S30: 0.90 | T30: 0.78 | U30: 0.72 | V30: 0.80 | W30: 0.75 | X30: 0.76 | Y30: 0.68 | Z30: 0.92 | AA30: 1.09
A31: TÜRKİYE | B31: 0.15 | C31: 0.22 | D31: 0.25 | E31: 0.32 | F31: 0.67 | G31: 0.38 | H31: 0.30 | I31: 0.32 | J31: 0.37 | K31: 0.42 | L31: 0.42 | M31: 0.46 | N31: 0.34 | O31: 0.50 | P31: 0.56 | Q31: 0.51 | R31: 0.45 | S31: 0.51 | T31: 0.49 | U31: 0.52 | V31: 0.38 | W31: 0.44 | X31: 0.47 | Y31: 0.46 | Z31: 1.25 | AA31: 0.68
A32: Yunanistan | B32: 0.06 | C32: 0.15 | D32: 0.35 | E32: 1.27 | F32: 0.71 | G32: 0.28 | H32: 0.15 | I32: 0.20 | J32: 0.18 | K32: 0.26 | L32: 0.39 | M32: 0.53 | N32: 0.32 | O32: 0.22 | P32: 0.14 | Q32: 0.10 | R32: 0.06 | S32: 0.10 | T32: 0.16 | U32: 0.10 | V32: 0.07 | W32: 0.07 | X32: 0.06 | Y32: 0.08 | Z32: 0.09 | AA32: 0.08
A33: Kaynak: IMF, WFE
A34: * Gölgeli hücrelerdeki GSYH rakamları IMF tahminidir.
A35: Güncelleme tarihi: 03.02.2022
A37: İÇİNDEKİLER SAYFASI

Sheet I.6
A1: I.6. BORSALARDA İŞLEM GÖREN ŞİRKET SAYILARI (yerli ve yabancı toplamı)
A3: Ülkeler | B3: 1996 | C3: 1997 | D3: 1998 | E3: 1999 | F3: 2000 | G3: 2001 | H3: 2002 | I3: 2003 | J3: 2004 | K3: 2005 | L3: 2006 | M3: 2007 | N3: 2008 | O3: 2009 | P3: 2010 | Q3: 2011 | R3: 2012 | S3: 2013 | T3: 2014 | U3: 2015 | V3: 2016 | W3: 2017 | X3: 2018 | Y3: 2019 | Z3: 2020 | AA3: 2021 | AB3: 2022/09
A4: Almanya | B4: - | C4: - | D4: 662 | E4: 851 | F4: 983 | G4: 983 | H4: 934 | I4: 866 | J4: 819 | K4: 764 | L4: 760 | M4: 866 | N4: 832 | O4: 783 | P4: 765 | Q4: 746 | R4: 747 | S4: 720 | T4: 670 | U4: 619 | V4: 592 | W4: 499 | X4: 514 | Y4: 522 | Z4: 485 | AA4: - | AB4: 502
A5: ABD | B5: 8,783 | C5: 8,823 | D5: 8,449 | E5: 8,504 | F5: 7,851 | G5: 7,069 | H5: 6,586 | I5: 6,159 | J5: 6,097 | K5: 6,029 | L5: 6,005 | M5: 5,941 | N5: 5,472 | O5: 5,179 | P5: 5,095 | Q5: 4,988 | R5: 4,916 | S5: 5,008 | T5: 5,248 | U5: 5,283 | V5: 5,204 | W5: 5,235 | X5: 5,343 | Y5: 4,792 | Z5: 4,891 | AA5: 6,203 | AB5: 3,783
A6: Arjantin | B6: 147 | C6: 136 | D6: 131 | E6: 125 | F6: 125 | G6: 119 | H6: 114 | I6: 110 | J6: 107 | K6: 104 | L6: 106 | M6: 111 | N6: 112 | O6: 106 | P6: 106 | Q6: 105 | R6: 107 | S6: 103 | T6: 101 | U6: 99 | V6: 99 | W6: 102 | X6: 99 | Y6: 92 | Z6: - | AA6: - | AB6: -
A7: Avusturya | B7: 142 | C7: 138 | D7: 128 | E7: 114 | F7: 111 | G7: 111 | H7: 129 | I7: 125 | J7: 120 | K7: 111 | L7: 113 | M7: 119 | N7: 118 | O7: 115 | P7: 110 | Q7: 105 | R7: 99 | S7: 102 | T7: 99 | U7: 92 | V7: 83 | W7: 536 | X7: 677 | Y7: 778 | Z7: 809 | AA7: 873 | AB7: 860
A8: Brezilya | B8: 551 | C8: 545 | D8: 535 | E8: 487 | F8: 467 | G8: 441 | H8: 412 | I8: 391 | J8: 388 | K8: 381 | L8: 350 | M8: 404 | N8: 392 | O8: 386 | P8: 373 | Q8: 373 | R8: 364 | S8: 363 | T8: 366 | U8: 359 | V8: 349 | W8: 343 | X8: 339 | Y8: 328 | Z8: 349 | AA8: - | AB8: 376
A9: Çin | B9: - | C9: - | D9: - | E9: - | F9: - | G9: 1,154 | H9: 1,223 | I9: 1,285 | J9: 1,373 | K9: 1,377 | L9: 1,421 | M9: 1,530 | N9: 1,604 | O9: 1,700 | P9: 2,063 | Q9: 2,342 | R9: 2,494 | S9: 2,489 | T9: 2,613 | U9: 2,926 | V9: 3,052 | W9: 3,485 | X9: 3,584 | Y9: 3,777 | Z9: 4,154 | AA9: 4,615 | AB9: 4,841
A10: Danimarka | B10: 249 | C10: 249 | D10: 254 | E10: 242 | F10: 235 | G10: 217 | H10: 201 | I10: 194 | J10: 183 | K10: - | L10: - | M10: - | N10: - | O10: - | P10: - | Q10: - | R10: - | S10: - | T10: - | U10: - | V10: - | W10: - | X10: - | Y10: - | Z10: - | AB10: -
A11: Endonezya | B11: 252 | C11: 281 | D11: 287 | E11: 276 | F11: 286 | G11: 315 | H11: 331 | I11: 333 | J11: 331 | K11: 336 | L11: 344 | M11: 383 | N11: 396 | O11: 398 | P11: 420 | Q11: 440 | R11: 459 | S11: 483 | T11: - | U11: 521 | V11: 537 | W11: 566 | X11: - | Y11: 668 | Z11: 713 | AA11: 766 | AB11: -
A12: Filipinler | B12: 216 | C12: 221 | D12: 222 | E12: 226 | F12: 230 | G12: 232 | H12: 234 | I12: 236 | J12: 235 | K12: 237 | L12: 239 | M12: 244 | N12: 246 | O12: 248 | P12: 253 | Q12: 253 | R12: 254 | S12: 257 | T12: - | U12: 265 | V12: 265 | W12: 267 | X12: 267 | Y12: 268 | Z12: 271 | AA12: 276 | AB12: 284
A13: Finlandiya | B13: 71 | C13: 126 | D13: 131 | E13: 150 | F13: 158 | G13: 155 | H13: 149 | I13: 145 | J13: 137 | K13: - | L13: - | M13: - | N13: - | O13: - | P13: - | Q13: - | R13: - | S13: - | T13: - | U13: - | V13: - | W13: - | X13: - | Y13: - | Z13: - | AB13: -
A14: Hindistan* | B14: - | C14: - | D14: - | E14: - | F14: - | G14: 1,041 | H14: 916 | I14: 911 | J14: 5,687 | K14: 5,797 | L14: 5,952 | M14: 6,217 | N14: 6,327 | O14: 6,408 | P14: 6,586 | Q14: 6,752 | R14: 6,856 | S14: 6,973 | T14: 7,250 | U14: 7,630 | V14: 7,661 | W14: 7,513 | X14: 6,989 | Y14: 7,474 | Z14: 1,959 | AA14: 2,053 | AB14: 2,126
A15: İrlanda | B15: 86 | C15: 102 | D15: 100 | E15: 101 | F15: 96 | G15: 87 | H15: 76 | I15: 66 | J15: 65 | K15: 66 | L15: 70 | M15: 73 | N15: 68 | O15: 64 | P15: 59 | Q15: 55 | R15: 50 | S15: 50 | T15: 52 | U15: 53 | V15: 51 | W15: 52 | X15: 54 | Y15: - | Z15: - | AB15: -
A16: İspanya | B16: - | C16: - | D16: - | E16: - | F16: - | G16: - | H16: - | I16: - | J16: - | K16: - | L16: 3,378 | M16: 3,537 | N16: 3,576 | O16: 3,472 | P16: 3,345 | Q16: 3,276 | R16: 3,200 | S16: 3,245 | T16: 3,452 | U16: 3,651 | V16: 3,506 | W16: 3,136 | X16: 3,006 | Y16: 2,896 | Z16: 2,738 | AA16: 2,585 | AB16: 2,243
A17: İsrail | B17: 655 | C17: 659 | D17: 662 | E17: 654 | F17: 665 | G17: 649 | H17: 624 | I17: 577 | J17: 578 | K17: 584 | L17: 606 | M17: 657 | N17: 642 | O17: 622 | P17: 613 | Q17: 593 | R17: 549 | S17: 508 | T17: 473 | U17: 461 | V17: 491 | W17: 457 | X17: 448 | Y17: 442 | Z17: 455 | AA17: 541 | AB17: 550
A18: Japonya | B18: 3,089 | C18: 3,140 | D18: 3,162 | E18: 3,216 | F18: 3,406 | G18: 3,476 | H18: 3,465 | I18: 3,346 | J18: 3,396 | K18: 2,796 | L18: 3,854 | M18: 3,870 | N18: 3,786 | O18: 3,656 | P18: 3,565 | Q18: 3,520 | R18: 3,481 | S18: 3,419 | T18: 3,470 | U18: 3,513 | V18: 3,541 | W18: 3,604 | X18: 3,657 | Y18: 3,708 | Z18: 3,758 | AA18: 3,758 | AB18: 3,830
A19: Kanada | B19: 1,323 | C19: 1,420 | D19: 1,433 | E19: 1,456 | F19: 1,394 | G19: 1,299 | H19: 3,791 | I19: 3,599 | J19: 3,604 | K19: 3,758 | L19: 3,842 | M19: 3,951 | N19: 3,841 | O19: 3,700 | P19: 3,741 | Q19: 3,945 | R19: 3,972 | S19: 3,886 | T19: 3,761 | U19: 3,559 | V19: 3,419 | W19: 3,328 | X19: 3,383 | Y19: 3,413 | Z19: 3,394 | AA19: 3,504 | AB19: -
A20: Kolombiya | B20: - | C20: - | D20: - | E20: - | F20: - | G20: - | H20: - | I20: 108 | J20: 106 | K20: 98 | L20: 94 | M20: 90 | N20: 89 | O20: 87 | P20: 86 | Q20: 83 | R20: 82 | S20: 78 | T20: 74 | U20: 73 | V20: 70 | W20: 69 | X20: 68 | Y20: 68 | Z20: 66 | AA20: 65 | AB20: 65
A21: Kore | C21: 776 | D21: 748 | E21: 712 | F21: 702 | G21: 688 | H21: 682 | I21: 684 | J21: 683 | K21: 1,616 | L21: 1,689 | M21: 1,757 | N21: 1,793 | O21: 1,788 | P21: 1,798 | Q21: 1,816 | R21: 1,784 | S21: 1,813 | T21: 1,864 | U21: 1,961 | V21: 2,059 | W21: 2,134 | X21: 2,207 | Y21: 2,283 | Z21: 2,340 | AA21: 2,406 | AB21: 2,438
A22: Lüksemburg | B22: 278 | C22: 284 | D22: 276 | E22: 277 | F22: 270 | G22: 257 | H22: 245 | I22: 242 | J22: 234 | K22: 245 | L22: 260 | M22: 261 | N22: 262 | O22: 266 | P22: 289 | Q22: 298 | R22: 293 | S22: 274 | T22: 220 | U22: 192 | V22: 180 | W22: 168 | X22: 162 | Y22: 149 | Z22: 144 | AA22: 130 | AB22: 129
A23: Macaristan | B23: - | C23: - | D23: - | E23: - | F23: 59 | G23: 56 | H23: 48 | I23: 51 | J23: 46 | K23: 44 | L23: 41 | M23: 41 | N23: 43 | O23: 47 | P23: 52 | Q23: 54 | R23: 52 | S23: 50 | T23: 48 | U23: 45 | V23: 43 | W23: 41 | X23: 43 | Y23: 44 | Z23: 45 | AA23: 50 | AB23: 56
A24: Malezya | B24: 618 | C24: 703 | D24: 731 | E24: 752 | F24: 790 | G24: 807 | H24: 861 | I24: 902 | J24: 959 | K24: 1,019 | L24: 1,025 | M24: 986 | N24: 976 | O24: 959 | P24: 956 | Q24: 940 | R24: 920 | S24: 910 | T24: 905 | U24: 902 | V24: 903 | W24: 904 | X24: 912 | Y24: 927 | Z24: 934 | AA24: 947 | AB24: 965
A25: Meksika | B25: 193 | C25: 198 | D25: 195 | E25: 190 | F25: 177 | G25: 172 | H25: 169 | I25: 237 | J25: 326 | K25: 326 | L25: 335 | M25: 367 | N25: 373 | O25: 406 | P25: 427 | Q25: 476 | R25: 136 | S25: 143 | T25: 147 | U25: 143 | V25: 144 | W25: 148 | X25: 145 | Y25: 144 | Z25: 145 | AA25: 144 | AB25: 141
A26: Mısır | B26: - | C26: - | D26: - | E26: - | F26: - | G26: - | H26: - | I26: - | J26: 795 | K26: 744 | L26: 595 | M26: 435 | N26: 373 | O26: 313 | P26: 228 | Q26: 232 | R26: 235 | S26: 236 | T26: 247 | U26: 252 | V26: 254 | W26: 255 | X26: 252 | Y26: 247 | Z26: 241 | AA26: 242 | AB26: 242
A27: NNE- Nasdaq Nordic and Baltics | B27: - | C27: - | D27: - | E27: - | F27: - | G27: - | H27: - | I27: - | J27: - | K27: 678 | L27: 791 | M27: 851 | N27: 824 | O27: 797 | P27: 754 | Q27: 773 | R27: 751 | S27: 755 | T27: 787 | U27: 832 | V27: 938 | W27: 984 | X27: 1,019 | Y27: 1,082 | Z27: 1,071 | AA27: 1,236 | AB27: 1,253
A28: Peru | B28: 238 | C28: 248 | D28: 249 | E28: 239 | F28: 227 | G28: 227 | H28: 230 | I28: 227 | J28: 224 | K28: 224 | L28: 221 | M28: 226 | N28: 244 | O28: 241 | P28: 248 | Q28: 254 | R28: 277 | S28: 271 | T28: 263 | U28: 310 | V28: 332 | W28: 258 | X28: 225 | Y28: 210 | Z28: 213 | AA28: 204 | AB28: 205
A29: Polonya | B29: 83 | C29: 143 | D29: 198 | E29: 221 | F29: 225 | G29: 230 | H29: 216 | I29: 203 | J29: 230 | K29: 241 | L29: 265 | M29: 375 | N29: 458 | O29: 486 | P29: 584 | Q29: 777 | R29: 867 | S29: 895 | T29: 902 | U29: 905 | V29: 893 | W29: 890 | X29: 851 | Y29: 824 | Z29: 806 | AA29: 810 | AB29: 795
A30: Rusya | C30: - | D30: - | E30: - | F30: - | G30: - | H30: - | I30: - | J30: - | K30: - | L30: - | M30: - | N30: - | O30: - | P30: - | Q30: - | R30: 293 | S30: 262 | T30: 257 | U30: 254 | V30: 245 | W30: 234 | X30: 225 | Y30: 217 | Z30: 270 | AA30: 719 | AB30: 859
A31: Sri Lanka | B31: 235 | C31: 239 | D31: 240 | E31: 237 | F31: 239 | G31: 238 | H31: 238 | I31: 244 | J31: 242 | K31: 239 | L31: 237 | M31: 235 | N31: 235 | O31: 231 | P31: 241 | Q31: 272 | R31: 287 | S31: 289 | T31: 294 | U31: 294 | V31: 295 | W31: 296 | X31: 297 | Y31: 283 | Z31: 294 | AA31: 296 | AB31: 294
A32: Şili | B32: 290 | C32: 294 | D32: 287 | E32: 282 | F32: 261 | G32: 249 | H32: 246 | I32: 240 | J32: 240 | K32: 246 | L32: 246 | M32: 241 | N32: 238 | O32: 236 | P32: 231 | Q32: 267 | R32: 245 | S32: 306 | T32: 307 | U32: 310 | V32: 298 | W32: 293 | X32: 285 | Y32: 265 | Z32: 265 | AA32: 204 | AB32: 292
A33: Tayland | B33: 454 | C33: 431 | D33: 418 | E33: 392 | F33: 381 | G33: 385 | H33: 398 | I33: 420 | J33: 463 | K33: 504 | L33: 518 | M33: 523 | N33: 525 | O33: 535 | P33: 541 | Q33: 545 | R33: 558 | S33: 585 | T33: 613 | U33: 639 | V33: 656 | W33: 688 | X33: 704 | Y33: 725 | Z33: 743 | AA33: 776 | AB33: 791
A34: TÜRKİYE** | B34: 228 | C34: 259 | D34: 278 | E34: 286 | F34: 316 | G34: 311 | H34: 289 | I34: 298 | J34: 307 | K34: 316 | L34: 329 | M34: 332 | N34: 323 | O34: 322 | P34: 344 | Q34: 368 | R34: 404 | S34: 424 | T34: 425 | U34: 416 | V34: 405 | W34: 399 | X34: 404 | Y34: 402 | Z34: 394 | AA34: 446 | AB34: 476
A35: Yunanistan | B35: 200 | C35: 210 | D35: 229 | E35: 262 | F35: 310 | G35: 314 | H35: 324 | I35: 332 | J35: 341 | K35: 304 | L35: 290 | M35: 283 | N35: 285 | O35: 288 | P35: 280 | Q35: 272 | R35: 265 | S35: 251 | T35: 244 | U35: 240 | V35: 218 | W35: 200 | X35: 187 | Y35: 181 | Z35: 176 | AA35: 160 | AB35: 160
A36: Kaynak:WFE, SPK
A37: Not 1: NNE (Nasdaq Nordic Exchange), Helsinki, İzlanda,Kopenhag, Riga, Stockholm, Tallinn ve Vilnius Borsalarından oluşmaktadır.
A38: Not 2: Ülkelerin rakamlarına WFE'de verilen o ülkeye ait olan borsa ya da borsaların verileri toplanarak ulaşılmıştır.
A39: * Hindistan için 2004 yılı öncesi rakamları National Stock Exchange India verilerinden oluşmaktadır.
A40: ** Türkiye için kaynak SPK Aylık İstatistik Bültenidir.
A41: Güncelleme tarihi: 25.11.2022
A43: İÇİNDEKİLER SAYFASI

Sheet I.7
A1: I.7.2 YATIRIM FONLARI NET AKTİF DEĞERİ (milyon euro)
A3: Ülkeler | B3: 2015 | C3: 2016 | D3: 2017 | E3: 2018 | F3: 2019 | G3: 2020 | H3: 2021 | I3: 2022/06
A5: Amerika
A6: ABD | B6: 16,306,052 | C6: 17,899,730 | D6: 18,466,594 | E6: 18,408,328 | F6: 22,865,644 | G6: 23,903,854 | H6: 30,156,253 | I6: 27,396,729
A7: Arjantin | B7: 15,096 | C7: 19,153 | D7: 24,358 | E7: 13,888 | F7: 12,280 | G7: 18,227 | H7: 30,516 | I7: 33,982
A8: Brezilya | B8: 682,952 | C8: 1,006,454 | D8: 1,032,301 | E8: 1,058,023 | F8: 1,187,126 | G8: 940,816 | H8: 1,087,277 | I8: 1,301,995
A9: Kanada | B9: 817,131 | C9: 944,967 | D9: 1,077,315 | E9: 1,016,130 | F9: 1,257,777 | G9: 1,307,076 | H9: 1,693,592 | I9: 1,571,754
A10: Kosta Rika | B10: 2,327 | C10: 2,179 | D10: 2,039 | E10: 1,851 | F10: 2,323 | G10: 2,589 | H10: 3,203 | I10: 3,282
A11: Meksika | B11: 97,309 | C11: 87,686 | D11: 91,261 | E11: 95,833 | F11: 109,729 | G11: 101,342 | H11: 113,407 | I11: 127,541
A12: Şili | B12: 36,647 | C12: 43,842 | D12: 45,647 | E12: 45,849 | F12: 52,599 | G12: 58,275 | H12: 52,718 | I12: 47,365
A13: Avrupa
A14: Almanya | B14: 1,653,122 | C14: 1,796,530 | D14: 1,927,834 | E14: 1,920,092 | F14: 2,215,333 | G14: 2,366,897 | H14: 2,620,910 | I14: 2,344,486
A15: Avusturya | B15: 138,880 | C15: 143,192 | D15: 149,419 | E15: 144,136 | F15: 162,076 | G15: 170,195 | H15: 195,649 | I15: 173,603
A16: Belçika | B16: 84,610 | C16: 79,968 | D16: 98,327 | E16: 85,675 | F16: 95,572 | G16: 96,968 | H16: 125,736 | I16: 107,231
A17: Çek Cumhuriyeti | B17: 7,176 | C17: 8,444 | D17: 10,692 | E17: 10,929 | F17: 13,462 | G17: 15,234 | H17: 18,278 | I17: 18,422
A18: Danimarka | B18: 102,424 | C18: 110,909 | D18: 121,602 | E18: 120,727 | F18: 134,639 | G18: 144,389 | H18: 168,222 | I18: 142,473
A19: Finlandiya | B19: 81,153 | C19: 88,945 | D19: 92,552 | E19: 87,341 | F19: 98,087 | G19: 103,470 | H19: 126,448 | I19: 107,480
A20: Fransa | B20: 1,682,808 | C20: 1,783,830 | D20: 1,929,115 | E20: 1,812,023 | F20: 1,960,290 | G20: 2,066,996 | H20: 2,231,487 | I20: 2,048,813
A21: Hollanda | B21: 669,694 | C21: 732,367 | D21: 769,840 | E21: 749,940 | F21: 854,753 | G21: 904,572 | H21: 908,587 | I21: 759,131
A22: Birleşik Krallık | B22: 1,454,560 | C22: 1,433,427 | D22: 1,596,722 | E22: 1,469,744 | F22: 1,681,708 | G22: 1,712,620 | H22: 2,053,756 | I22: 1,763,803
A23: İrlanda | B23: 1,898,825 | C23: 2,084,748 | D23: 2,396,089 | E23: 2,421,457 | F23: 3,048,404 | G23: 3,324,194 | H23: 4,067,836 | I23: 3,695,595
A24: İspanya | B24: 252,333 | C24: 266,413 | D24: 292,927 | E24: 283,717 | F24: 303,439 | G24: 301,578 | H24: 343,653 | I24: 317,303
A25: İsveç | B25: 257,166 | C25: 271,712 | D25: 296,804 | E25: 293,586 | F25: 367,314 | G25: 422,332 | H25: 538,147 | I25: 427,875
A26: İsviçre | B26: 419,915 | C26: 451,417 | D26: 465,913 | E26: 463,734 | F26: 581,563 | G26: 610,653 | H26: 622,485 | I26: 597,475
A27: İtalya | B27: 190,931 | C27: 192,946 | D27: 217,114 | E27: 206,554 | F27: 213,204 | G27: 211,748 | H27: 228,518 | I27: 202,652
A28: Lihtenştayn | B28: 41,276 | C28: 43,282 | D28: 45,588 | E28: 44,428 | F28: 53,525 | G28: 54,776 | H28: 67,712 | I28: 69,518
A29: Lüksemburg | B29: 3,506,201 | C29: 3,701,076 | D29: 4,159,614 | E29: 4,064,644 | F29: 4,718,914 | G29: 4,973,780 | H29: 5,859,485 | I29: 5,169,618
A30: Macaristan | B30: 13,617 | C30: 13,833 | D30: 14,160 | E30: 13,525 | F30: 12,989 | G30: 12,399 | H30: 12,987 | I30: 11,762
A31: Norveç | B31: 94,173 | C31: 108,108 | D31: 115,682 | E31: 120,570 | F31: 134,606 | G31: 142,623 | H31: 181,905 | I31: 156,465
A32: Polonya | B32: 29,656 | C32: 28,054 | D32: 34,562 | E32: 34,732 | F32: 35,789 | G32: 35,028 | H32: 36,560 | I32: 28,249
A33: Portekiz | B33: 20,456 | C33: 19,077 | D33: 19,759 | E33: 11,853 | F33: 13,209 | G33: 14,707 | H33: 18,108 | I33: 16,401
A34: Romanya | B34: 4,627 | C34: 4,812 | D34: 4,858 | E34: 4,128 | F34: 4,685 | G34: 4,026 | H34: 4,565 | I34: 3,521
A35: Slovakya | B35: 5,697 | C35: 5,887 | D35: 6,578 | E35: 6,605 | F35: 7,414 | G35: 7,833 | H35: 9,420 | I35: 8,924
A36: TÜRKİYE | B36: 11,837 | C36: 11,647 | D36: 10,994 | E36: 6,469 | F36: 15,394 | G36: 14,423 | H36: 18,014 | I36: 20,732
A37: Yunanistan | B37: 3,942 | C37: 3,900 | D37: 4,494 | E37: 4,143 | F37: 5,633 | G37: 5,746 | H37: 7,120 | I37: 6,464
A38: Asya ve Pasifik
A39: Avusturalya | B39: 1,397,367 | C39: 1,530,257 | D39: 1,787,753 | E39: 1,699,942 | F39: 1,951,722 | G39: 1,998,948 | H39: 2,315,638 | I39: 2,297,519
A40: Çin | B40: 1,160,219 | C40: 1,164,538 | D40: 1,408,305 | E40: 1,544,626 | F40: 1,682,948 | G40: 2,163,744 | H40: 3,116,791 | I40: 3,379,540
A41: Filipinler | B41: 4,619 | C41: 4,645 | D41: 4,938 | E41: 4,259 | F41: 4,993 | G41: 6,109 | H41: 7,689 | I41: 7,626
A42: Güney Kore | B42: 315,324 | C42: 351,580 | D42: 376,791 | E42: 404,492 | F42: 479,095 | G42: 501,244 | H42: 567,965 | I42: 579,230
A43: Hindistan | B43: 154,484 | C43: 205,678 | D43: 256,305 | E43: 259,273 | F43: 307,639 | G43: 327,716 | H43: 437,848 | I43: 429,271
A44: Japonya | B44: 1,220,386 | C44: 1,395,418 | D44: 1,467,063 | E44: 1,575,990 | F44: 1,837,428 | G44: 1,950,019 | H44: 2,132,241 | I44: 1,871,572
A45: Pakistan | B45: 3,825 | C45: 5,085 | D45: 3,828 | E45: 3,190 | F45: 3,577 | G45: 4,709 | H45: 5,500 | I45: 5,774
A46: Tayvan | B46: 58,002 | C46: - | D46: 60,731 | E46: 68,941 | F46: 114,383 | G46: 126,887 | H46: 152,080 | I46: 146,180
A47: Yeni Zelanda | B47: 38,494 | C47: 46,127 | D47: 47,896 | E47: 51,846 | F47: 69,830 | G47: 76,449 | H47: 96,422 | I47: 89,164
A48: Afrika
A49: Güney Afrika | B49: 112,122 | C49: 138,338 | D49: 151,556 | E49: 135,367 | F49: 157,954 | G49: 151,425 | H49: 173,906 | I49: 176,521
A50: Kaynak: EFAMA
A51: Not: İrlanda, İspanya, Fransa, Hırvatistan,Japonya, Hollanda, Lüksemburg, Norveç, Slovakya ve Türkiye dışındaki ülkeler için fon sepeti fonları dahil edilmemektedir.
A53: Güncelleme tarihi: 02.11.2022
A55: İÇİNDEKİLER SAYFASI

Sheet I.8
A1: I.8. YATIRIM FONLARI SAYISI
N2: 2011 | O2: 2012 | Q2: 2014 | R2: 2015 | S2: 2016 | W2: 2020 | Y2: 2022/06
A3: Ülkeler | B3: 2002 | C3: 2003 | D3: 2004 | E3: 2005 | G3: 2006 | I3: 2006 | J3: 2007 | K3: 2008 | L3: 2009 | M3: 2010 | P3: 2013 | T3: 2017 | U3: 2018 | V3: 2019 | X3: 2021
F4: 1. çeyrek | G4: 2. çeyrek | H4: 3. çeyrek
A5: Amerika
A6: ABD | B6: 8,244 | C6: 8,126 | D6: 8,041 | E6: 7,975 | F6: 7,992 | G6: 7,989 | H6: 8,056 | I6: 8,117 | J6: 8,027 | K6: 8,022 | L6: 7,663 | M6: 7,548 | N6: 7,580 | O6: 7,582 | P6: 7,707 | Q6: 7,923 | R6: 9,710 | S6: 9,782 | T6: 9,788 | U6: 10,066 | V6: 10,040 | W6: 9,832 | X6: 10,051 | Y6: 10,185
A7: Arjantin | B7: 211 | C7: 186 | D7: 186 | E7: 200 | F7: 210 | G7: 212 | H7: 218 | I7: 223 | J7: 241 | K7: 253 | L7: 252 | M7: 254 | N7: 281 | O7: 291 | P7: 297 | Q7: 302 | R7: 346 | S7: 420 | T7: 487 | U7: 544 | V7: 577 | W7: 550 | X7: 640 | Y7: 664
A8: Brezilya | B8: 2,755 | C8: 2,805 | D8: 2,859 | E8: 2,685 | F8: 2,729 | G8: 2,961 | H8: 2,994 | I8: 2,907 | J8: 3,381 | K8: 4,169 | L8: 4,744 | M8: 5,618 | N8: 6,513 | O8: 7,468 | P8: 8,072 | Q8: 8,560 | R8: 8,783 | S8: 9,224 | T8: 9,774 | U8: 10,257 | V8: 11,099 | W8: 12,905 | X8: 15,249 | Y8: 16,246
A9: Kanada | B9: 1,956 | C9: 1,887 | D9: 1,915 | E9: 1,695 | F9: 1,723 | G9: 1,748 | H9: 1,748 | I9: 1,764 | J9: 2,038 | K9: 2,015 | L9: 2,075 | M9: 2,117 | N9: 2,655 | O9: 2,866 | P9: 2,963 | Q9: 3,164 | R9: 3,283 | S9: 3,298 | T9: 3,867 | U9: 4,086 | V9: 3,524 | W9: 3,574 | X9: 3,594 | Y9: 3,679
A10: Kosta Rika | B10: 128 | C10: 129 | D10: 115 | E10: 110 | F10: 110 | G10: 108 | H10: 103 | I10: 100 | J10: 93 | K10: 85 | L10: 64 | M10: 68 | N10: 63 | O10: 66 | P10: 66 | Q10: 66 | R10: 65 | S10: 67 | T10: 67 | U10: 71 | V10: 66 | W10: 60 | X10: 65 | Y10: 67
A11: Meksika | B11: 364 | C11: 374 | D11: 411 | E11: 416 | F11: 426 | G11: 428 | H11: 433 | I11: 437 | J11: 420 | K11: 431 | L11: 407 | M11: 434 | N11: 464 | O11: 488 | P11: 487 | Q11: 486 | R11: 499 | S11: 524 | T11: 553 | U11: 575 | V11: 553 | W11: 550 | X11: 548 | Y11: 548
A12: Şili | B12: 226 | C12: 414 | D12: 537 | E12: 683 | F12: 714 | G12: 773 | H12: 838 | I12: 926 | J12: 1,260 | K12: 1,484 | L12: 1,691 | M12: 1,912 | N12: 2,150 | O12: 2,286 | P12: 2,385 | Q12: 2,418 | R12: 2,500 | S12: 2,539 | T12: 2,673 | U12: 2,726 | V12: 2,820 | W12: 2,819 | X12: 2,892 | Y12: 2,898
A13: Avrupa
A14: Almanya | B14: 1,092 | C14: 1,050 | D14: 1,041 | E14: 1,076 | F14: 1,121 | G14: 1,154 | H14: 1,172 | I14: 1,199 | J14: 1,462 | K14: 1,675 | L14: 2,067 | M14: 2,106 | N14: 2,051 | O14: 2,059 | P14: 2,012 | Q14: 2,039 | R14: 5,604 | S14: 5,678 | T14: 5,863 | U14: 6,149 | V14: 6,392 | W14: 6,705 | X14: 7,067 | Y14: 7,142
A15: Avusturya | B15: 808 | C15: 833 | D15: 840 | E15: 881 | F15: 906 | G15: 929 | H15: 936 | I15: 948 | J15: 1,070 | K15: 1,065 | L15: 1,016 | M15: 1,016 | N15: 1,003 | O15: 995 | P15: 981 | Q15: 938 | R15: 1,596 | S15: 1,575 | T15: 1,580 | U15: 1,603 | V15: 1,554 | W15: 1,600 | X15: 1,641 | Y15: 1,661
A16: Belçika | B16: 1,141 | C16: 1,224 | D16: 1,281 | E16: 1,391 | F16: 1,435 | G16: 1,492 | H16: 1,531 | I16: 1,549 | J16: 1,655 | K16: 1,828 | L16: 1,845 | M16: 1,797 | N16: 1,723 | O16: 1,529 | P16: 1,432 | Q16: 1,209 | R16: 1,164 | S16: 962 | T16: 890 | U16: 735 | V16: 587 | W16: 526 | X16: 436 | Y16: 430
A17: Çek Cumhuriyeti | B17: 76 | C17: 58 | D17: 53 | E17: 51 | F17: 51 | G17: 55 | H17: 59 | I17: 52 | J17: 66 | K17: 76 | L17: 78 | M17: 80 | N17: 80 | O17: 80 | P17: 85 | Q17: 106 | R17: 128 | S17: 129 | T17: 147 | U17: 159 | V17: 170 | W17: 177 | X17: 190 | Y17: 207
A18: Danimarka | B18: 485 | C18: 400 | D18: 423 | E18: 471 | F18: 476 | G18: 491 | H18: 496 | I18: 494 | J18: 500 | K18: 489 | L18: 483 | M18: 490 | N18: 500 | O18: 495 | P18: 510 | Q18: 530 | R18: 532 | S18: 558 | T18: 565 | U18: 599 | V18: 621 | W18: 664 | X18: 481 | Y18: 474
A19: Finlandiya | B19: 312 | C19: 249 | D19: 280 | E19: 333 | F19: 344 | G19: 338 | H19: 337 | I19: 376 | J19: 379 | K19: 389 | L19: 377 | M19: 366 | N19: 368 | O19: 375 | P19: 369 | Q19: 352 | R19: 371 | S19: 372 | T19: 380 | U19: 404 | V19: 389 | W19: 402 | X19: 398 | Y19: 395
A20: Fransa | B20: 7,773 | C20: 7,902 | D20: 7,908 | E20: 7,758 | F20: 7,849 | G20: 7,894 | H20: 8,027 | I20: 8,092 | J20: 8,243 | K20: 8,301 | L20: 7,982 | M20: 7,791 | N20: 7,744 | O20: 7,392 | P20: 7,154 | Q20: 7,082 | R20: 11,122 | S20: 10,952 | T20: 10,860 | U20: 10,804 | V20: 10,715 | W20: 10,802 | X20: 10,915 | Y20: 10,986
A21: Birleşik Krallık | B21: 1,787 | C21: 1,692 | D21: 1,710 | E21: 1,680 | F21: 1,955 | G21: 1,931 | H21: 1,899 | I21: 1,903 | J21: 2,057 | K21: 2,371 | L21: 2,266 | M21: 2,204 | N21: 1,941 | O21: 1,922 | P21: 1,910 | Q21: 1,920 | R21: 2,871 | S21: 2,802 | T21: 2,948 | U21: 3,033 | V21: 3,134 | W21: 3,179 | X21: 3,186 | Y21: 3,166
A22: İrlanda | B22: 1,905 | C22: 1,978 | D22: 2,088 | E22: 2,127 | F22: 2,165 | G22: 2,163 | H22: 2,275 | I22: 2,531 | J22: 2,898 | K22: 3,097 | L22: 2,721 | M22: 2,899 | N22: 3,085 | O22: 3,167 | P22: 3,345 | Q22: 3,462 | R22: 6,201 | S22: 6,470 | T22: 6,831 | U22: 7,285 | V22: 7,646 | W22: 7,948 | X22: 8,363 | Y22: 8,501
A23: İspanya | B23: 2,466 | C23: 2,471 | D23: 2,559 | E23: 2,672 | F23: 2,838 | G23: 2,893 | H23: 2,761 | I23: 3,235 | J23: 2,940 | K23: 2,944 | L23: 2,588 | M23: 2,486 | N23: 2,474 | O23: 2,349 | P23: 2,267 | Q23: 2,238 | R23: 2,238 | S23: 2,342 | T23: 2,332 | U23: 2,584 | V23: 2,651 | W23: 2,657 | X23: 2,742 | Y23: 2,831
A24: İsveç | B24: 512 | C24: 485 | D24: 461 | E24: 464 | F24: 464 | G24: 458 | H24: 469 | I24: 474 | J24: 477 | K24: 508 | L24: 506 | M24: 504 | N24: 508 | O24: 456 | P24: 484 | Q24: 510 | R24: 471 | S24: 496 | T24: 519 | U24: 528 | V24: 522 | W24: 526 | X24: 542 | Y24: 567
A25: İsviçre | B25: 512 | C25: 441 | D25: 385 | E25: 510 | F25: 646 | G25: 657 | H25: 612 | I25: 609 | J25: 567 | K25: 572 | L25: 509 | M25: 653 | N25: 664 | O25: 667 | P25: 765 | Q25: 843 | R25: 860 | S25: 858 | T25: 918 | U25: 887 | V25: 915 | W25: 916 | X25: 973 | Y25: 985
A26: İtalya | B26: 1,073 | C26: 1,012 | D26: 1,142 | E26: 1,035 | F26: 1,018 | G26: 1,021 | H26: 1,006 | I26: 989 | J26: 924 | K26: 742 | L26: 675 | M26: 650 | N26: 659 | O26: 600 | P26: 661 | Q26: 719 | R26: 713 | S26: 760 | T26: 832 | U26: 866 | V26: 912 | W26: 906 | X26: 912 | Y26: 880
A27: Lihtenştayn | B27: 111 | C27: 137 | D27: 171 | E27: 200 | F27: 206 | G27: 212 | H27: 226 | I27: 233 | J27: 391 | K27: 335 | L27: 348 | M27: 409 | N27: 437 | O27: 535 | P27: 657 | Q27: 587 | R27: 1,184 | S27: 1,287 | T27: 1,367 | U27: 1,566 | V27: 1,713 | W27: 1,900 | X27: 2,193 | Y27: 2,310
A28: Luksemburg | B28: 6,874 | C28: 6,578 | D28: 6,855 | E28: 7,222 | F28: 7,401 | G28: 7,525 | H28: 7,686 | I28: 7,919 | J28: 8,782 | K28: 9,351 | L28: 9,017 | M28: 9,353 | N28: 9,462 | O28: 9,435 | P28: 9,500 | Q28: 9,839 | R28: 14,108 | S28: 14,211 | T28: 14,728 | U28: 14,898 | V28: 14,808 | W28: 14,590 | X28: 14,445 | Y28: 14,363
A29: Macaristan | B29: 90 | D29: - | E29: - | F29: - | G29: - | H29: - | I29: - | J29: - | K29: - | L29: - | M29: - | N29: - | O29: - | P29: - | Q29: 307 | R29: 316 | S29: 306 | T29: 306 | U29: 298 | V29: 286 | W29: 287 | X29: 306 | Y29: 309
A30: Norveç | B30: 419 | C30: 375 | D30: 406 | E30: 419 | F30: 460 | G30: 472 | H30: 476 | I30: 524 | J30: 511 | K30: 530 | L30: 487 | M30: 507 | N30: 507 | O30: 406 | P30: 573 | Q30: 616 | R30: 700 | S30: 720 | T30: 754 | U30: 865 | V30: 1,047 | W30: 836 | X30: 836 | Y30: 836
A31: Polonya | B31: 107 | C31: 112 | D31: 130 | E31: 150 | F31: 147 | G31: 163 | H31: 147 | I31: 157 | J31: 188 | K31: 210 | L31: 208 | M31: 214 | N31: 226 | O31: 259 | P31: 264 | Q31: 278 | R31: 391 | S31: 423 | T31: 428 | U31: 440 | V31: 511 | W31: 561 | X31: 591 | Y31: 580
A32: Portekiz | B32: 170 | C32: 160 | D32: 163 | E32: 169 | F32: 174 | G32: 173 | H32: 174 | I32: 175 | J32: 180 | K32: 184 | L32: 171 | M32: 171 | N32: 173 | O32: 157 | P32: 153 | Q32: 184 | R32: 399 | S32: 373 | T32: 344 | U32: 136 | V32: 134 | W32: 132 | X32: 135 | Y32: 137
A33: Romanya | B33: 20 | C33: 20 | D33: 19 | E33: 23 | F33: 26 | G33: 31 | H33: 32 | I33: 32 | J33: 41 | K33: 52 | L33: 51 | M33: 56 | N33: 105 | O33: 62 | P33: 64 | Q33: 72 | R33: 74 | S33: 75 | T33: 74 | U33: 78 | V33: 81 | W33: 81 | X33: 86 | Y33: 84
A34: Slovakya | C34: 37 | D34: 40 | E34: 43 | F34: 48 | G34: 53 | H34: 48 | I34: 43 | J34: 54 | K34: 56 | L34: 54 | M34: 58 | N34: 63 | O34: 58 | P34: 54 | Q34: 87 | R34: 88 | S34: 87 | T34: 87 | U34: 86 | V34: 94 | W34: 90 | X34: 96 | Y34: 95
A35: TÜRKİYE | B35: 242 | C35: 241 | D35: 240 | E35: 275 | F35: 278 | G35: 279 | H35: 274 | I35: 282 | J35: 294 | K35: 304 | L35: 286 | M35: 311 | N35: 337 | O35: 351 | P35: 373 | Q35: 395 | R35: 387 | S35: 396 | T35: 387 | U35: 398 | V35: 401 | W35: 566 | X35: 795 | Y35: 949
A36: Yunanistan | B36: 260 | C36: 265 | D36: 262 | E36: 247 | F36: 248 | G36: 251 | H36: 248 | I36: 247 | J36: 230 | K36: 239 | L36: 210 | M36: 213 | N36: 196 | O36: 177 | P36: 166 | Q36: 143 | R36: 139 | S36: 135 | T36: 146 | U36: 175 | V36: 180 | W36: 193 | X36: 196 | Y36: 203
A37: Asya ve Pasifik
A38: Çin | B38: - | C38: - | D38: - | E38: - | I38: - | J38: 341 | K38: 429 | L38: 547 | M38: 660 | N38: 831 | O38: 1,065 | P38: 1,415 | Q38: 1,763 | R38: 2,558 | S38: 3,654 | T38: 4,361 | U38: 4,957 | V38: 5,683 | W38: 6,770 | X38: 8,103 | Y38: 8,765
A39: Filipinler | B39: 21 | C39: 21 | D39: 24 | E39: 32 | F39: 34 | G39: 34 | H39: 34 | I39: 38 | J39: 40 | K39: 43 | L39: 41 | M39: 43 | N39: 47 | O39: 48 | P39: 47 | Q39: 52 | R39: 55 | S39: 57 | T39: 60 | U39: 61 | V39: 67 | W39: 65 | X39: 65 | Y39: 67
A40: Güney Kore | B40: 5,873 | C40: 6,726 | D40: 6,636 | E40: 7,279 | F40: 7,478 | G40: 7,653 | H40: 7,536 | I40: 8,030 | J40: 8,609 | K40: 9,384 | L40: 8,703 | M40: 8,687 | N40: 9,064 | O40: 9,121 | P40: 9,876 | Q40: 11,063 | R40: 11,918 | S40: 12,626 | T40: 11,828 | U40: 13,258 | V40: 13,967 | W40: 13,014 | X40: 12,887 | Y40: 13,381
A41: Hindistan | B41: 312 | C41: 350 | D41: 394 | E41: 445 | F41: 463 | G41: 467 | H41: 468 | I41: 468 | J41: 555 | K41: 551 | L41: 590 | M41: 658 | N41: 680 | O41: 692 | P41: 699 | Q41: 723 | R41: 804 | S41: 795 | T41: 807 | U41: 831 | V41: 927 | W41: 974 | X41: 1,039 | Y41: 1,077
A42: Japonya | B42: 2,718 | C42: 2,617 | D42: 2,552 | E42: 2,640 | F42: 2,625 | G42: 2,678 | H42: 2,699 | I42: 2,753 | J42: 2,997 | K42: 3,333 | L42: 3,656 | M42: 3,905 | N42: 4,196 | O42: 4,384 | P42: 4,922 | Q42: 5,404 | R42: 9,804 | S42: 10,915 | T42: 11,662 | U42: 12,294 | V42: 12,863 | W42: 13,429 | X42: 14,145 | Y42: 14,330
A43: Pakistan | B43: - | C43: - | D43: - | E43: - | F43: 21 | G43: 26 | H43: 28 | I43: 31 | J43: 64 | K43: 83 | L43: 96 | M43: 125 | N43: 137 | O43: 139 | P43: 152 | Q43: 159 | R43: 160 | S43: 171 | T43: 177 | U43: 192 | V43: 204 | W43: 218 | X43: 226 | Y43: 231
A44: Tayvan | B44: 351 | C44: 401 | D44: 445 | E44: 459 | F44: 454 | G44: 458 | H44: 450 | I44: 447 | J44: 456 | K44: 443 | L44: 460 | M44: 487 | N44: 534 | O44: 554 | P44: 570 | Q44: 577 | R44: 602 | S44: - | T44: 714 | U44: 774 | V44: 893 | W44: 896 | X44: 909 | Y44: 917
A45: Yeni Zelanda | B45: 577 | C45: 563 | D45: 553 | E45: 563 | F45: 578 | G45: 586 | H45: 605 | I45: 613 | J45: 623 | K45: 643 | L45: 702 | M45: 700 | N45: 709 | O45: 700 | P45: 694 | Q45: 632 | R45: 609 | S45: 615 | T45: 587 | U45: 629 | V45: 656 | W45: 608 | X45: 699 | Y45: 808
A46: Afrika
A47: Güney Afrika | B47: 460 | C47: 466 | D47: 537 | E47: 617 | F47: 644 | G47: 679 | H47: 707 | I47: 750 | J47: 831 | K47: 884 | L47: 904 | M47: 943 | N47: 947 | O47: 967 | P47: 1,062 | Q47: 1,171 | R47: 1,327 | S47: 1,520 | T47: 1,626 | U47: 1,567 | V47: 1,610 | W47: 1,686 | X47: 1,710 | Y47: 1,729
A48: Kaynak: EFAMA
A49: Not: İrlanda, Fransa, Hırvatistan,Japonya, Hollanda, Lüksemburg, Norveç, Slovakya ve Türkiye dışındaki ülkeler için fon sepeti fonları dahil edilmemektedir.
A50: *EFAMA'dan farklı tarihlerde çekilen verilerden zaman serisi oluşturulmuş olup bazı yıllar arasında önemli değişimler gözlenebilmektedir.
A51: Güncelleme Tarihi: 02.11.2022
A53: İÇİNDEKİLER SAYFASI

Sheet BOLUMII
A12: BÖLÜM II: KÜRESEL FİNANS PİYASALARINA İLİŞKİN GÖSTERGELER

Sheet II.1
A1: II.1. DOĞRUDAN YABANCI YATIRIMLAR* (milyar dolar)
B2: Dışarıya Yapılan Yatırımlar | S2: İçeriye Yapılan Yatırımlar
B3: 2005 | C3: 2006 | D3: 2007 | E3: 2008 | F3: 2009 | G3: 2010 | H3: 2011 | I3: 2012 | J3: 2013 | K3: 2014 | L3: 2015 | M3: 2016 | N3: 2017 | O3: 2018 | P3: 2019 | Q3: 2020 | R3: 2021 | S3: 2005 | T3: 2006 | U3: 2007 | V3: 2008 | W3: 2009 | X3: 2010 | Y3: 2011 | Z3: 2012 | AA3: 2013 | AB3: 2014 | AC3: 2015 | AD3: 2016 | AE3: 2017 | AF3: 2018 | AG3: 2019 | AH3: 2020 | AI3: 2021
A4: ABD | B4: 26.9 | C4: 232.7 | D4: 405.0 | E4: 320.9 | F4: 309.3 | G4: 296.3 | H4: 415.3 | I4: 338.4 | J4: 321.9 | K4: 347.7 | L4: 274.5 | M4: 305.4 | N4: 353.7 | O4: -128.3 | P4: 58.0 | Q4: 264.8 | R4: 433.6 | S4: 0.0 | T4: 0.0 | U4: 0.0 | V4: 0.0 | W4: 0.0 | X4: 0.0 | Y4: 0.0 | Z4: 0.0 | AA4: 217.3 | AB4: 212.0 | AC4: 483.8 | AD4: 480.0 | AE4: 325.1 | AF4: 216.0 | AG4: 238.0 | AH4: 164.4 | AI4: 381.9
A5: Japonya | B5: 45.8 | C5: 50.2 | D5: 73.5 | E5: 128.0 | F5: 74.7 | G5: 56.3 | H5: 107.6 | I5: 122.5 | J5: 135.7 | K5: 129.2 | L5: 128.7 | M5: 155.9 | N5: 164.6 | O5: 145.0 | P5: 232.7 | Q5: 115.7 | R5: 146.8 | S5: 0.0 | T5: 0.0 | U5: 0.0 | V5: 0.0 | W5: 0.0 | X5: 0.0 | Y5: 0.0 | Z5: 0.0 | AA5: 2.3 | AB5: 10.6 | AC5: -2.3 | AD5: 19.4 | AE5: 9.4 | AF5: 10.0 | AG5: 13.7 | AH5: 10.3 | AI5: 24.6
A6: TÜRKİYE | B6: 1.1 | C6: 0.9 | D6: 2.1 | E6: 2.5 | F6: 1.6 | G6: 1.5 | H6: 2.3 | I6: 4.1 | J6: 3.5 | K6: 6.7 | L6: 4.8 | M6: 3.0 | N6: 2.6 | O6: 3.7 | P6: 3.0 | Q6: 3.2 | R6: 5.0 | S6: 0.0 | T6: 0.0 | U6: 0.0 | V6: 0.0 | W6: 0.0 | X6: 0.0 | Y6: 0.0 | Z6: 0.0 | AA6: 13.6 | AB6: 13.0 | AC6: 19.0 | AD6: 13.7 | AE6: 11.0 | AF6: 12.5 | AG6: 9.7 | AH6: 7.8 | AI6: 12.2
A7: Avrupa Birliği Ülkeleri | J7: 388.5 | K7: 300.4 | L7: 691.5 | M7: 447.5 | N7: 475.3 | O7: 362.9 | P7: 356.0 | Q7: 73.0 | R7: 385.0 | S7: 0.0 | T7: 0.0 | U7: 0.0 | V7: 0.0 | W7: 0.0 | X7: 0.0 | Y7: 0.0 | Z7: 0.0 | AA7: 337.8 | AB7: 346.5 | AC7: 613.4 | AD7: 607.1 | AE7: 368.7 | AF7: 445.0 | AG7: 451.2 | AH7: 194.6 | AI7: 138.3
A8: G20 Ülkeleri | J8: 856.5 | K8: 816.0 | L8: 817.6 | M8: 919.3 | N8: 1,168.0 | O8: 660.4 | P8: 843.3 | Q8: 683.5 | R8: 1,272.8 | S8: 0.0 | T8: 0.0 | U8: 0.0 | V8: 0.0 | W8: 0.0 | X8: 0.0 | Y8: 0.0 | Z8: 0.0 | AA8: 1,013.5 | AB8: 866.4 | AC8: 1,133.9 | AD8: 1,288.7 | AE8: 988.0 | AF8: 1,023.8 | AG8: 917.8 | AH8: 713.6 | AI8: 1,190.3
A9: OECD Ülkeleri | B9: 719.1 | C9: 1,136.7 | D9: 1,876.9 | E9: 1,391.1 | F9: 879.9 | G9: 1,012.1 | H9: 1,221.2 | I9: 962.2 | J9: 997.4 | K9: 882.8 | L9: 1,295.0 | M9: 1,142.9 | N9: 1,159.0 | O9: 602.2 | P9: 746.5 | Q9: 485.5 | R9: 1,302.6 | S9: 0.0 | T9: 0.0 | U9: 0.0 | V9: 0.0 | W9: 0.0 | X9: 0.0 | Y9: 0.0 | Z9: 0.0 | AA9: 767.6 | AB9: 752.1 | AC9: 1,302.7 | AD9: 1,349.4 | AE9: 958.3 | AF9: 774.1 | AG9: 768.2 | AH9: 461.8 | AI9: 808.9
A10: Kaynak: OECD
A11: Güncelleme tarihi: 10.05.2022
A12: * DYY finansal akımlar - FDI financial flows
A13: İÇİNDEKİLER SAYFASI
A15: FDI Financial Flows, main aggregates
S21: =S20/1000 -> 0 | T21: 0 | U21: 0 | V21: 0 | W21: 0 | X21: 0 | Y21: 0

Sheet II.2
A1: II.2. EKONOMİK ÖZGÜRLÜK ENDEKSİ
B2: 1980 | C2: 1990 | D2: 2000 | E2: 2005 | F2: 2010 | G2: 2015 | H2: 2019 | I2: 2020
A3: Almanya | B3: 7.70 | C3: 7.85 | D3: 7.94 | E3: 7.81 | F3: 7.84 | G3: 8.01 | H3: 7.89 | I3: 7.65
A4: Amerika | B4: 8.36 | C4: 8.63 | D4: 8.73 | E4: 8.52 | F4: 8.14 | G4: 8.31 | H4: 8.25 | I4: 7.97
A5: Arnavutluk | B5: - | C5: 5.03 | D5: 6.62 | E5: 7.13 | F5: 7.33 | G5: 7.74 | H5: 7.79 | I5: 7.64
A6: Avusturya | B6: 6.97 | C6: 7.35 | D6: 7.97 | E6: 7.91 | F6: 7.85 | G6: 7.88 | H6: 7.86 | I6: 7.56
A7: Belçika | B7: 7.46 | C7: 7.51 | D7: 7.81 | E7: 7.59 | F7: 7.62 | G7: 7.68 | H7: 7.62 | I7: 7.37
A8: Bulgaristan | B8: - | C8: 4.58 | D8: 5.64 | E8: 7.13 | F8: 7.60 | G8: 7.64 | H8: 7.79 | I8: 7.69
A9: Çek Cumhuriyeti | B9: - | C9: - | D9: 6.96 | E9: 7.52 | F9: 7.67 | G9: 7.96 | H9: 7.98 | I9: 7.75
A10: Danimarka | B10: 6.69 | C10: 7.59 | D10: 8.18 | E10: 8.10 | F10: 7.99 | G10: 8.08 | H10: 8.23 | I10: 8.09
A11: Estonya | B11: - | C11: 4.52 | D11: 7.70 | E11: 8.00 | F11: 8.05 | G11: 8.16 | H11: 8.11 | I11: 7.95
A12: Finlandiya | B12: 7.15 | C12: 7.46 | D12: 8.10 | E12: 8.00 | F12: 7.99 | G12: 7.85 | H12: 7.92 | I12: 7.64
A13: Fransa | B13: 6.40 | C13: 7.17 | D13: 7.67 | E13: 7.57 | F13: 7.74 | G13: 7.69 | H13: 7.55 | I13: 7.33
A14: Hırvatistan | B14: - | C14: - | D14: 6.13 | E14: 6.57 | F14: 7.00 | G14: 7.42 | H14: 7.42 | I14: 7.16
A15: Hollanda | B15: 7.50 | C15: 7.69 | D15: 8.12 | E15: 7.95 | F15: 7.79 | G15: 7.98 | H15: 7.96 | I15: 7.75
A16: Birleşik Krallık | B16: 7.16 | C16: 8.47 | D16: 8.58 | E16: 8.45 | F16: 8.10 | G16: 8.27 | H16: 8.16 | I16: 7.71
A17: İspanya | B17: 6.21 | C17: 6.55 | D17: 7.93 | E17: 7.85 | F17: 7.69 | G17: 7.80 | H17: 7.89 | I17: 7.63
A18: İsveç | B18: 6.73 | C18: 7.16 | D18: 7.93 | E18: 7.77 | F18: 7.89 | G18: 7.97 | H18: 7.70 | I18: 7.56
A19: İsviçre | B19: 8.09 | C19: 8.51 | D19: 8.85 | E19: 8.51 | F19: 8.52 | G19: 8.52 | H19: 8.49 | I19: 8.37
A20: Letonya | B20: - | C20: - | D20: 7.45 | E20: 7.79 | F20: 7.73 | G20: 8.12 | H20: 7.94 | I20: 7.77
A21: Litvanya | B21: - | C21: 5.42 | D21: 7.02 | E21: 7.71 | F21: 7.54 | G21: 8.02 | H21: 8.22 | I21: 7.82
A22: Lüksemburg | B22: 8.26 | C22: 8.07 | D22: 8.13 | E22: 7.61 | F22: 7.54 | G22: 7.84 | H22: 7.89 | I22: 7.54
A23: Macaristan | B23: 4.74 | C23: 5.12 | D23: 6.99 | E23: 7.42 | F23: 7.58 | G23: 7.48 | H23: 7.51 | I23: 7.24
A24: Malta | B24: 5.32 | C24: 5.84 | D24: 6.88 | E24: 7.57 | F24: 7.77 | G24: 7.98 | H24: 8.02 | I24: 7.72
A25: Norveç | B25: 6.61 | C25: 7.28 | D25: 7.85 | E25: 7.83 | F25: 7.66 | G25: 7.40 | H25: 7.75 | I25: 7.58
A26: Polonya | B26: 5.46 | C26: 3.89 | D26: 6.30 | E26: 6.81 | F26: 6.91 | G26: 7.29 | H26: 7.22 | I26: 6.93
A27: Portekiz | B27: 5.64 | C27: 6.19 | D27: 7.70 | E27: 7.44 | F27: 7.28 | G27: 7.69 | H27: 7.77 | I27: 7.43
A28: Romanya | B28: 4.90 | C28: 4.52 | D28: 5.30 | E28: 7.26 | F28: 7.49 | G28: 7.92 | H28: 7.87 | I28: 7.74
A29: Rusya | B29: 3.59 | C29: 3.26 | D29: 5.08 | E29: 6.02 | F29: 6.40 | G29: 6.59 | H29: 6.83 | I29: 6.62
A30: Slovak Cumhuriyeti | B30: - | C30: - | D30: 6.78 | E30: 7.66 | F30: 7.65 | G30: 7.54 | H30: 7.61 | I30: 7.33
A31: Slovenya | B31: - | C31: - | D31: 6.71 | E31: 7.09 | F31: 7.12 | G31: 7.32 | H31: 7.43 | I31: 7.00
A32: Türkiye | B32: 3.70 | C32: 5.21 | D32: 5.61 | E32: 6.35 | F32: 6.97 | G32: 6.99 | H32: 6.49 | I32: 6.48
A33: Ukrayna | B33: - | C33: - | D33: 4.75 | E33: 5.62 | F33: 5.81 | G33: 5.39 | H33: 6.20 | I33: 6.11
A34: Yunanistan | B34: 5.72 | C34: 6.05 | D34: 7.30 | E34: 7.37 | F34: 7.12 | G34: 6.70 | H34: 7.19 | I34: 6.81
A35: Kaynak: Fraser Institute, Economic Freedom of the World, 2021 Yıllık Raporu
A36: Not: Ekonomik Özgürlük Endeksi 5 ana bölümden oluşmaktadır. (1) Kamunun büyüklüğü, (2) adli sistem ve mülkiyet hakları, (3) para politikalarının sağlamlığı, (4) ticaret serbestisi ve (5) düzenleme (kredi, iş ve emek piyasasını içeren) alt endekslerin ölçümlerinin ortalamasıdır.
A37: Güncelleme tarihi: 01.11.2022
A39: İÇİNDEKİLER SAYFASI

Sheet BOLUMIII
A12: BÖLÜM III: ULUSLARARASI MAKROEKONOMİK GÖSTERGELER

Sheet III.1
A1: III.1. GSYH (milyar dolar)
A3: Ülkeler | B3: 1999 | C3: 2000 | D3: 2001 | E3: 2002 | F3: 2003 | G3: 2004 | H3: 2005 | I3: 2006 | J3: 2007 | K3: 2008 | L3: 2009 | M3: 2010 | N3: 2011 | O3: 2012 | P3: 2013 | Q3: 2014 | R3: 2015 | S3: 2016 | T3: 2017 | U3: 2018 | V3: 2019 | W3: 2020 | X3: 2021 (*) | Y3: 2022(*) | Z3: 2023
A4: Almanya | B4: 2,197 | C4: 1,949 | D4: 1,946 | E4: 2,077 | F4: 2,501 | G4: 2,813 | H4: 2,848 | I4: 2,995 | J4: 3,426 | K4: 3,745 | L4: 3,408 | M4: 3,402 | N4: 3,749 | O4: 3,529 | P4: 3,734 | Q4: 3,890 | R4: 3,358 | S4: 3,469 | T4: 3,690 | U4: 3,976 | V4: 3,889 | W4: 3,887 | X4: 4,263 | Y4: 4,031 | Z4: 4,120
A5: ABD | B5: 9,631 | C5: 10,251 | D5: 10,582 | E5: 10,929 | F5: 11,456 | G5: 12,217 | H5: 13,039 | I5: 13,816 | J5: 14,474 | K5: 14,770 | L5: 14,478 | M5: 15,049 | N5: 15,600 | O5: 16,254 | P5: 16,843 | Q5: 17,551 | R5: 18,206 | S5: 18,695 | T5: 19,480 | U5: 20,527 | V5: 21,373 | W5: 20,894 | X5: 22,996 | Y5: 25,035 | Z5: 26,185
A6: Arjantin | B6: 317 | C6: 318 | D6: 300 | E6: 112 | F6: 142 | G6: 165 | H6: 199 | I6: 233 | J6: 288 | K6: 364 | L6: 335 | M6: 425 | N6: 528 | O6: 580 | P6: 611 | Q6: 564 | R6: 642 | S6: 557 | T6: 644 | U6: 524 | V6: 452 | W6: 389 | X6: 487 | Y6: 631 | Z6: 644
A7: Avusturya | B7: 217 | C7: 197 | D7: 198 | E7: 214 | F7: 262 | G7: 301 | H7: 316 | I7: 336 | J7: 389 | K7: 432 | L7: 401 | M7: 393 | N7: 432 | O7: 410 | P7: 430 | Q7: 443 | R7: 382 | S7: 396 | T7: 417 | U7: 455 | V7: 445 | W7: 433 | X7: 477 | Y7: 468 | Z7: 473
A8: Brezilya | B8: 600 | C8: 655 | D8: 560 | E8: 510 | F8: 558 | G8: 669 | H8: 892 | I8: 1,108 | J8: 1,397 | K8: 1,696 | L8: 1,669 | M8: 2,209 | N8: 2,614 | O8: 2,464 | P8: 2,472 | Q8: 2,456 | R8: 1,800 | S8: 1,797 | T8: 2,064 | U8: 1,917 | V8: 1,873 | W8: 1,449 | X8: 1,608 | Y8: 1,895 | Z8: 2,059
A9: Çin | B9: 1,088 | C9: 1,206 | D9: 1,334 | E9: 1,466 | F9: 1,657 | G9: 1,949 | H9: 2,290 | I9: 2,754 | J9: 3,556 | K9: 4,577 | L9: 5,089 | M9: 6,034 | N9: 7,492 | O9: 8,540 | P9: 9,625 | Q9: 10,524 | R9: 11,114 | S9: 11,227 | T9: 12,265 | U9: 13,842 | V9: 14,341 | W9: 14,863 | X9: 17,745 | Y9: 18,321 | Z9: 19,244
A10: Danimarka | B10: 178 | C10: 164 | D10: 165 | E10: 179 | F10: 218 | G10: 251 | H10: 264 | I10: 283 | J10: 319 | K10: 353 | L10: 321 | M10: 322 | N10: 344 | O10: 327 | P10: 344 | Q10: 353 | R10: 303 | S10: 313 | T10: 332 | U10: 357 | V10: 346 | W10: 355 | X10: 398 | Y10: 387 | Z10: 394
A11: Endonezya | B11: 169 | C11: 179 | D11: 175 | E11: 213 | F11: 255 | G11: 280 | H11: 311 | I11: 396 | J11: 470 | K11: 559 | L11: 578 | M11: 755 | N11: 893 | O11: 919 | P11: 917 | Q11: 891 | R11: 861 | S11: 932 | T11: 1,015 | U11: 1,043 | V11: 1,119 | W11: 1,062 | X11: 1,187 | Y11: 1,289 | Z11: 1,389
A12: Filipinler | B12: 86 | C12: 84 | D12: 79 | E12: 84 | F12: 87 | G12: 95 | H12: 107 | I12: 128 | J12: 156 | K12: 181 | L12: 176 | M12: 208 | N12: 234 | O12: 262 | P12: 284 | Q12: 297 | R12: 306 | S12: 319 | T12: 328 | U12: 347 | V12: 377 | W12: 362 | X12: 394 | Y12: 402 | Z12: 426
A13: Finlandiya | B13: 135 | C13: 126 | D13: 130 | E13: 140 | F13: 172 | G13: 197 | H13: 205 | I13: 217 | J13: 256 | K13: 286 | L13: 253 | M13: 250 | N13: 276 | O13: 258 | P13: 271 | Q13: 275 | R13: 235 | S13: 241 | T13: 256 | U13: 276 | V13: 269 | W13: 272 | X13: 298 | Y13: 281 | Z13: 284
A14: Hindistan | B14: 467 | C14: 477 | D14: 494 | E14: 524 | F14: 618 | G14: 722 | H14: 834 | I14: 949 | J14: 1,239 | K14: 1,224 | L14: 1,365 | M14: 1,708 | N14: 1,823 | O14: 1,828 | P14: 1,857 | Q14: 2,039 | R14: 2,104 | S14: 2,295 | T14: 2,651 | U14: 2,703 | V14: 2,832 | W14: 2,668 | X14: 3,176 | Y14: 3,469 | Z14: 3,821
A15: Birleşik Krallık | B15: 1,686 | C15: 1,665 | D15: 1,644 | E15: 1,787 | F15: 2,059 | G15: 2,423 | H15: 2,548 | I15: 2,721 | J15: 3,107 | K15: 2,970 | L15: 2,434 | M15: 2,494 | N15: 2,676 | O15: 2,720 | P15: 2,805 | Q15: 3,089 | R15: 2,957 | S15: 2,733 | T15: 2,701 | U15: 2,905 | V15: 2,880 | W15: 2,759 | X15: 3,188 | Y15: 3,198 | Z15: 3,479
A16: İrlanda | B16: 99 | C16: 100 | D16: 109 | E16: 129 | F16: 165 | G16: 194 | H16: 212 | I16: 232 | J16: 270 | K16: 275 | L16: 236 | M16: 222 | N16: 239 | O16: 226 | P16: 238 | Q16: 259 | R16: 292 | S16: 299 | T16: 336 | U16: 386 | V16: 399 | W16: 426 | X16: 505 | Y16: 520 | Z16: 549
A17: İspanya | B17: 636 | C17: 599 | D17: 628 | E17: 708 | F17: 907 | G17: 1,069 | H17: 1,154 | I17: 1,260 | J17: 1,474 | K17: 1,632 | L17: 1,490 | M17: 1,423 | N17: 1,480 | O17: 1,326 | P17: 1,355 | Q17: 1,372 | R17: 1,196 | S17: 1,233 | T17: 1,312 | U17: 1,422 | V17: 1,393 | W17: 1,280 | X17: 1,426 | Y17: 1,390 | Z17: 1,421
A18: İsrail | B18: 121 | C18: 136 | D18: 135 | E18: 125 | F18: 131 | G18: 140 | H18: 147 | I18: 159 | J18: 184 | K18: 221 | L18: 212 | M18: 238 | N18: 267 | O18: 262 | P18: 298 | Q18: 314 | R18: 303 | S18: 322 | T18: 358 | U18: 377 | V18: 402 | W18: 413 | X18: 489 | Y18: 527 | Z18: 564
A19: İsveç | B19: 274 | C19: 263 | D19: 242 | E19: 267 | F19: 334 | G19: 385 | H19: 392 | I19: 423 | J19: 491 | K19: 518 | L19: 437 | M19: 496 | N19: 574 | O19: 552 | P19: 587 | Q19: 582 | R19: 505 | S19: 516 | T19: 541 | U19: 555 | V19: 534 | W19: 547 | X19: 636 | Y19: 604 | Z19: 654
A20: İtalya | B20: 1,254 | C20: 1,147 | D20: 1,168 | E20: 1,276 | F20: 1,577 | G20: 1,806 | H20: 1,859 | I20: 1,950 | J20: 2,213 | K20: 2,408 | L20: 2,198 | M20: 2,138 | N20: 2,295 | O20: 2,088 | P20: 2,142 | Q20: 2,163 | R20: 1,837 | S20: 1,877 | T20: 1,961 | U20: 2,093 | V20: 2,012 | W20: 1,891 | X20: 2,101 | Y20: 1,997 | Z20: 1,991
A21: Japonya | B21: 4,636 | C21: 4,968 | D21: 4,375 | E21: 4,183 | F21: 4,520 | G21: 4,893 | H21: 4,831 | I21: 4,602 | J21: 4,580 | K21: 5,107 | L21: 5,289 | M21: 5,759 | N21: 6,233 | O21: 6,272 | P21: 5,212 | Q21: 4,897 | R21: 4,445 | S21: 5,004 | T21: 4,931 | U21: 5,041 | V21: 5,120 | W21: 5,032 | X21: 4,933 | Y21: 4,301 | Z21: 4,366
A22: Kanada | B22: 678 | C22: 745 | D22: 739 | E22: 760 | F22: 896 | G22: 1,026 | H22: 1,174 | I22: 1,319 | J22: 1,469 | K22: 1,553 | L22: 1,377 | M22: 1,617 | N22: 1,793 | O22: 1,828 | P22: 1,847 | Q22: 1,806 | R22: 1,557 | S22: 1,528 | T22: 1,649 | U22: 1,725 | V22: 1,742 | W22: 1,645 | X22: 1,988 | Y22: 2,200 | Z22: 2,327
A23: Kolombiya | B23: 103 | C23: 99 | D23: 98 | E23: 97 | F23: 94 | G23: 116 | H23: 146 | I23: 162 | J23: 206 | K23: 243 | L23: 232 | M23: 286 | N23: 335 | O23: 371 | P23: 382 | Q23: 381 | R23: 293 | S23: 283 | T23: 312 | U23: 334 | V23: 323 | W23: 270 | X23: 314 | Y23: 343 | Z23: 362
A24: Kore | B24: 497 | C24: 576 | D24: 548 | E24: 627 | F24: 703 | G24: 793 | H24: 935 | I24: 1,053 | J24: 1,172 | K24: 1,049 | L24: 944 | M24: 1,144 | N24: 1,253 | O24: 1,278 | P24: 1,371 | Q24: 1,484 | R24: 1,466 | S24: 1,499 | T24: 1,623 | U24: 1,725 | V24: 1,651 | W24: 1,645 | X24: 1,811 | Y24: 1,734 | Z24: 1,792
A25: Lüksemburg | B25: 21 | C25: 21 | D25: 21 | E25: 24 | F25: 30 | G25: 35 | H25: 38 | I25: 43 | J25: 52 | K25: 59 | L25: 54 | M25: 56 | N25: 62 | O25: 60 | P25: 65 | Q25: 69 | R25: 60 | S25: 62 | T25: 66 | U25: 71 | V25: 70 | W25: 73 | X25: 87 | Y25: 82 | Z25: 84
A26: Macaristan | B26: 49 | C26: 47 | D26: 54 | E26: 68 | F26: 85 | G26: 104 | H26: 113 | I26: 116 | J26: 140 | K26: 158 | L26: 131 | M26: 132 | N26: 142 | O26: 128 | P26: 135 | Q26: 141 | R26: 125 | S26: 129 | T26: 143 | U26: 161 | V26: 164 | W26: 157 | X26: 182 | Y26: 185 | Z26: 196
A27: Malezya | B27: 86 | C27: 102 | D27: 101 | E27: 110 | F27: 120 | G27: 136 | H27: 150 | I27: 171 | J27: 203 | K27: 242 | L27: 212 | M27: 259 | N27: 303 | O27: 319 | P27: 328 | Q27: 343 | R27: 301 | S27: 302 | T27: 319 | U27: 359 | V27: 365 | W27: 338 | X27: 373 | Y27: 434 | Z27: 467
A28: Meksika | B28: 600 | C28: 708 | D28: 757 | E28: 772 | F28: 729 | G28: 782 | H28: 877 | I28: 975 | J28: 1,053 | K28: 1,110 | L28: 900 | M28: 1,058 | N28: 1,180 | O28: 1,201 | P28: 1,274 | Q28: 1,315 | R28: 1,172 | S28: 1,078 | T28: 1,159 | U28: 1,222 | V28: 1,269 | W28: 1,090 | X28: 1,298 | Y28: 1,425 | Z28: 1,476
A29: Mısır | B29: 95 | C29: 105 | D29: 102 | E29: 90 | F29: 85 | G29: 83 | H29: 94 | I29: 113 | J29: 137 | K29: 171 | L29: 198 | M29: 230 | N29: 248 | O29: 279 | P29: 288 | Q29: 310 | R29: 341 | S29: 346 | T29: 247 | U29: 263 | V29: 318 | W29: 383 | X29: 423 | Y29: 469 | Z29: 471
A30: Peru | B30: 49 | C30: 50 | D30: 51 | E30: 54 | F30: 59 | G30: 66 | H30: 74 | I30: 87 | J30: 102 | K30: 121 | L30: 122 | M30: 149 | N30: 171 | O30: 193 | P30: 203 | Q30: 203 | R30: 192 | S30: 195 | T30: 216 | U30: 227 | V30: 232 | W30: 206 | X30: 226 | Y30: 239 | Z30: 254
A31: Polonya | B31: 168 | C31: 172 | D31: 191 | E31: 199 | F31: 218 | G31: 255 | H31: 306 | I31: 345 | J31: 429 | K31: 534 | L31: 440 | M31: 480 | N31: 528 | O31: 499 | P31: 521 | Q31: 543 | R31: 477 | S31: 472 | T31: 527 | U31: 587 | V31: 597 | W31: 600 | X31: 679 | Y31: 716 | Z31: 754
A32: Rusya | B32: 210 | C32: 278 | D32: 328 | E32: 370 | F32: 462 | G32: 633 | H32: 818 | I32: 1,061 | J32: 1,393 | K32: 1,779 | L32: 1,308 | M32: 1,633 | N32: 2,047 | O32: 2,191 | P32: 2,288 | Q32: 2,049 | R32: 1,357 | S32: 1,281 | T32: 1,575 | U32: 1,653 | V32: 1,696 | W32: 1,484 | X32: 1,779 | Y32: 2,133 | Z32: 2,136
A33: Sri Lanka | B33: 19 | C33: 20 | D33: 19 | E33: 20 | F33: 22 | G33: 24 | H33: 29 | I33: 33 | J33: 38 | K33: 48 | L33: 50 | M33: 59 | N33: 68 | O33: 70 | P33: 77 | Q33: 82 | R33: 85 | S33: 88 | T33: 94 | U33: 94 | V33: 89 | W33: 85 | X33: 89 | Y33: 74 | Z33: -
A34: Şili | B34: 76 | C34: 78 | D34: 71 | E34: 70 | F34: 77 | G34: 99 | H34: 122 | I34: 154 | J34: 173 | K34: 180 | L34: 172 | M34: 217 | N34: 251 | O34: 267 | P34: 277 | Q34: 259 | R34: 243 | S34: 249 | T34: 276 | U34: 295 | V34: 278 | W34: 252 | X34: 317 | Y34: 311 | Z34: 348
A35: Tayland | B35: 127 | C35: 126 | D35: 120 | E35: 134 | F35: 152 | G35: 173 | H35: 189 | I35: 222 | J35: 263 | K35: 291 | L35: 281 | M35: 341 | N35: 371 | O35: 398 | P35: 420 | Q35: 407 | R35: 401 | S35: 413 | T35: 457 | U35: 507 | V35: 544 | W35: 500 | X35: 506 | Y35: 535 | Z35: 581
A36: TÜRKİYE | B36: 257 | C36: 274 | D36: 202 | E36: 240 | F36: 315 | G36: 409 | H36: 506 | I36: 555 | J36: 680 | K36: 771 | L36: 649 | M36: 777 | N36: 839 | O36: 880 | P36: 958 | Q36: 939 | R36: 864 | S36: 869 | T36: 859 | U36: 780 | V36: 759 | W36: 720 | X36: 818 | Y36: 853 | Z36: 942
A37: Yunanistan | B37: 148 | C37: 131 | D37: 135 | E37: 153 | F37: 201 | G37: 239 | H37: 246 | I37: 271 | J37: 316 | K37: 353 | L37: 328 | M37: 297 | N37: 283 | O37: 242 | P37: 239 | Q37: 236 | R37: 196 | S37: 193 | T37: 200 | U37: 212 | V37: 205 | W37: 189 | X37: 216 | Y37: 222 | Z37: 226
A38: Kaynak: IMF
A39: (*) Gölgeli hücreler IMF tahmin rakamlarını vermektedir.
A40: Güncelleme tarihi: 28.11.2022
A42: İÇİNDEKİLER SAYFASI

Sheet III.2
A1: III.2. KİŞİBAŞI GSYH (dolar)
A3: Ülkeler | B3: 1999 | C3: 2000 | D3: 2001 | E3: 2002 | F3: 2003 | G3: 2004 | H3: 2005 | I3: 2006 | J3: 2007 | K3: 2008 | L3: 2009 | M3: 2010 | N3: 2011(*) | O3: 2012(*) | P3: 2013(*) | Q3: 2014(*) | R3: 2015(*) | S3: 2016(*) | T3: 2017(*) | U3: 2018(*) | V3: 2019(*) | W3: 2020(*) | X3: 2021(*) | Y3: 2022(*) | Z3: 2023(*)
A4: Almanya | B4: 26,984.24 | C4: 23,924.88 | D4: 23,869.77 | E4: 25,460.33 | F4: 30,668.85 | G4: 34,534.81 | H4: 35,020.20 | I4: 36,894.47 | J4: 42,299.86 | K4: 46,367.86 | L4: 42,338.71 | M4: 42,379.71 | N4: 46,697.38 | O4: 43,883.39 | P4: 46,299.37 | Q4: 48,035.80 | R4: 41,107.22 | S4: 42,124.20 | T4: 44,636.83 | U4: 47,961.04 | V4: 46,798.83 | W4: 46,735.31 | X4: 51,237.64 | Y4: 48,397.80 | Z4: 49,430.06
A5: ABD | B5: 34,496.24 | C5: 36,312.78 | D5: 37,101.45 | E5: 37,945.76 | F5: 39,405.35 | G5: 41,641.62 | H5: 44,034.26 | I5: 46,216.85 | J5: 47,943.35 | K5: 48,470.55 | L5: 47,102.43 | M5: 48,586.29 | N5: 50,008.11 | O5: 51,736.74 | P5: 53,245.52 | Q5: 55,083.51 | R5: 56,729.68 | S5: 57,839.99 | T5: 59,885.71 | U5: 62,769.66 | V5: 65,051.88 | W5: 63,078.47 | X5: 69,227.11 | Y5: 75,179.59 | Z5: 78,421.94
A6: Arjantin | B6: 8,709.07 | C6: 8,638.54 | D6: 8,085.36 | E6: 2,997.62 | F6: 3,761.09 | G6: 4,314.10 | H6: 5,163.55 | I6: 5,976.08 | J6: 7,315.73 | K6: 9,146.79 | L6: 8,337.81 | M6: 10,412.97 | N6: 12,787.81 | O6: 13,889.79 | P6: 14,488.83 | Q6: 13,208.83 | R6: 14,895.32 | S6: 12,772.87 | T6: 14,618.33 | U6: 11,786.43 | V6: 10,054.02 | W6: 8,571.94 | X6: 10,616.95 | Y6: 13,621.86 | Z6: 13,767.10
A7: Avusturya | B7: 27,210.47 | C7: 24,636.47 | D7: 24,558.92 | E7: 26,508.32 | F7: 32,298.61 | G7: 36,883.89 | H7: 38,450.61 | I7: 40,674.88 | J7: 46,922.56 | K7: 51,914.01 | L7: 48,111.66 | M7: 46,955.17 | N7: 51,452.28 | O7: 48,616.90 | P7: 50,747.38 | Q7: 51,814.42 | R7: 44,267.81 | S7: 45,278.83 | T7: 47,320.54 | U7: 51,254.40 | V7: 50,239.42 | W7: 48,636.30 | X7: 53,332.27 | Y7: 52,061.65 | Z7: 52,316.14
A8: Brezilya | B8: 3,501.44 | C8: 3,772.05 | D8: 3,177.94 | E8: 2,856.03 | F8: 3,089.14 | G8: 3,660.02 | H8: 4,819.87 | I8: 5,921.18 | J8: 7,390.65 | K8: 8,878.36 | L8: 8,649.58 | M8: 11,333.02 | N8: 13,295.90 | O8: 12,424.95 | P8: 12,358.34 | Q8: 12,175.68 | R8: 8,846.48 | S8: 8,757.30 | T8: 9,978.09 | U8: 9,194.15 | V8: 8,914.17 | W8: 6,840.66 | X8: 7,563.56 | Y8: 8,857.47 | Z8: 9,571.81
A9: Çin | B9: 865.24 | C9: 951.16 | D9: 1,044.96 | E9: 1,141.14 | F9: 1,282.21 | G9: 1,499.71 | H9: 1,751.37 | I9: 2,095.24 | J9: 2,691.05 | K9: 3,446.70 | L9: 3,813.41 | M9: 4,499.80 | N9: 5,553.24 | O9: 6,282.71 | P9: 7,039.57 | Q9: 7,645.88 | R9: 8,034.29 | S9: 8,063.45 | T9: 8,760.26 | U9: 9,848.95 | V9: 10,170.06 | W9: 10,525.00 | X9: 12,561.69 | Y9: 12,970.33 | Z9: 13,629.26
A10: Danimarka | B10: 33,492.35 | C10: 30,798.72 | D10: 30,806.61 | E10: 33,275.56 | F10: 40,512.05 | G10: 46,571.28 | H10: 48,872.10 | I10: 52,121.25 | J10: 58,641.19 | K10: 64,531.12 | L10: 58,286.54 | M10: 58,177.16 | N10: 61,864.09 | O10: 58,623.41 | P10: 61,325.58 | Q10: 62,729.50 | R10: 53,478.50 | S10: 54,862.85 | T10: 57,772.55 | U10: 61,724.49 | V10: 59,678.60 | W10: 61,005.84 | X10: 68,202.07 | Y10: 65,713.41 | Z10: 66,393.64
A11: Endonezya | B11: 829.57 | C11: 870.15 | D11: 834.14 | E11: 1,002.91 | F11: 1,186.85 | G11: 1,280.70 | H11: 1,403.88 | I11: 1,764.79 | J11: 2,064.23 | K11: 2,418.04 | L11: 2,464.96 | M11: 3,178.13 | N11: 3,688.53 | O11: 3,744.53 | P11: 3,684.00 | Q11: 3,533.61 | R11: 3,367.69 | S11: 3,605.72 | T11: 3,885.47 | U11: 3,947.25 | V11: 4,194.09 | W11: 3,930.97 | X11: 4,361.16 | Y11: 4,691.24 | Z11: 5,005.48
A12: Filipinler | B12: 1,112.35 | C12: 1,087.29 | D12: 1,003.96 | E12: 1,050.30 | F12: 1,062.62 | G12: 1,137.07 | H12: 1,261.27 | I12: 1,470.83 | J12: 1,764.68 | K12: 2,011.63 | L12: 1,923.67 | M12: 2,237.16 | N12: 2,473.25 | O12: 2,721.25 | P12: 2,903.19 | Q12: 2,995.50 | R12: 3,039.23 | S12: 3,107.65 | T12: 3,153.31 | U12: 3,279.52 | V12: 3,512.20 | W12: 3,325.84 | X12: 3,576.10 | Y12: 3,597.48 | Z12: 3,763.70
A13: Finlandiya | B13: 26,241.80 | C13: 24,379.78 | D13: 25,001.18 | E13: 27,008.26 | F13: 32,961.92 | G13: 37,816.08 | H13: 39,147.22 | I13: 41,308.62 | J13: 48,590.20 | K13: 53,897.91 | L13: 47,541.75 | M13: 46,647.00 | N13: 51,263.57 | O13: 47,850.56 | P13: 50,006.02 | Q13: 50,434.79 | R13: 42,867.09 | S13: 43,865.76 | T13: 46,437.21 | U13: 50,032.02 | V13: 48,667.72 | W13: 49,157.63 | X13: 53,774.20 | Y13: 50,818.38 | Z13: 51,177.01
A14: Hindistan | B14: 449.75 | C14: 451.09 | D14: 459.49 | E14: 479.25 | F14: 556.32 | G14: 638.79 | H14: 726.92 | I14: 814.35 | J14: 1,046.90 | K14: 1,019.51 | L14: 1,121.25 | M14: 1,384.17 | N14: 1,458.11 | O14: 1,443.88 | P14: 1,449.61 | Q14: 1,573.89 | R14: 1,605.61 | S14: 1,732.55 | T14: 1,980.67 | U14: 1,998.26 | V14: 2,072.25 | W14: 1,933.10 | X14: 2,279.51 | Y14: 2,465.87 | Z14: 2,691.20
A15: Birleşik Krallık | B15: 28,733.21 | C15: 28,279.66 | D15: 27,816.75 | E15: 30,099.60 | F15: 34,525.00 | G15: 40,415.48 | H15: 42,171.20 | I15: 44,731.56 | J15: 50,675.53 | K15: 48,038.97 | L15: 39,101.21 | M15: 39,731.62 | N15: 42,281.87 | O15: 42,691.19 | P15: 43,757.45 | Q15: 47,816.05 | R15: 45,418.94 | S15: 41,630.46 | T15: 40,903.52 | U15: 43,718.97 | V15: 43,121.06 | W15: 41,127.44 | X15: 47,328.78 | Y15: 47,317.57 | Z15: 51,286.06
A16: İrlanda | B16: 26,233.71 | C16: 26,186.26 | D16: 28,120.10 | E16: 32,482.08 | F16: 40,940.14 | G16: 47,389.26 | H16: 50,476.48 | I16: 53,738.84 | J16: 60,770.05 | K16: 60,989.98 | L16: 51,943.47 | M16: 48,620.63 | N16: 52,122.09 | O16: 49,029.29 | P16: 51,472.09 | Q16: 55,542.02 | R16: 61,902.66 | S16: 62,668.05 | T16: 69,685.26 | U16: 78,988.57 | V16: 80,690.15 | W16: 85,225.09 | X16: 100,129.45 | Y16: 102,217.44 | Z16: 106,997.40
A17: İspanya | B17: 15,814.19 | C17: 14,761.11 | D17: 15,400.91 | E17: 17,097.92 | F17: 21,501.07 | G17: 24,932.13 | H17: 26,438.03 | I17: 28,414.13 | J17: 32,588.56 | K17: 35,484.39 | L17: 32,131.38 | M17: 30,566.88 | N17: 31,676.69 | O17: 28,344.78 | P17: 29,084.96 | Q17: 29,524.76 | R17: 25,764.22 | S17: 26,535.55 | T17: 28,196.76 | U17: 30,423.17 | V17: 29,576.25 | W17: 27,039.18 | X17: 30,089.52 | Y17: 29,198.09 | Z17: 29,729.17
A18: İsrail | B18: 19,766.94 | C18: 21,641.30 | D18: 20,918.34 | E18: 19,044.92 | F18: 19,634.85 | G18: 20,565.77 | H18: 21,233.80 | I18: 22,501.12 | J18: 25,647.70 | K18: 30,182.53 | L18: 28,330.23 | M18: 31,278.05 | N18: 34,366.86 | O18: 33,170.02 | P18: 36,957.35 | Q18: 38,276.63 | R18: 36,221.12 | S18: 37,701.93 | T18: 41,131.72 | U18: 42,422.85 | V18: 44,466.80 | W18: 44,850.44 | X18: 52,151.93 | Y18: 55,358.84 | Z18: 58,273.44
A19: İsveç | B19: 30,928.57 | C19: 29,589.14 | D19: 27,207.49 | E19: 29,846.19 | F19: 37,249.26 | G19: 42,736.88 | H19: 43,349.85 | I19: 46,425.84 | J19: 53,496.53 | K19: 55,929.86 | L19: 46,734.91 | M19: 52,658.79 | N19: 60,540.22 | O19: 57,816.02 | P19: 60,845.01 | Q19: 59,704.81 | R19: 51,274.28 | S19: 51,590.47 | T19: 53,459.07 | U19: 54,295.73 | V19: 51,694.50 | W19: 52,706.29 | X19: 60,815.54 | Y19: 56,361.43 | Z19: 60,473.03
A20: İtalya | B20: 22,029.68 | C20: 20,153.07 | D20: 20,505.94 | E20: 22,386.28 | F20: 27,580.46 | G20: 31,342.83 | H20: 32,031.45 | I20: 33,448.09 | J20: 37,828.34 | K20: 40,818.96 | L20: 36,982.81 | M20: 35,815.59 | N20: 38,276.03 | O20: 34,743.75 | P20: 35,534.99 | Q20: 35,836.16 | R20: 30,463.70 | S20: 31,190.78 | T20: 32,648.76 | U20: 34,917.56 | V20: 33,627.86 | W20: 31,707.10 | X20: 35,472.80 | Y20: 33,739.75 | Z20: 33,662.30
A21: Japonya | B21: 36,622.89 | C21: 39,172.96 | D21: 34,410.68 | E21: 32,832.30 | F21: 35,410.22 | G21: 38,307.10 | H21: 37,819.10 | I21: 36,021.90 | J21: 35,847.23 | K21: 39,992.06 | L21: 41,469.77 | M21: 45,135.80 | N21: 48,760.91 | O21: 49,175.05 | P21: 40,934.76 | Q21: 38,522.77 | R21: 35,005.66 | S21: 39,411.42 | T21: 38,903.30 | U21: 39,850.37 | V21: 40,566.31 | W21: 39,981.48 | X21: 39,301.07 | Y21: 34,357.86 | Z21: 35,033.91
A22: Kanada | B22: 22,340.55 | C22: 24,296.72 | D22: 23,859.71 | E22: 24,279.19 | F22: 28,338.75 | G22: 32,176.59 | H22: 36,439.62 | I22: 40,558.90 | J22: 44,716.99 | K22: 46,773.84 | L22: 40,990.63 | M22: 47,627.35 | N22: 52,285.94 | O22: 52,744.00 | P22: 52,708.61 | Q22: 51,020.84 | R22: 43,626.47 | S22: 42,382.64 | T22: 45,191.99 | U22: 46,625.86 | V22: 46,403.99 | W22: 43,306.64 | X22: 52,015.07 | Y22: 56,794.02 | Z22: 59,178.98
A23: Kolombiya | B23: 2,672.58 | C23: 2,534.44 | D23: 2,460.33 | E23: 2,423.36 | F23: 2,312.60 | G23: 2,826.04 | H23: 3,493.98 | I23: 3,836.68 | J23: 4,834.42 | K23: 5,622.11 | L23: 5,330.81 | M23: 6,498.59 | N23: 7,518.30 | O23: 8,237.29 | P23: 8,409.70 | Q23: 8,312.06 | R23: 6,337.03 | S23: 6,037.13 | T23: 6,577.29 | U23: 6,923.64 | V23: 6,540.14 | W23: 5,368.32 | X23: 6,158.91 | Y23: 6,644.49 | Z23: 6,939.55
A24: Kore | B24: 10,666.86 | C24: 12,263.47 | D24: 11,563.04 | E24: 13,159.68 | F24: 14,672.42 | G24: 16,482.75 | H24: 19,398.49 | I24: 21,730.95 | J24: 24,083.34 | K24: 21,387.71 | L24: 19,139.73 | M24: 23,077.16 | N24: 25,100.19 | O24: 25,459.17 | P24: 27,179.52 | Q24: 29,252.93 | R24: 28,737.44 | S24: 29,274.23 | T24: 31,600.74 | U24: 33,447.15 | V24: 31,902.42 | W24: 31,728.30 | X24: 35,003.82 | Y24: 33,591.58 | Z24: 34,767.21
A25: Lüksemburg | B25: 49,341.23 | C25: 48,984.17 | D25: 48,719.11 | E25: 53,227.55 | F25: 66,160.48 | G25: 77,030.65 | H25: 81,728.63 | I25: 91,478.07 | J25: 108,343.85 | K25: 121,616.15 | L25: 110,249.42 | M25: 112,049.15 | N25: 120,526.25 | O25: 113,953.49 | P25: 121,423.17 | Q25: 125,200.14 | R25: 106,710.08 | S25: 107,948.20 | T25: 111,211.58 | U25: 118,466.36 | V25: 114,357.51 | W25: 117,063.65 | X25: 136,701.40 | Y25: 127,672.53 | Z25: 128,819.44
A26: Macaristan | B26: 4,786.25 | C26: 4,619.29 | D26: 5,269.61 | E26: 6,644.61 | F26: 8,410.77 | G26: 10,275.77 | H26: 11,188.45 | I26: 11,469.41 | J26: 13,904.83 | K26: 15,742.79 | L26: 13,035.62 | M26: 13,173.21 | N26: 14,195.85 | O26: 12,935.51 | P26: 13,665.53 | Q26: 14,251.80 | R26: 12,690.17 | S26: 13,086.07 | T26: 14,608.72 | U26: 16,423.28 | V26: 16,731.47 | W26: 16,044.09 | X26: 18,732.38 | Y26: 18,982.75 | Z26: 20,118.67
A27: Malezya | B27: 3,762.77 | C27: 4,347.73 | D27: 4,189.05 | E27: 4,441.81 | F27: 4,740.32 | G27: 5,244.86 | H27: 5,678.75 | I27: 6,354.98 | J27: 7,485.94 | K27: 8,771.03 | L27: 7,550.25 | M27: 9,054.11 | N27: 10,413.69 | O27: 10,815.09 | P27: 10,858.45 | Q27: 11,172.40 | R27: 9,663.28 | S27: 9,544.25 | T27: 9,969.50 | U27: 11,086.11 | V27: 11,231.54 | W27: 10,361.28 | X27: 11,407.68 | Y27: 13,107.88 | Z27: 13,942.62
A28: Meksika | B28: 6,157.25 | C28: 7,166.14 | D28: 7,558.98 | E28: 7,607.44 | F28: 7,088.46 | G28: 7,501.91 | H28: 8,303.99 | I28: 9,102.51 | J28: 9,680.43 | K28: 10,053.74 | L28: 8,029.30 | M28: 9,299.46 | N28: 10,232.41 | O28: 10,271.41 | P28: 10,758.98 | Q28: 10,967.11 | R28: 9,657.12 | S28: 8,788.59 | T28: 9,342.92 | U28: 9,753.67 | V28: 10,025.54 | W28: 8,528.11 | X28: 10,061.53 | Y28: 10,947.98 | Z28: 11,250.51
A29: Mısır | B29: 1,518.20 | C29: 1,636.75 | D29: 1,566.20 | E29: 1,355.28 | F29: 1,252.40 | G29: 1,195.60 | H29: 1,331.36 | I29: 1,563.74 | J29: 1,862.16 | K29: 2,271.23 | L29: 2,578.88 | M29: 2,922.80 | N29: 3,077.34 | O29: 3,379.01 | P29: 3,404.34 | Q29: 3,566.09 | R29: 3,827.95 | S29: 3,797.11 | T29: 2,592.69 | U29: 2,710.10 | V29: 3,214.31 | W29: 3,802.40 | X29: 4,144.42 | Y29: 4,504.37 | Z29: 4,437.42
A30: Peru | B30: 1,903.93 | C30: 1,940.24 | D30: 1,935.55 | E30: 2,017.77 | F30: 2,159.74 | G30: 2,408.09 | H30: 2,669.21 | I30: 3,106.72 | J30: 3,587.80 | K30: 4,209.04 | L30: 4,179.71 | M30: 5,055.52 | N30: 5,736.12 | O30: 6,407.63 | P30: 6,647.52 | Q30: 6,584.00 | R30: 6,164.22 | S30: 6,207.43 | T30: 6,776.89 | U30: 7,051.59 | V30: 7,006.34 | W30: 6,145.03 | X30: 6,678.89 | Y30: 7,004.79 | Z30: 7,353.43
A31: Polonya | B31: 4,348.15 | C31: 4,485.06 | D31: 4,987.86 | E31: 5,205.52 | F31: 5,699.56 | G31: 6,684.68 | H31: 8,023.92 | I31: 9,031.80 | J31: 11,252.86 | K31: 13,999.50 | L31: 11,532.28 | M31: 12,619.62 | N31: 13,879.53 | O31: 13,096.89 | P31: 13,688.36 | Q31: 14,272.29 | R31: 12,563.61 | S31: 12,438.52 | T31: 13,868.91 | U31: 15,468.26 | V31: 15,726.88 | W31: 15,801.56 | X31: 17,945.75 | Y31: 19,023.23 | Z31: 20,045.24
A32: Rusya | B32: 1,427.31 | C32: 1,901.96 | D32: 2,255.25 | E32: 2,552.79 | F32: 3,197.57 | G32: 4,403.96 | H32: 5,708.84 | I32: 7,426.01 | J32: 9,761.37 | K32: 12,464.24 | L32: 9,156.97 | M32: 11,431.15 | N32: 14,306.43 | O32: 15,287.97 | P32: 15,928.70 | Q32: 14,007.51 | R32: 9,257.94 | S32: 8,723.52 | T32: 10,724.00 | U32: 11,261.72 | V32: 11,555.27 | W32: 10,155.34 | X32: 12,218.70 | Y32: 14,665.25 | Z32: 14,704.66
A33: Sri Lanka | B33: 1,025.70 | C33: 1,065.47 | D33: 1,017.15 | E33: 1,061.68 | F33: 1,162.71 | G33: 1,259.77 | H33: 1,477.60 | I33: 1,698.16 | J33: 1,928.71 | K33: 2,410.80 | L33: 2,472.24 | M33: 2,894.26 | N33: 3,320.07 | O33: 3,446.36 | P33: 3,737.37 | Q33: 3,969.71 | R33: 4,057.74 | S33: 4,150.37 | T33: 4,401.06 | U33: 4,360.15 | V33: 4,082.69 | W33: 3,893.84 | X33: 4,016.02 | Y33: 3,292.57 | Z33: -
A34: Şili | B34: 4,980.14 | C34: 5,096.34 | D34: 4,606.79 | E34: 4,478.91 | F34: 4,824.73 | G34: 6,184.41 | H34: 7,559.85 | I34: 9,414.68 | J34: 10,445.43 | K34: 10,751.48 | L34: 10,162.89 | M34: 12,710.96 | N34: 14,552.06 | O34: 15,313.57 | P34: 15,743.27 | Q34: 14,583.04 | R34: 13,494.11 | S34: 13,717.58 | T34: 14,994.25 | U34: 15,739.91 | V34: 14,567.63 | W34: 12,968.52 | X34: 16,065.04 | Y34: 15,603.61 | Z34: 17,281.12
A35: Tayland | B35: 2,031.17 | C35: 2,003.61 | D35: 1,890.25 | E35: 2,094.26 | F35: 2,356.97 | G35: 2,657.91 | H35: 2,890.48 | I35: 3,366.82 | J35: 3,973.99 | K35: 4,373.45 | L35: 4,208.36 | M35: 5,073.71 | N35: 5,493.74 | O35: 5,862.99 | P35: 6,168.71 | Q35: 5,952.38 | R35: 5,837.81 | S35: 5,995.21 | T35: 6,596.22 | U35: 7,295.95 | V35: 7,813.61 | W35: 7,159.74 | X35: 7,232.26 | Y35: 7,630.87 | Z35: 8,273.93
A36: TÜRKİYE | B36: 4,020.27 | C36: 4,237.96 | D36: 3,082.90 | E36: 3,617.23 | F36: 4,684.70 | G36: 6,015.67 | H36: 7,350.89 | I36: 7,961.08 | J36: 9,640.57 | K36: 10,778.13 | L36: 8,941.40 | M36: 10,533.45 | N36: 11,221.40 | O36: 11,637.92 | P36: 12,488.97 | Q36: 12,079.29 | R36: 10,973.59 | S36: 10,891.19 | T36: 10,628.90 | U36: 9,508.00 | V36: 9,132.95 | W36: 8,612.31 | X36: 9,654.09 | Y36: 9,961.07 | Z36: 10,863.04
A37: Yunanistan | B37: 13,784.36 | C37: 12,164.72 | D37: 12,473.29 | E37: 14,065.79 | F37: 18,378.28 | G37: 21,829.50 | H37: 22,417.64 | I37: 24,648.87 | J37: 28,656.23 | K37: 31,902.01 | L37: 29,577.64 | M37: 26,743.40 | N37: 25,437.01 | O37: 21,845.05 | P37: 21,712.02 | Q37: 21,554.22 | R37: 18,023.87 | S37: 17,906.08 | T37: 18,552.18 | U37: 19,750.74 | V37: 19,130.44 | W37: 17,603.44 | X37: 20,263.29 | Y37: 20,875.78 | Z37: 21,371.69
A38: Kaynak: IMF
A39: (*) Gölgeli hücreler IMF tahmin rakamlarını vermektedir.
A40: Güncelleme tarihi: 28.11.2022
A42: İÇİNDEKİLER SAYFASI

Sheet III.3
A1: III.3. BÜYÜME (%)
A3: Ülkeler | B3: 1999 | C3: 2000 | D3: 2001 | E3: 2002 | F3: 2003 | G3: 2004 | H3: 2005 | I3: 2006 | J3: 2007 | K3: 2008 | L3: 2009 | M3: 2010 | N3: 2011 | O3: 2012 | P3: 2013 | Q3: 2014 | R3: 2015 | S3: 2016 | T3: 2017 | U3: 2018 | V3: 2019 | W3: 2020 | X3: 2021(*) | Y3: 2022(*) | Z3: 2023(*)
A4: Almanya | B4: 1.89 | C4: 2.90 | D4: 1.69 | E4: -0.20 | F4: -0.70 | G4: 1.18 | H4: 0.73 | I4: 3.81 | J4: 2.98 | K4: 0.96 | L4: -5.70 | M4: 4.19 | N4: 3.91 | O4: 0.43 | P4: 0.43 | Q4: 2.22 | R4: 1.49 | S4: 2.23 | T4: 2.68 | U4: 0.98 | V4: 1.05 | W4: -3.69 | X4: 2.63 | Y4: 1.55 | Z4: -0.29
A5: ABD | B5: 4.80 | C5: 4.08 | D5: 0.95 | E5: 1.70 | F5: 2.80 | G5: 3.85 | H5: 3.48 | I5: 2.78 | J5: 2.01 | K5: 0.12 | L5: -2.60 | M5: 2.71 | N5: 1.55 | O5: 2.28 | P5: 1.84 | Q5: 2.29 | R5: 2.71 | S5: 1.67 | T5: 2.26 | U5: 2.92 | V5: 2.29 | W5: -3.41 | X5: 5.67 | Y5: 1.64 | Z5: 1.00
A6: Arjantin | B6: -3.39 | C6: -0.79 | D6: -4.41 | E6: -10.89 | F6: 8.96 | G6: 8.91 | H6: 8.85 | I6: 8.05 | J6: 9.01 | K6: 4.06 | L6: -5.92 | M6: 10.13 | N6: 6.00 | O6: -1.03 | P6: 2.41 | Q6: -2.51 | R6: 2.73 | S6: -2.08 | T6: 2.82 | U6: -2.62 | V6: -2.00 | W6: -9.94 | X6: 10.40 | Y6: 4.04 | Z6: 2.02
A7: Avusturya | B7: 3.56 | C7: 3.38 | D7: 1.27 | E7: 1.65 | F7: 0.94 | G7: 2.74 | H7: 2.24 | I7: 3.45 | J7: 3.73 | K7: 1.46 | L7: -3.77 | M7: 1.84 | N7: 2.92 | O7: 0.68 | P7: 0.03 | Q7: 0.66 | R7: 1.02 | S7: 1.99 | T7: 2.26 | U7: 2.50 | V7: 1.49 | W7: -6.74 | X7: 4.60 | Y7: 4.70 | Z7: 1.00
A8: Brezilya | B8: 0.47 | C8: 4.39 | D8: 1.39 | E8: 3.05 | F8: 1.14 | G8: 5.76 | H8: 3.20 | I8: 3.96 | J8: 6.07 | K8: 5.09 | L8: -0.13 | M8: 7.53 | N8: 3.97 | O8: 1.92 | P8: 3.01 | Q8: 0.50 | R8: -3.55 | S8: -3.28 | T8: 1.32 | U8: 1.78 | V8: 1.22 | W8: -3.88 | X8: 4.62 | Y8: 2.79 | Z8: 1.03
A9: Çin | B9: 7.68 | C9: 8.47 | D9: 8.32 | E9: 9.12 | F9: 10.02 | G9: 10.11 | H9: 11.39 | I9: 12.71 | J9: 14.25 | K9: 9.59 | L9: 9.45 | M9: 10.61 | N9: 9.55 | O9: 7.85 | P9: 7.77 | Q9: 7.39 | R9: 7.02 | S9: 6.85 | T9: 6.95 | U9: 6.75 | V9: 5.95 | W9: 2.24 | X9: 8.08 | Y9: 3.21 | Z9: 4.44
A10: Danimarka | B10: 2.95 | C10: 3.75 | D10: 0.82 | E10: 0.47 | F10: 0.39 | G10: 2.67 | H10: 2.34 | I10: 3.91 | J10: 0.91 | K10: -0.51 | L10: -4.91 | M10: 1.87 | N10: 1.34 | O10: 0.23 | P10: 0.94 | Q10: 1.62 | R10: 2.34 | S10: 3.25 | T10: 2.82 | U10: 1.99 | V10: 1.49 | W10: -1.99 | X10: 4.86 | Y10: 2.60 | Z10: 0.60
A11: Endonezya | B11: 0.79 | C11: 4.98 | D11: 3.64 | E11: 4.50 | F11: 4.78 | G11: 5.03 | H11: 5.69 | I11: 5.50 | J11: 6.35 | K11: 7.44 | L11: 4.70 | M11: 6.38 | N11: 6.17 | O11: 6.03 | P11: 5.56 | Q11: 5.01 | R11: 4.88 | S11: 5.03 | T11: 5.07 | U11: 5.17 | V11: 5.02 | W11: -2.07 | X11: 3.69 | Y11: 5.33 | Z11: 4.97
A12: Filipinler | B12: 3.35 | C12: 4.38 | D12: 3.05 | E12: 3.72 | F12: 5.09 | G12: 6.57 | H12: 4.94 | I12: 5.32 | J12: 6.52 | K12: 4.34 | L12: 1.45 | M12: 7.34 | N12: 3.86 | O12: 6.90 | P12: 6.75 | Q12: 6.35 | R12: 6.35 | S12: 7.15 | T12: 6.93 | U12: 6.34 | V12: 6.12 | W12: -9.52 | X12: 5.70 | Y12: 6.47 | Z12: 5.02
A13: Finlandiya | B13: 4.38 | C13: 5.77 | D13: 2.61 | E13: 1.71 | F13: 2.00 | G13: 3.99 | H13: 2.78 | I13: 4.03 | J13: 5.30 | K13: 0.78 | L13: -8.07 | M13: 3.19 | N13: 2.55 | O13: -1.40 | P13: -0.90 | Q13: -0.37 | R13: 0.54 | S13: 2.81 | T13: 3.19 | U13: 1.14 | V13: 1.22 | W13: -2.23 | X13: 3.02 | Y13: 2.14 | Z13: 0.47
A14: Hindistan | B14: 8.46 | C14: 3.98 | D14: 4.94 | E14: 3.91 | F14: 7.94 | G14: 7.85 | H14: 9.29 | I14: 9.26 | J14: 9.80 | K14: 3.89 | L14: 8.48 | M14: 10.26 | N14: 6.64 | O14: 5.46 | P14: 6.39 | Q14: 7.41 | R14: 8.00 | S14: 8.26 | T14: 6.80 | U14: 6.45 | V14: 3.74 | W14: -6.60 | X14: 8.68 | Y14: 6.84 | Z14: 6.06
A15: Birleşik Krallık | B15: 2.99 | C15: 3.67 | D15: 2.07 | E15: 2.12 | F15: 3.03 | G15: 2.36 | H15: 2.59 | I15: 2.58 | J15: 2.27 | K15: -0.24 | L15: -4.25 | M15: 2.13 | N15: 1.46 | O15: 1.47 | P15: 1.89 | Q15: 2.99 | R15: 2.62 | S15: 2.26 | T15: 2.13 | U15: 1.65 | V15: 1.67 | W15: -9.27 | X15: 7.44 | Y15: 3.61 | Z15: 0.32
A16: İrlanda | B16: 10.53 | C16: 9.40 | D16: 5.31 | E16: 5.90 | F16: 3.01 | G16: 6.79 | H16: 5.74 | I16: 4.99 | J16: 5.31 | K16: -4.48 | L16: -5.10 | M16: 1.68 | N16: 0.83 | O16: -0.01 | P16: 1.13 | Q16: 8.65 | R16: 24.37 | S16: 2.01 | T16: 9.01 | U16: 8.53 | V16: 5.44 | W16: 6.18 | X16: 13.59 | Y16: 9.00 | Z16: 4.00
A17: İspanya | B17: 4.75 | C17: 5.05 | D17: 3.94 | E17: 2.73 | F17: 2.98 | G17: 3.12 | H17: 3.66 | I17: 4.10 | J17: 3.60 | K17: 0.89 | L17: -3.77 | M17: 0.17 | N17: -0.81 | O17: -2.96 | P17: -1.44 | Q17: 1.38 | R17: 3.84 | S17: 3.03 | T17: 2.98 | U17: 2.29 | V17: 2.08 | W17: -10.82 | X17: 5.13 | Y17: 4.33 | Z17: 1.21
A18: İsrail | B18: 3.33 | C18: 8.67 | D18: 0.34 | E18: -0.12 | F18: 1.39 | G18: 4.79 | H18: 4.13 | I18: 5.58 | J18: 6.03 | K18: 3.25 | L18: 0.88 | M18: 5.67 | N18: 5.56 | O18: 2.59 | P18: 4.42 | Q18: 3.92 | R18: 2.49 | S18: 4.52 | T18: 4.28 | U18: 4.07 | V18: 4.16 | W18: -1.86 | X18: 8.61 | Y18: 6.13 | Z18: 3.01
A19: İsveç | B19: 4.25 | C19: 4.77 | D19: 1.45 | E19: 2.20 | F19: 2.31 | G19: 4.34 | H19: 2.86 | I19: 4.66 | J19: 3.44 | K19: -0.45 | L19: -4.34 | M19: 5.95 | N19: 3.20 | O19: -0.59 | P19: 1.19 | Q19: 2.66 | R19: 4.49 | S19: 2.07 | T19: 2.57 | U19: 1.95 | V19: 1.99 | W19: -2.17 | X19: 5.08 | Y19: 2.60 | Z19: -0.14
A20: İtalya | B20: 1.63 | C20: 3.79 | D20: 1.95 | E20: 0.25 | F20: 0.14 | G20: 1.42 | H20: 0.82 | I20: 1.79 | J20: 1.49 | K20: -0.96 | L20: -5.28 | M20: 1.71 | N20: 0.71 | O20: -2.98 | P20: -1.84 | Q20: -0.01 | R20: 0.78 | S20: 1.29 | T20: 1.67 | U20: 0.93 | V20: 0.50 | W20: -9.03 | X20: 6.70 | Y20: 3.16 | Z20: -0.18
A21: Japonya | B21: -0.33 | C21: 2.77 | D21: 0.39 | E21: 0.04 | F21: 1.54 | G21: 2.19 | H21: 1.80 | I21: 1.37 | J21: 1.48 | K21: -1.22 | L21: -5.69 | M21: 4.10 | N21: 0.02 | O21: 1.38 | P21: 2.01 | Q21: 0.30 | R21: 1.56 | S21: 0.75 | T21: 1.68 | U21: 0.64 | V21: -0.36 | W21: -4.62 | X21: 1.66 | Y21: 1.75 | Z21: 1.61
A22: Kanada | B22: 5.16 | C22: 5.18 | D22: 1.79 | E22: 3.02 | F22: 1.80 | G22: 3.09 | H22: 3.20 | I22: 2.63 | J22: 2.07 | K22: 1.00 | L22: -2.93 | M22: 3.09 | N22: 3.15 | O22: 1.76 | P22: 2.33 | Q22: 2.87 | R22: 0.66 | S22: 1.00 | T22: 3.04 | U22: 2.78 | V22: 1.88 | W22: -5.23 | X22: 4.54 | Y22: 3.30 | Z22: 1.45
A23: Kolombiya | B23: -4.20 | C23: 2.93 | D23: 1.68 | E23: 2.50 | F23: 3.92 | G23: 5.33 | H23: 4.71 | I23: 6.72 | J23: 6.74 | K23: 3.28 | L23: 1.14 | M23: 4.49 | N23: 6.95 | O23: 3.91 | P23: 5.13 | Q23: 4.50 | R23: 2.96 | S23: 2.09 | T23: 1.36 | U23: 2.56 | V23: 3.19 | W23: -7.05 | X23: 10.68 | Y23: 7.56 | Z23: 2.18
A24: Kore | B24: 11.47 | C24: 9.06 | D24: 4.85 | E24: 7.73 | F24: 3.15 | G24: 5.20 | H24: 4.31 | I24: 5.26 | J24: 5.80 | K24: 3.01 | L24: 0.79 | M24: 6.81 | N24: 3.69 | O24: 2.40 | P24: 3.17 | Q24: 3.20 | R24: 2.81 | S24: 2.95 | T24: 3.16 | U24: 2.91 | V24: 2.24 | W24: -0.71 | X24: 4.15 | Y24: 2.59 | Z24: 2.04
A25: Lüksemburg | B25: 8.42 | C25: 8.44 | D25: 3.07 | E25: 3.23 | F25: 2.62 | G25: 4.23 | H25: 2.48 | I25: 6.02 | J25: 8.10 | K25: -0.30 | L25: -3.24 | M25: 3.76 | N25: 1.05 | O25: 1.65 | P25: 3.17 | Q25: 2.62 | R25: 2.27 | S25: 4.98 | T25: 1.32 | U25: 2.00 | V25: 3.28 | W25: -1.78 | X25: 6.89 | Y25: 1.62 | Z25: 1.12
A26: Macaristan | B26: 3.07 | C26: 4.48 | D26: 4.07 | E26: 4.74 | F26: 4.09 | G26: 4.82 | H26: 4.24 | I26: 4.03 | J26: 0.24 | K26: 1.06 | L26: -6.70 | M26: 1.12 | N26: 1.94 | O26: -1.38 | P26: 1.86 | Q26: 4.23 | R26: 3.82 | S26: 2.30 | T26: 4.27 | U26: 5.36 | V26: 4.55 | W26: -4.46 | X26: 7.10 | Y26: 5.70 | Z26: 1.80
A27: Malezya | B27: 6.13 | C27: 8.67 | D27: 0.52 | E27: 5.39 | F27: 5.79 | G27: 6.78 | H27: 4.98 | I27: 5.58 | J27: 6.30 | K27: 4.83 | L27: -1.51 | M27: 7.53 | N27: 5.29 | O27: 5.47 | P27: 4.69 | Q27: 6.01 | R27: 5.01 | S27: 4.45 | T27: 5.81 | U27: 4.84 | V27: 4.41 | W27: -5.53 | X27: 3.09 | Y27: 5.40 | Z27: 4.38
A28: Meksika | B28: 2.75 | C28: 4.94 | D28: -0.40 | E28: -0.04 | F28: 1.45 | G28: 3.92 | H28: 2.31 | I28: 4.50 | J28: 2.29 | K28: 1.14 | L28: -5.29 | M28: 5.12 | N28: 3.66 | O28: 3.64 | P28: 1.35 | Q28: 2.85 | R28: 3.29 | S28: 2.63 | T28: 2.11 | U28: 2.20 | V28: -0.20 | W28: -8.06 | X28: 4.78 | Y28: 2.14 | Z28: 1.15
A29: Mısır | B29: 6.11 | C29: 5.38 | D29: 3.52 | E29: 3.19 | F29: 3.19 | G29: 4.09 | H29: 4.47 | I29: 6.84 | J29: 7.09 | K29: 7.16 | L29: 4.67 | M29: 5.15 | N29: 1.77 | O29: 2.23 | P29: 3.30 | Q29: 4.34 | R29: 5.76 | S29: 5.78 | T29: 5.37 | U29: 4.99 | V29: 5.50 | W29: 3.49 | X29: 3.28 | Y29: 6.61 | Z29: 4.38
A30: Peru | B30: 1.50 | C30: 2.70 | D30: 0.62 | E30: 5.45 | F30: 4.17 | G30: 4.96 | H30: 6.29 | I30: 7.53 | J30: 8.52 | K30: 9.13 | L30: 1.10 | M30: 8.33 | N30: 6.33 | O30: 6.14 | P30: 5.85 | Q30: 2.38 | R30: 3.25 | S30: 3.95 | T30: 2.52 | U30: 3.98 | V30: 2.23 | W30: -11.01 | X30: 13.55 | Y30: 2.71 | Z30: 2.60
A31: Polonya | B31: 4.52 | C31: 4.26 | D31: 1.21 | E31: 1.44 | F31: 3.50 | G31: 4.98 | H31: 3.51 | I31: 6.13 | J31: 7.06 | K31: 4.20 | L31: 2.83 | M31: 3.74 | N31: 4.76 | O31: 1.33 | P31: 1.13 | Q31: 3.38 | R31: 4.24 | S31: 3.14 | T31: 4.83 | U31: 5.35 | V31: 4.75 | W31: -2.20 | X31: 5.88 | Y31: 3.83 | Z31: 0.49
A32: Rusya | B32: 6.35 | C32: 10.05 | D32: 5.09 | E32: 4.74 | F32: 7.35 | G32: 7.18 | H32: 6.38 | I32: 8.15 | J32: 8.54 | K32: 5.25 | L32: -7.82 | M32: 4.50 | N32: 5.07 | O32: 4.02 | P32: 1.76 | Q32: 0.74 | R32: -1.97 | S32: 0.19 | T32: 1.83 | U32: 2.81 | V32: 2.20 | W32: -2.66 | X32: 4.75 | Y32: -3.41 | Z32: -2.28
A33: Sri Lanka | B33: 2.88 | C33: 8.42 | D33: -1.95 | E33: 3.73 | F33: 5.94 | G33: 5.45 | H33: 6.24 | I33: 7.67 | J33: 6.80 | K33: 5.95 | L33: 3.54 | M33: 8.02 | N33: 8.67 | O33: 8.63 | P33: 4.05 | Q33: 6.38 | R33: 4.21 | S33: 5.05 | T33: 6.46 | U33: 2.31 | V33: -0.22 | W33: -3.47 | X33: 3.33 | Y33: -8.69 | Z33: -3.01
A34: Şili | B34: -0.33 | C34: 4.99 | D34: 3.15 | E34: 3.19 | F34: 4.72 | G34: 6.66 | H34: 5.86 | I34: 6.06 | J34: 5.18 | K34: 3.81 | L34: -1.14 | M34: 5.84 | N34: 6.24 | O34: 6.17 | P34: 3.33 | Q34: 1.80 | R34: 2.15 | S34: 1.73 | T34: 1.30 | U34: 3.95 | V34: 0.86 | W34: -6.07 | X34: 11.72 | Y34: 2.03 | Z34: -0.95
A35: Tayland | B35: 4.57 | C35: 4.46 | D35: 3.44 | E35: 6.15 | F35: 7.19 | G35: 6.29 | H35: 4.19 | I35: 4.97 | J35: 5.44 | K35: 1.73 | L35: -0.69 | M35: 7.51 | N35: 0.84 | O35: 7.24 | P35: 2.69 | Q35: 0.98 | R35: 3.13 | S35: 3.44 | T35: 4.18 | U35: 4.22 | V35: 2.15 | W35: -6.20 | X35: 1.53 | Y35: 2.84 | Z35: 3.71
A36: TÜRKİYE | B36: -3.26 | C36: 6.93 | D36: -5.75 | E36: 6.45 | F36: 5.76 | G36: 9.80 | H36: 8.99 | I36: 6.95 | J36: 5.04 | K36: 0.82 | L36: -4.82 | M36: 8.43 | N36: 11.20 | O36: 4.79 | P36: 8.49 | Q36: 4.94 | R36: 6.08 | S36: 3.32 | T36: 7.50 | U36: 2.98 | V36: 0.78 | W36: 1.94 | X36: 11.35 | Y36: 4.97 | Z36: 3.03
A37: Yunanistan | B37: 3.07 | C37: 3.92 | D37: 4.13 | E37: 3.92 | F37: 5.80 | G37: 5.06 | H37: 0.60 | I37: 5.65 | J37: 3.27 | K37: -0.34 | L37: -4.30 | M37: -5.48 | N37: -10.15 | O37: -7.09 | P37: -2.52 | Q37: 0.48 | R37: -0.20 | S37: -0.49 | T37: 1.09 | U37: 1.67 | V37: 1.80 | W37: -9.02 | X37: 8.34 | Y37: 5.20 | Z37: 1.81
A38: Kaynak: IMF
A39: (*) Gölgeli hücreler IMF tahmin rakamlarını vermektedir.
A40: Güncelleme tarihi: 28.11.2022
A42: İÇİNDEKİLER SAYFASI

Sheet III.4
A1: III.4. ENFLASYON
B2: 1997 | C2: 1998 | D2: 1999 | E2: 2000 | F2: 2001 | G2: 2002 | H2: 2003 | I2: 2004 | J2: 2005 | K2: 2006 | L2: 2007 | M2: 2008 | N2: 2009 | O2: 2010 | P2: 2011 | Q2: 2012 | R2: 2013 | S2: 2014 | T2: 2015 | U2: 2016 | V2: 2017 | W2: 2018 | X2: 2019 | Y2: 2020 | Z2: 2021 | AA2: 2022(*) | AB2: 2023(*)
A3: Almanya | B3: 1.5 | C3: 0.6 | D3: 1.4 | E3: 2.0 | F3: 1.4 | G3: 1.0 | H3: 1.1 | I3: 2.2 | J3: 2.1 | K3: 1.4 | L3: 3.1 | M3: 1.0 | N3: 0.9 | O3: 1.8 | P3: 2.2 | Q3: 2.2 | R3: 1.3 | S3: 0.2 | T3: 0.2 | U3: 1.7 | V3: 1.6 | W3: 1.7 | X3: 1.5 | Y3: -0.7 | Z3: 5.7 | AA3: 10.2 | AB3: 5.4
A4: ABD | B4: 2.3 | C4: 1.5 | D4: 2.9 | E4: 3.4 | F4: 1.6 | G4: 2.6 | H4: 1.9 | I4: 3.2 | J4: 3.7 | K4: 2.2 | L4: 4.1 | M4: 0.7 | N4: 1.9 | O4: 1.7 | P4: 3.1 | Q4: 1.8 | R4: 1.3 | S4: 0.5 | T4: 0.7 | U4: 2.2 | V4: 2.2 | W4: 1.9 | X4: 2.1 | Y4: 1.5 | Z4: 7.4 | AA4: 6.4 | AB4: 2.3
A5: Arjantin | B5: n/a | C5: 0.9 | D5: -1.8 | E5: -0.7 | F5: -1.5 | G5: 41.0 | H5: 3.7 | I5: 6.1 | J5: 12.3 | K5: 9.8 | L5: 8.5 | M5: 7.2 | N5: 7.7 | O5: 10.9 | P5: 9.5 | Q5: 10.8 | R5: 10.9 | S5: 23.9 | T5: n/a | U5: n/a | V5: 24.8 | W5: 47.6 | X5: 53.8 | Y5: 36.1 | Z5: 50.9 | AA5: 95.0 | AB5: 60.0
A6: Avusturya | B6: 1.2 | C6: 0.8 | D6: 1.7 | E6: 1.8 | F6: 1.8 | G6: 1.7 | H6: 1.3 | I6: 2.5 | J6: 1.5 | K6: 1.6 | L6: 3.5 | M6: 1.5 | N6: 1.1 | O6: 2.2 | P6: 3.3 | Q6: 2.8 | R6: 1.8 | S6: 0.7 | T6: 1.0 | U6: 1.5 | V6: 2.3 | W6: 1.7 | X6: 1.8 | Y6: 1.0 | Z6: 3.8 | AA6: 7.0 | AB6: 3.2
A7: Brezilya | B7: 6.9 | C7: 3.2 | D7: 8.9 | E7: 6.0 | F7: 7.7 | G7: 12.5 | H7: 9.3 | I7: 7.6 | J7: 5.7 | K7: 3.1 | L7: 4.5 | M7: 5.9 | N7: 4.3 | O7: 5.9 | P7: 6.5 | Q7: 5.8 | R7: 5.9 | S7: 6.4 | T7: 10.7 | U7: 6.3 | V7: 2.9 | W7: 3.7 | X7: 4.3 | Y7: 4.5 | Z7: 10.1 | AA7: 6.0 | AB7: 4.7
A8: Çin | B8: 2.8 | C8: -0.8 | D8: -1.0 | E8: 1.5 | F8: -0.3 | G8: -0.4 | H8: 3.2 | I8: 2.4 | J8: 1.6 | K8: 2.8 | L8: 6.5 | M8: 1.2 | N8: 1.9 | O8: 4.6 | P8: 4.1 | Q8: 2.5 | R8: 2.5 | S8: 1.5 | T8: 1.6 | U8: 2.1 | V8: 1.8 | W8: 1.9 | X8: 4.5 | Y8: -0.3 | Z8: 1.8 | AA8: 2.7 | AB8: 1.8
A9: Danimarka | B9: 2.2 | C9: 1.8 | D9: 3.1 | E9: 2.4 | F9: 2.0 | G9: 2.6 | H9: 1.2 | I9: 1.0 | J9: 2.3 | K9: 1.6 | L9: 2.5 | M9: 2.5 | N9: 1.2 | O9: 2.8 | P9: 2.4 | Q9: 1.7 | R9: 0.5 | S9: 0.0 | T9: 0.3 | U9: 0.3 | V9: 0.8 | W9: 0.7 | X9: 0.8 | Y9: 0.4 | Z9: 3.4 | AA9: 7.2 | AB9: 3.8
A10: Endonezya | B10: 6.2 | C10: 58.0 | D10: 1.9 | E10: 9.3 | F10: 12.6 | G10: 9.9 | H10: 5.2 | I10: 6.4 | J10: 17.1 | K10: 6.6 | L10: 5.8 | M10: 11.1 | N10: 2.8 | O10: 7.0 | P10: 3.8 | Q10: 3.7 | R10: 8.1 | S10: 8.4 | T10: 3.4 | U10: 3.0 | V10: 3.6 | W10: 3.2 | X10: 2.6 | Y10: 1.7 | Z10: 1.9 | AA10: 7.2 | AB10: 3.3
A11: Filipinler | B11: 5.7 | C11: 9.2 | D11: 3.9 | E11: 8.6 | F11: 3.7 | G11: 2.0 | H11: 2.4 | I11: 7.1 | J11: 6.0 | K11: 4.2 | L11: 3.5 | M11: 7.9 | N11: 4.5 | O11: 3.6 | P11: 4.2 | Q11: 2.9 | R11: 3.7 | S11: 1.9 | T11: 0.8 | U11: 2.2 | V11: 2.9 | W11: 5.3 | X11: 2.4 | Y11: 3.3 | Z11: 3.1 | AA11: 5.8 | AB11: 3.7
A12: Finlandiya | B12: 1.2 | C12: 1.3 | D12: 2.2 | E12: 2.9 | F12: 2.4 | G12: 1.7 | H12: 1.2 | I12: 0.1 | J12: 1.0 | K12: 1.2 | L12: 1.9 | M12: 3.4 | N12: 1.8 | O12: 2.8 | P12: 2.6 | Q12: 3.4 | R12: 1.9 | S12: 0.6 | T12: -0.2 | U12: 1.1 | V12: 0.5 | W12: 1.3 | X12: 1.1 | Y12: 0.2 | Z12: 3.2 | AA12: 6.6 | AB12: 3.5
A13: Hindistan | B13: 6.8 | C13: 13.1 | D13: 3.7 | E13: 2.9 | F13: 5.1 | G13: 3.8 | H13: 4.0 | I13: 4.2 | J13: 4.9 | K13: 7.0 | L13: 6.3 | M13: 9.4 | N13: 10.5 | O13: 9.2 | P13: 8.8 | Q13: 10.5 | R13: 7.7 | S13: 5.3 | T13: 5.3 | U13: 3.6 | V13: 4.6 | W13: 2.5 | X13: 6.7 | Y13: 4.9 | Z13: 6.3 | AA13: 6.4 | AB13: 4.9
A14: Birleşik Krallık | B14: 1.8 | C14: 1.6 | D14: 1.1 | E14: 0.8 | F14: 1.1 | G14: 1.7 | H14: 1.3 | I14: 1.7 | J14: 1.9 | K14: 3.0 | L14: 2.1 | M14: 3.1 | N14: 2.9 | O14: 3.7 | P14: 4.2 | Q14: 2.7 | R14: 2.0 | S14: 0.5 | T14: 0.2 | U14: 1.6 | V14: 3.0 | W14: 2.1 | X14: 1.3 | Y14: 0.6 | Z14: 5.4 | AA14: 11.3 | AB14: 6.3
A15: İrlanda | B15: 1.3 | C15: 2.1 | D15: 0.9 | E15: 4.8 | F15: 4.3 | G15: 4.5 | H15: 3.0 | I15: 2.4 | J15: 2.0 | K15: 3.0 | L15: 3.3 | M15: 1.3 | N15: -2.5 | O15: -0.2 | P15: 1.4 | Q15: 1.7 | R15: 0.3 | S15: -0.3 | T15: 0.3 | U15: -0.2 | V15: 0.5 | W15: 0.7 | X15: 1.0 | Y15: -1.1 | Z15: 5.6 | AA15: 10.0 | AB15: 4.2
A16: İspanya | B16: 1.9 | C16: 1.8 | D16: 2.8 | E16: 4.0 | F16: 2.7 | G16: 4.0 | H16: 2.6 | I16: 3.2 | J16: 3.7 | K16: 2.7 | L16: 4.2 | M16: 1.4 | N16: 0.8 | O16: 3.0 | P16: 2.4 | Q16: 2.9 | R16: 0.3 | S16: -1.0 | T16: 0.0 | U16: 1.6 | V16: 1.1 | W16: 1.2 | X16: 0.8 | Y16: -0.5 | Z16: 6.6 | AA16: 7.7 | AB16: 4.1
A17: İsrail | B17: 9.0 | C17: 5.4 | D17: 1.3 | E17: 0.0 | F17: 1.3 | G17: 6.5 | H17: -1.8 | I17: 1.1 | J17: 2.5 | K17: -0.1 | L17: 3.4 | M17: 3.9 | N17: 3.8 | O17: 2.7 | P17: 2.1 | Q17: 1.7 | R17: 1.8 | S17: -0.2 | T17: -1.0 | U17: -0.2 | V17: 0.4 | W17: 0.8 | X17: 0.6 | Y17: -0.7 | Z17: 2.8 | AA17: 5.3 | AB17: 2.7
A18: İsveç | B18: 1.8 | C18: 1.0 | D18: 1.0 | E18: 1.5 | F18: 3.0 | G18: 1.6 | H18: 1.9 | I18: 1.1 | J18: 1.1 | K18: 1.4 | L18: 2.3 | M18: 2.7 | N18: 2.3 | O18: 1.8 | P18: 0.8 | Q18: 1.0 | R18: 0.3 | S18: 0.3 | T18: 0.9 | U18: 1.4 | V18: 1.8 | W18: 2.2 | X18: 1.7 | Y18: 0.3 | Z18: 3.3 | AA18: 8.2 | AB18: 8.0
A19: İtalya | B19: 1.8 | C19: 2.0 | D19: 2.1 | E19: 2.7 | F19: 2.3 | G19: 3.0 | H19: 2.5 | I19: 2.3 | J19: 2.0 | K19: 2.1 | L19: 2.8 | M19: 2.4 | N19: 1.1 | O19: 2.1 | P19: 3.7 | Q19: 2.6 | R19: 0.6 | S19: 0.0 | T19: 0.1 | U19: 0.5 | V19: 1.0 | W19: 1.2 | X19: 0.5 | Y19: -0.3 | Z19: 4.2 | AA19: 8.7 | AB19: 5.2
A20: Japonya | B20: 1.7 | C20: 0.7 | D20: -1.0 | E20: -0.8 | F20: -0.9 | G20: -0.5 | H20: -0.3 | I20: 0.5 | J20: -0.8 | K20: 0.4 | L20: 0.5 | M20: 1.1 | N20: -2.0 | O20: -0.3 | P20: -0.3 | Q20: -0.2 | R20: 1.4 | S20: 2.6 | T20: 0.2 | U20: 0.3 | V20: 0.5 | W20: 0.9 | X20: 0.5 | Y20: -0.9 | Z20: 0.5 | AA20: 2.4 | AB20: 1.2
A21: Kanada | B21: 1.6 | C21: 1.0 | D21: 2.4 | E21: 3.1 | F21: 1.1 | G21: 3.8 | H21: 1.7 | I21: 2.3 | J21: 2.3 | K21: 1.4 | L21: 2.5 | M21: 1.8 | N21: 0.8 | O21: 2.2 | P21: 2.7 | Q21: 1.0 | R21: 1.0 | S21: 2.0 | T21: 1.3 | U21: 1.4 | V21: 1.8 | W21: 2.1 | X21: 2.1 | Y21: 0.7 | Z21: 4.7 | AA21: 6.9 | AB21: 3.2
A22: Kolombiya | C22: 18.7 | D22: 9.0 | E22: 8.5 | F22: 7.5 | G22: 6.8 | H22: 6.4 | I22: 5.5 | J22: 4.8 | K22: 4.5 | L22: 5.7 | M22: 7.6 | N22: 1.9 | O22: 3.1 | P22: 3.7 | Q22: 2.4 | R22: 2.0 | S22: 3.7 | T22: 6.8 | U22: 5.7 | V22: 4.1 | W22: 3.1 | X22: 3.8 | Y22: 1.6 | Z22: 5.6 | AA22: 11.0 | AB22: 6.0
A23: Kore | B23: 4.4 | C23: 7.5 | D23: 1.4 | E23: 2.8 | F23: 3.2 | G23: 3.7 | H23: 3.4 | I23: 3.0 | J23: 2.6 | K23: 2.1 | L23: 3.6 | M23: 4.1 | N23: 2.8 | O23: 3.0 | P23: 4.2 | Q23: 1.4 | R23: 1.1 | S23: 0.8 | T23: 1.1 | U23: 1.3 | V23: 1.4 | W23: 1.3 | X23: 0.7 | Y23: 0.6 | Z23: 3.7 | AA23: 6.2 | AB23: 2.6
A24: Lüksemburg | B24: Inflation, average consumer prices | C24: 1.0 | D24: 2.4 | E24: 4.3 | F24: 1.0 | G24: 2.8 | H24: 2.5 | I24: 3.5 | J24: 3.5 | K24: 2.3 | L24: 4.3 | M24: 0.7 | N24: 2.5 | O24: 3.1 | P24: 3.4 | Q24: 2.4 | R24: 1.5 | S24: -1.0 | T24: 0.8 | U24: 1.6 | V24: 1.5 | W24: 1.9 | X24: 1.8 | Y24: -0.3 | Z24: 5.4 | AA24: 7.5 | AB24: 3.0
A25: Macaristan | B25: Inflation, average consumer prices | C25: 14.2 | D25: 11.2 | E25: 10.1 | F25: 6.8 | G25: 4.8 | H25: 5.7 | I25: 5.5 | J25: 3.3 | K25: 6.5 | L25: 7.4 | M25: 3.5 | N25: 5.6 | O25: 4.7 | P25: 4.1 | Q25: 5.0 | R25: 0.4 | S25: -0.9 | T25: 0.9 | U25: 1.8 | V25: 2.1 | W25: 2.7 | X25: 4.0 | Y25: 2.7 | Z25: 7.4 | AA25: 20.1 | AB25: 6.7
A26: Malezya | B26: Inflation, average consumer prices | C26: 5.3 | D26: 2.5 | E26: 1.2 | F26: 1.2 | G26: 1.6 | H26: 1.2 | I26: 2.2 | J26: 3.2 | K26: 3.1 | L26: 2.3 | M26: 4.5 | N26: 1.0 | O26: 2.1 | P26: 3.0 | Q26: 1.2 | R26: 3.2 | S26: 2.7 | T26: 2.7 | U26: 1.7 | V26: 3.5 | W26: 0.2 | X26: 1.0 | Y26: -1.4 | Z26: 3.2 | AA26: 3.2 | AB26: 2.8
A27: Meksika | B27: Inflation, average consumer prices | C27: 15.9 | D27: 12.3 | E27: 9.0 | F27: 4.4 | G27: 5.7 | H27: 4.0 | I27: 5.2 | J27: 3.3 | K27: 4.1 | L27: 3.8 | M27: 6.5 | N27: 3.6 | O27: 4.4 | P27: 3.8 | Q27: 3.6 | R27: 4.0 | S27: 4.1 | T27: 2.1 | U27: 3.4 | V27: 6.8 | W27: 4.8 | X27: 2.8 | Y27: 3.2 | Z27: 7.4 | AA27: 8.5 | AB27: 4.8
A28: Mısır | B28: Inflation, average consumer prices | C28: 5.0 | D28: 2.9 | E28: 2.5 | F28: 2.5 | G28: 2.4 | H28: 4.2 | I28: 12.0 | J28: 4.6 | K28: 7.3 | L28: 8.6 | M28: 20.1 | N28: 9.8 | O28: 10.2 | P28: 11.8 | Q28: 7.2 | R28: 9.9 | S28: 8.3 | T28: 11.3 | U28: 14.0 | V28: 29.8 | W28: 14.4 | X28: 9.4 | Y28: 5.7 | Z28: 4.9 | AA28: 13.1 | AB28: 9.2
A29: Peru | B29: Inflation, average consumer prices | C29: 7.3 | D29: 3.7 | E29: 3.7 | F29: -0.1 | G29: 1.5 | H29: 2.5 | I29: 3.5 | J29: 1.5 | K29: 1.1 | L29: 3.9 | M29: 6.7 | N29: 0.2 | O29: 2.1 | P29: 4.7 | Q29: 2.6 | R29: 2.9 | S29: 3.2 | T29: 4.4 | U29: 3.2 | V29: 1.4 | W29: 2.2 | X29: 1.9 | Y29: 2.0 | Z29: 6.4 | AA29: 6.8 | AB29: 3.0
A30: Polonya | B30: Inflation, average consumer prices | C30: 11.8 | D30: 9.8 | E30: 8.5 | F30: 3.6 | G30: 0.8 | H30: 1.7 | I30: 4.4 | J30: 0.7 | K30: 1.4 | L30: 4.0 | M30: 3.3 | N30: 3.5 | O30: 3.1 | P30: 4.6 | Q30: 2.4 | R30: 0.7 | S30: -1.0 | T30: -0.5 | U30: 0.8 | V30: 2.1 | W30: 1.1 | X30: 3.4 | Y30: 2.4 | Z30: 8.6 | AA30: 15.9 | AB30: 9.0
A31: Rusya | B31: Inflation, average consumer prices | C31: 27.7 | D31: 36.6 | E31: 20.2 | F31: 18.6 | G31: 15.1 | H31: 12.0 | I31: 11.7 | J31: 10.9 | K31: 9.0 | L31: 11.9 | M31: 13.3 | N31: 8.8 | O31: 8.8 | P31: 6.1 | Q31: 6.6 | R31: 6.5 | S31: 11.4 | T31: 12.9 | U31: 5.4 | V31: 2.5 | W31: 4.3 | X31: 3.0 | Y31: 4.9 | Z31: 8.4 | AA31: 12.5 | AB31: 4.0
A32: Sri Lanka | B32: Inflation, average consumer prices | C32: 9.4 | D32: 4.0 | E32: 10.8 | F32: 10.8 | G32: 11.3 | H32: 12.2 | I32: 13.1 | J32: 7.5 | K32: 13.3 | L32: 18.8 | M32: 13.9 | N32: 5.1 | O32: 6.8 | P32: 4.9 | Q32: 9.3 | R32: 4.6 | S32: 1.4 | T32: 4.6 | U32: 4.5 | V32: 7.1 | W32: 2.8 | X32: 4.8 | Y32: 4.2 | Z32: 12.1 | AA32: 69.8 | AB32: 9.1
A33: Şili | B33: Inflation, average consumer prices | C33: 5.1 | D33: 2.3 | E33: 4.6 | F33: 2.7 | G33: 2.9 | H33: 1.1 | I33: 2.4 | J33: 3.7 | K33: 2.6 | L33: 7.9 | M33: 7.1 | N33: -1.5 | O33: 2.9 | P33: 4.4 | Q33: 1.5 | R33: 3.1 | S33: 4.7 | T33: 4.4 | U33: 2.7 | V33: 2.2 | W33: 2.1 | X33: 2.9 | Y33: 2.9 | Z33: 7.1 | AA33: 12.2 | AB33: 6.2
A34: Tayland | B34: Inflation, average consumer prices | C34: 8.0 | D34: 0.6 | E34: 1.6 | F34: 0.6 | G34: 1.6 | H34: 1.9 | I34: 2.9 | J34: 5.7 | K34: 3.7 | L34: 3.0 | M34: 0.5 | N34: 3.5 | O34: 3.1 | P34: 3.5 | Q34: 3.6 | R34: 1.7 | S34: 0.6 | T34: -0.9 | U34: 1.1 | V34: 0.8 | W34: 0.4 | X34: 0.9 | Y34: -0.3 | Z34: 2.2 | AA34: 7.3 | AB34: 0.3
A35: Türkiye | B35: Inflation, average consumer prices | C35: 84.7 | D35: 68.8 | E35: 39.0 | F35: 68.5 | G35: 29.7 | H35: 18.4 | I35: 9.4 | J35: 7.7 | K35: 9.7 | L35: 8.4 | M35: 10.1 | N35: 6.5 | O35: 6.4 | P35: 10.4 | Q35: 6.2 | R35: 7.4 | S35: 8.2 | T35: 8.8 | U35: 8.5 | V35: 11.9 | W35: 20.3 | X35: 11.8 | Y35: 14.6 | Z35: 36.1 | AA35: 73.5 | AB35: 36.9
A36: Yunanistan | B36: Inflation, average consumer prices | C36: 4.5 | D36: 2.3 | E36: 3.7 | F36: 3.5 | G36: 3.5 | H36: 3.1 | I36: 3.1 | J36: 3.5 | K36: 3.2 | L36: 3.9 | M36: 2.2 | N36: 2.5 | O36: 5.2 | P36: 2.2 | Q36: 0.3 | R36: -1.8 | S36: -2.5 | T36: 0.4 | U36: 0.3 | V36: 1.0 | W36: 0.6 | X36: 1.1 | Y36: -2.4 | Z36: 4.4 | AA36: 8.2 | AB36: 1.6
A37: Kaynak: IMF
A38: Not1: Enflasyon, Dönem Sonu Tüketici Fiyatları, % Değişim
A39: (*) Gölgeli hücreler IMF tahmin rakamlarını vermektedir.
A40: Güncelleme tarihi: 25.11.2022
A42: İÇİNDEKİLER SAYFASI

Sheet III.5
A1: III.5. TAHVİL STOKU (milyar dolar)
A3: Ülkeler | B3: 1995 | C3: 1996 | D3: 1997 | E3: 1998 | F3: 1999 | G3: 2000 | H3: 2001 | I3: 2002 | J3: 2003 | K3: 2004 | L3: 2005 | M3: 2006 | N3: 2007 | O3: 2008 | P3: 2009 | Q3: 2010 | R3: 2011 | S3: 2012 | T3: 2013 | U3: 2014 | V3: 2015 | W3: 2016 | X3: 2017 | Y3: 2018 | Z3: 2019 | AA3: 2020 | AB3: 2021 | AC3: 2022/06
A4: Arjantin | B4: - | C4: - | D4: - | E4: - | F4: - | G4: - | H4: - | I4: 1 | J4: 3 | K4: 5 | L4: 9 | M4: 13 | N4: 16 | O4: 11 | P4: 12 | Q4: 18 | R4: 15 | S4: 16 | T4: 15 | U4: 25 | V4: - | W4: 33 | X4: - | Y4: 100 | Z4: 89 | AA4: 110 | AB4: 123 | AC4: 142
A5: Brezilya | B5: - | C5: - | D5: - | E5: - | F5: - | G5: - | H5: - | I5: 308 | J5: 414 | K5: 507 | L5: 681 | M5: 856 | N5: 1,191 | O5: 1,117 | P5: 1,675 | Q5: 2,006 | R5: 2,117 | S5: 2,134 | T5: 1,990 | U5: 2,023 | V5: - | W5: 1,983 | X5: 2,184 | Y5: 2,131 | Z5: 2,169 | AA5: 1,944 | AB5: 1,989 | AC5: 2,180
A6: Çin | B6: - | C6: - | D6: - | E6: - | F6: - | G6: 202 | H6: 238 | I6: 342 | J6: 448 | K6: 624 | L6: 899 | M6: 1,184 | N6: 1,688 | O6: 2,210 | P6: 2,567 | Q6: 3,046 | R6: 3,389 | S6: 3,777 | T6: 4,085 | U6: 4,368 | V6: 7,512 | W6: 7,874 | X6: 11,419 | Y6: 12,476 | Z6: 14,197 | AA6: 17,829 | AB6: 20,931 | AC6: 21,070
A7: Danimarka | B7: - | C7: - | D7: - | E7: - | F7: 260 | G7: 249 | H7: 262 | I7: 341 | J7: 427 | K7: 528 | L7: 481 | M7: 537 | N7: 634 | O7: 649 | P7: 739 | Q7: 711 | R7: 715 | S7: 745 | T7: 730 | U7: - | V7: 569 | W7: 581 | X7: 654 | Y7: 645 | Z7: 673 | AA7: 754 | AB7: 669 | AC7: 559
A8: Endonezya | B8: 5 | C8: 8 | D8: 2 | E8: 5 | F8: 45 | G8: 48 | H8: 43 | I8: 53 | J8: 59 | K8: 54 | L8: 48 | M8: 70 | N8: 77 | O8: 95 | P8: 96 | Q8: 135 | R8: 136 | S8: 130 | T8: 102 | U8: 117 | V8: 129 | W8: 157 | X8: 218 | Y8: 220 | Z8: 259 | AA8: 326 | AB8: 387 | AC8: 380
A9: Filipinler | B9: 26 | C9: 28 | D9: 17 | E9: 20 | F9: 23 | G9: 21 | H9: 24 | I9: 28 | J9: 31 | K9: 36 | L9: 41 | M9: 45 | N9: 54 | O9: 52 | P9: 55 | Q9: 64 | R9: 67 | S9: 83 | T9: 88 | U9: 86 | V9: 83 | W9: 82 | X9: 89 | Y9: 91 | Z9: 101 | AA9: 139 | AB9: 160 | AC9: 159
A10: Hindistan | B10: - | C10: - | D10: - | E10: 4 | F10: 4 | G10: 4 | H10: 5 | I10: 7 | J10: 8 | K10: 17 | L10: 26 | M10: 32 | N10: 43 | O10: 42 | P10: 51 | Q10: 46 | R10: 516 | S10: 621 | T10: 635 | U10: 684 | V10: 651 | W10: 727 | X10: 861 | Y10: 857 | Z10: 923 | AA10: 1,056 | AB10: 1,165 | AC10: 1,184
A11: İsveç | B11: - | C11: - | D11: - | E11: - | F11: - | G11: - | H11: 8 | I11: 9 | J11: 176 | K11: 201 | L11: 175 | M11: 202 | N11: 219 | O11: 169 | P11: 186 | Q11: 439 | R11: 438 | S11: 466 | T11: 413 | U11: - | V11: - | W11: 373 | X11: 426 | Y11: 397 | Z11: 382 | AA11: 472 | AB11: 454 | AC11: 376
A12: Japonya | B12: - | C12: - | D12: 5,055 | E12: 5,865 | F12: 7,180 | G12: 6,572 | H12: 6,162 | I12: 7,256 | J12: 8,598 | K12: 9,606 | L12: 8,997 | M12: 8,925 | N12: 9,481 | O12: 12,068 | P12: 12,067 | Q12: 14,315 | R12: 15,498 | S12: 14,371 | T12: 12,057 | U12: 10,835 | V12: 10,925 | W12: 13,582 | X12: 12,293 | Y12: 12,054 | Z12: 12,399 | AA12: 14,218 | AB12: 12,885 | AC12: 11,162
A13: Kanada | B13: 574 | C13: 588 | D13: 598 | E13: 578 | F13: 656 | G13: 655 | H13: 631 | I13: 646 | J13: 807 | K13: 900 | L13: 975 | M13: 1,032 | N13: 1,206 | O13: 1,029 | P13: 1,295 | Q13: 1,458 | R13: 1,521 | S13: 1,682 | T13: 1,685 | U13: 1,588 | V13: 1,424 | W13: 1,551 | X13: 1,699 | Y13: 2,140 | Z13: 2,321 | AA13: 2,815 | AB13: 2,912 | AC13: 2,921
A14: Kolombiya | B14: 6 | C14: 8 | D14: 10 | E14: 11 | F14: 14 | G14: 17 | H14: 20 | I14: 19 | J14: 23 | K14: 30 | L14: 41 | M14: 45 | N14: 52 | O14: 52 | P14: 61 | Q14: 72 | R14: 81 | S14: 91 | T14: 95 | U14: 85 | V14: 66 | W14: 78 | X14: 89 | Y14: 93 | Z14: 99 | AA14: 108 | AB14: 106 | AC14: 106
A15: Kore | B15: - | C15: - | D15: - | E15: - | F15: - | G15: - | H15: - | I15: 491 | J15: 518 | K15: 655 | L15: 725 | M15: 867 | N15: 929 | O15: 741 | P15: 943 | Q15: 1,049 | R15: 1,110 | S15: 1,280 | T15: 1,406 | U15: 1,425 | V15: 1,432 | W15: - | X15: 1,693 | Y15: 1,691 | Z15: 1,731 | AA15: 2,060 | AB15: 2,407 | AC15: 2,182
A16: Macaristan | B16: - | C16: - | D16: - | E16: - | F16: - | G16: - | H16: - | I16: - | J16: - | K16: - | L16: - | M16: - | N16: - | O16: - | P16: - | Q16: 79 | R16: 65 | S16: 84 | T16: 97 | U16: 70 | V16: 68 | W16: 72 | X16: 92 | Y16: 91 | Z16: 95 | AA16: 112 | AB16: 111 | AC16: 92
A17: Malezya | B17: - | C17: - | D17: - | E17: - | F17: - | G17: - | H17: - | I17: - | J17: - | K17: - | L17: 133 | M17: 160 | N17: 193 | O17: 194 | P17: 209 | Q17: 268 | R17: 288 | S17: 352 | T17: 334 | U17: 339 | V17: 277 | W17: 303 | X17: 332 | Y17: 345 | Z17: 375 | AA17: 408 | AB17: 424 | AC17: 415
A18: Meksika | B18: - | C18: - | D18: - | E18: - | F18: - | G18: - | H18: - | I18: - | J18: - | K18: - | L18: 260 | M18: 311 | N18: 350 | O18: 319 | P18: 365 | Q18: 428 | R18: 445 | S18: 539 | T18: 606 | U18: 597 | V18: 545 | W18: 484 | X18: 521 | Y18: 556 | Z18: 620 | AA18: 623 | AB18: 629 | AC18: 651
A19: Peru | B19: 9 | C19: 8 | D19: 8 | E19: 7 | F19: 7 | G19: 7 | H19: 8 | I19: 7 | J19: 8 | K19: 10 | L19: 12 | M19: 13 | N19: 20 | O19: 17 | P19: 19 | Q19: 26 | R19: 25 | S19: 32 | T19: 25 | U19: 24 | V19: 24 | W19: 27 | X19: 46 | Y19: 46 | Z19: 45 | AA19: 62 | AB19: 48 | AC19: 49
A20: Rusya | B20: - | C20: - | D20: - | E20: - | F20: - | G20: - | H20: - | I20: - | J20: - | K20: 10 | L20: 54 | M20: 80 | N20: 108 | O20: 112 | P20: 149 | Q20: 181 | R20: 208 | S20: 257 | T20: 285 | U20: 189 | V20: 182 | W20: 219 | X20: 317 | Y20: 297 | Z20: 398 | AA20: 416 | AB20: 440 | AC20: 636
A21: Şili | B21: - | C21: - | D21: - | E21: - | F21: - | G21: - | H21: - | I21: - | J21: - | K21: - | L21: - | M21: - | N21: - | O21: 64 | P21: 91 | Q21: 106 | R21: 117 | S21: 134 | T21: 134 | U21: 132 | V21: 117 | W21: 140 | X21: - | Y21: - | Z21: - | AA21: - | AB21: - | AC21: -
A22: Tayland | B22: 3 | C22: 3 | D22: 1 | E22: 12 | F22: 17 | G22: 17 | H22: 18 | I22: 29 | J22: 51 | K22: 60 | L22: 81 | M22: 117 | N22: 161 | O22: 163 | P22: 204 | Q22: 259 | R22: 274 | S22: 291 | T22: 265 | U22: 287 | V22: 277 | W22: 298 | X22: 353 | Y22: 391 | Z22: 448 | AA22: 466 | AB22: 446 | AC22: 429
A23: TÜRKİYE | B23: - | C23: - | D23: - | E23: - | F23: - | G23: - | H23: - | I23: - | J23: 140 | K23: 169 | L23: 183 | M23: 179 | N23: 219 | O23: 181 | P23: 222 | Q23: 231 | R23: 202 | S23: 233 | T23: 206 | U23: 198 | V23: 168 | W23: 174 | X23: 161 | Y23: 128 | Z23: 146 | AA23: 160 | AB23: 110 | AC23: 107
A24: Kaynak: BIS
A25: Not: BIS 2012 Aralık ayından itibaren tahvil stokunun derlenme metodunu geçmiş verileri kapsayacak şekilde değiştirmiştir. Bilgi için bkz. http://www.bis.org/statistics/secstats.htm
A26: Güncelleme tarihi: 06.12.2022
A28: İÇİNDEKİLER SAYFASI

Sheet III.6
A1: III.6. TAHVİL STOKU/GSYH
B3: 1995 | C3: 1996 | D3: 1997 | E3: 1998 | F3: 1999 | G3: 2000 | H3: 2001 | I3: 2002 | J3: 2003 | K3: 2004 | L3: 2005 | M3: 2006 | N3: 2007 | O3: 2008 | P3: 2009 | Q3: 2010 | R3: 2011 | S3: 2012 | T3: 2013 | U3: 2014 | V3: 2015 | W3: 2016 | X3: 2017 | Y3: 2018 | Z3: 2019 | AA3: 2020 | AB3: 2021 | AC3: 2022/06
A4: Arjantin | B4: - | C4: - | D4: - | E4: - | F4: - | G4: - | H4: - | I4: 0.01 | J4: 0.02 | K4: 0.03 | L4: 0.04 | M4: 0.06 | N4: 0.06 | O4: 0.03 | P4: 0.03 | Q4: 0.04 | R4: 0.03 | S4: 0.03 | T4: 0.02 | U4: 0.04 | V4: - | W4: 0.06 | X4: - | Y4: 0.19 | Z4: 0.20 | AA4: 0.28 | AB4: 0.25 | AC4: 0.23
A5: Brezilya | B5: - | C5: - | D5: - | E5: - | F5: - | G5: - | H5: - | I5: 0.60 | J5: 0.74 | K5: 0.76 | L5: 0.76 | M5: 0.77 | N5: 0.85 | O5: 0.66 | P5: 1.00 | Q5: 0.91 | R5: 0.81 | S5: 0.87 | T5: 0.81 | U5: 0.84 | V5: - | W5: 1.12 | X5: 1.06 | Y5: 1.14 | Z5: 1.16 | AA5: 1.35 | AB5: 1.24 | AC5: 1.15
A6: Çin | B6: - | C6: - | D6: - | E6: - | F6: - | G6: 0.17 | H6: 0.18 | I6: 0.23 | J6: 0.27 | K6: 0.32 | L6: 0.39 | M6: 0.43 | N6: 0.47 | O6: 0.48 | P6: 0.50 | Q6: 0.50 | R6: 0.45 | S6: 0.44 | T6: 0.42 | U6: 0.41 | V6: 0.67 | W6: 0.69 | X6: 0.95 | Y6: 0.93 | Z6: 0.99 | AA6: 1.20 | AB6: 1.20 | AC6: 1.15
A7: Danimarka | B7: - | C7: - | D7: - | E7: - | F7: 1.46 | G7: 1.52 | H7: 1.59 | I7: 1.91 | J7: 1.96 | K7: 2.10 | L7: 1.82 | M7: 1.90 | N7: 1.98 | O7: 1.84 | P7: 2.31 | Q7: 2.22 | R7: 2.09 | S7: 2.29 | T7: 2.16 | U7: - | V7: 1.93 | W7: 1.92 | X7: 2.02 | Y7: 1.84 | Z7: 1.94 | AA7: 2.12 | AB7: 1.69 | AC7: 1.45
A8: Endonezya | B8: 0.03 | C8: 0.03 | D8: 0.01 | E8: 0.05 | F8: 0.27 | G8: 0.27 | H8: 0.25 | I8: 0.25 | J8: 0.23 | K8: 0.19 | L8: 0.16 | M8: 0.18 | N8: 0.16 | O8: 0.17 | P8: 0.17 | Q8: 0.18 | R8: 0.15 | S8: 0.14 | T8: 0.11 | U8: 0.13 | V8: 0.15 | W8: 0.17 | X8: 0.21 | Y8: 0.22 | Z8: 0.23 | AA8: 0.31 | AB8: 0.33 | AC8: 0.29
A9: Filipinler | B9: 0.32 | C9: 0.30 | D9: 0.18 | E9: 0.28 | F9: 0.28 | G9: 0.26 | H9: 0.32 | I9: 0.34 | J9: 0.37 | K9: 0.39 | L9: 0.40 | M9: 0.37 | N9: 0.36 | O9: 0.30 | P9: 0.33 | Q9: 0.32 | R9: 0.30 | S9: 0.33 | T9: 0.32 | U9: 0.30 | V9: 0.28 | W9: 0.26 | X9: 0.28 | Y9: 0.28 | Z9: 0.27 | AA9: 0.38 | AB9: 0.41 | AC9: 0.40
A10: Hindistan | B10: - | C10: - | D10: - | E10: 0.01 | F10: 0.01 | G10: 0.01 | H10: 0.01 | I10: 0.01 | J10: 0.01 | K10: 0.02 | L10: 0.03 | M10: 0.03 | N10: 0.03 | O10: 0.03 | P10: 0.04 | Q10: 0.03 | R10: 0.28 | S10: 0.34 | T10: 0.34 | U10: 0.34 | V10: 0.31 | W10: 0.32 | X10: 0.33 | Y10: 0.32 | Z10: 0.32 | AA10: 0.40 | AB10: 0.37 | AC10: 0.34
A11: İsveç | B11: - | C11: - | D11: - | E11: - | F11: - | G11: - | H11: 0.03 | I11: 0.03 | J11: 0.53 | K11: 0.53 | L11: 0.45 | M11: 0.48 | N11: 0.45 | O11: 0.33 | P11: 0.43 | Q11: 0.90 | R11: 0.78 | S11: 0.86 | T11: 0.71 | U11: - | V11: - | W11: 0.72 | X11: 0.79 | Y11: 0.72 | Z11: 0.72 | AA11: 0.87 | AB11: 0.72 | AC11: 0.62
A12: Japonya | B12: - | C12: - | D12: 1.17 | E12: 1.50 | F12: 1.63 | G12: 1.39 | H12: 1.48 | I12: 1.82 | J12: 2.00 | K12: 2.06 | L12: 1.97 | M12: 2.05 | N12: 2.18 | O12: 2.49 | P12: 2.40 | Q12: 2.60 | R12: 2.62 | S12: 2.41 | T12: 2.46 | U12: 2.36 | V12: 2.65 | W12: 2.87 | X12: 2.52 | Y12: 2.42 | Z12: 2.41 | AA12: 2.82 | AB12: 2.61 | AC12: 2.60
A13: Kanada | B13: 0.97 | C13: 0.94 | D13: 0.92 | E13: 0.91 | F13: 0.97 | G13: 0.88 | H13: 0.86 | I13: 0.85 | J13: 0.90 | K13: 0.88 | L13: 0.83 | M13: 0.78 | N13: 0.82 | O13: 0.66 | P13: 0.94 | Q13: 0.90 | R13: 0.85 | S13: 0.92 | T13: 0.92 | U13: 0.89 | V13: 0.92 | W13: 1.01 | X13: 1.03 | Y13: 1.25 | Z13: 1.33 | AA13: 1.71 | AB13: 1.46 | AC13: 1.33
A14: Kolombiya | B14: 0.06 | C14: 0.07 | D14: 0.08 | E14: 0.10 | F14: 0.13 | G14: 0.17 | H14: 0.20 | I14: 0.20 | J14: 0.24 | K14: 0.26 | L14: 0.28 | M14: 0.27 | N14: 0.25 | O14: 0.21 | P14: 0.26 | Q14: 0.25 | R14: 0.24 | S14: 0.25 | T14: 0.25 | U14: 0.22 | V14: 0.23 | W14: 0.28 | X14: 0.29 | Y14: 0.28 | Z14: 0.31 | AA14: 0.40 | AB14: 0.34 | AC14: 0.31
A15: Kore | B15: - | C15: - | D15: - | E15: - | F15: - | G15: - | H15: - | I15: 0.81 | J15: 0.76 | K15: 0.86 | L15: 0.81 | M15: 0.86 | N15: 0.83 | O15: 0.74 | P15: 1.05 | Q15: 0.96 | R15: 0.92 | S15: 1.05 | T15: 1.08 | U15: 1.01 | V15: 1.04 | W15: - | X15: 1.10 | Y15: 1.04 | Z15: 1.05 | AA15: 1.26 | AB15: 1.34 | AC15: 1.26
A16: Macaristan | B16: - | C16: - | D16: - | E16: - | F16: - | G16: - | H16: - | I16: - | J16: - | K16: - | L16: - | M16: - | N16: - | O16: - | P16: - | Q16: 0.60 | R16: 0.47 | S16: 0.66 | T16: 0.72 | U16: 0.50 | V16: 0.56 | W16: 0.62 | X16: 0.60 | Y16: 0.58 | Z16: 0.58 | AA16: 0.72 | AB16: 0.60 | AC16: 0.50
A17: Malezya | B17: - | C17: - | D17: - | E17: - | F17: - | G17: - | H17: - | I17: - | J17: - | K17: - | L17: 0.90 | M17: 0.95 | N17: 0.96 | O17: 0.81 | P17: 1.00 | Q17: 1.05 | R17: 0.97 | S17: 1.12 | T17: 1.03 | U17: 1.00 | V17: 0.94 | W17: 1.00 | X17: 1.06 | Y17: 0.97 | Z17: 1.03 | AA17: 1.21 | AB17: 1.14 | AC17: 0.96
A18: Meksika | B18: - | C18: - | D18: - | E18: - | F18: - | G18: - | H18: - | I18: - | J18: - | K18: - | L18: 0.30 | M18: 0.32 | N18: 0.34 | O18: 0.29 | P18: 0.41 | Q18: 0.41 | R18: 0.38 | S18: 0.45 | T18: 0.48 | U18: 0.46 | V18: 0.48 | W18: 0.46 | X18: 0.45 | Y18: 0.45 | Z18: 0.49 | AA18: 0.58 | AB18: 0.49 | AC18: 0.46
A19: Peru | B19: 0.16 | C19: 0.15 | D19: 0.14 | E19: 0.14 | F19: 0.14 | G19: 0.14 | H19: 0.15 | I19: 0.14 | J19: 0.14 | K19: 0.15 | L19: 0.16 | M19: 0.15 | N19: 0.20 | O19: 0.14 | P19: 0.16 | Q19: 0.17 | R19: 0.14 | S19: 0.16 | T19: 0.13 | U19: 0.12 | V19: 0.13 | W19: 0.15 | X19: 0.21 | Y19: 0.20 | Z19: 0.19 | AA19: 0.30 | AB19: 0.21 | AC19: 0.20
A20: Rusya | B20: - | C20: - | D20: - | E20: - | F20: - | G20: - | H20: - | I20: - | J20: - | K20: 0.01 | L20: 0.07 | M20: 0.08 | N20: 0.08 | O20: 0.06 | P20: 0.11 | Q20: 0.11 | R20: 0.10 | S20: 0.12 | T20: 0.13 | U20: 0.09 | V20: 0.14 | W20: 0.17 | X20: 0.21 | Y20: 0.18 | Z20: 0.24 | AA20: 0.28 | AB20: 0.25 | AC20: 0.30
A21: Şili | B21: - | C21: - | D21: - | E21: - | F21: - | G21: - | H21: - | I21: - | J21: - | K21: - | L21: - | M21: - | N21: - | O21: 0.36 | P21: 0.53 | Q21: 0.49 | R21: 0.46 | S21: 0.51 | T21: 0.48 | U21: 0.51 | V21: 0.49 | W21: 0.60 | X21: - | Y21: - | Z21: - | AA21: - | AB21: - | AC21: -
A22: Tayland | B22: 0.02 | C22: 0.01 | D22: 0.01 | E22: 0.10 | F22: 0.14 | G22: 0.13 | H22: 0.15 | I22: 0.22 | J22: 0.33 | K22: 0.35 | L22: 0.43 | M22: 0.53 | N22: 0.61 | O22: 0.56 | P22: 0.72 | Q22: 0.76 | R22: 0.74 | S22: 0.73 | T22: 0.63 | U22: 0.71 | V22: 0.70 | W22: 0.76 | X22: 0.78 | Y22: 0.80 | Z22: 0.82 | AA22: 0.93 | AB22: 0.87 | AC22: 0.80
A23: TÜRKİYE | B23: - | C23: - | D23: - | E23: - | F23: - | G23: - | H23: - | I23: - | J23: 0.46 | K23: 0.43 | L23: 0.38 | M23: 0.34 | N23: 0.34 | O23: 0.25 | P23: 0.36 | Q23: 0.32 | R23: 0.26 | S23: 0.29 | T23: 0.25 | U23: 0.25 | V23: 0.23 | W23: 0.24 | X23: 0.19 | Y23: 0.17 | Z23: 0.19 | AA23: 0.22 | AB23: 0.14 | AC23: 0.13
A24: Kaynak: BIS, IMF
A25: Not: BIS 2012 Aralık ayından itibaren tahvil stokunun derlenme metodunu geçmiş verileri kapsayacak şekilde değiştirmiştir. Bilgi için bkz. http://www.bis.org/statistics/secstats.htm
A26: Güncelleme tarihi:: 06.12.2022
A27: (*) Gölgeli hücreler IMF tahmin rakamlarını vermektedir.
A28: İÇİNDEKİLER SAYFASI

Sheet III.7
A1: III.7. DIŞ BORÇ STOKU - BRÜT (milyon dolar)
A3: Ülkeler | B3: 2007/12 | C3: 2008/12 | D3: 2009/03 | E3: 2009/06 | F3: 2009/09 | G3: 2009/12 | H3: 2010/12 | I3: 2011/12 | J3: 2012/12 | K3: 2013/12 | L3: 2014/12 | M3: 2015/12 | N3: 2016/12 | O3: 2017/12 | P3: 2018/12 | Q3: 2019/12 | R3: 2020/12 | S3: 2021/12 | T3: 2022/06
A4: Almanya | B4: 5,154,634 | C4: 5,158,439 | D4: 4,915,078 | E4: 5,211,907 | F4: 5,278,654 | G4: 5,116,072 | H4: 5,217,014 | I4: 5,338,151 | J4: 5,716,532 | K4: 5,502,627 | L4: 5,467,827 | M4: 4,893,111 | N4: 4,867,161 | O4: 5,700,623 | P4: 5,572,892 | Q4: 5,620,756 | R4: 6,822,454 | S4: 6,947,740 | T4: 6,464,043
A5: ABD | B5: 13,427,103 | C5: 13,749,570 | D5: 13,501,451 | E5: 13,454,217 | F5: 13,671,606 | G5: 13,661,791 | H5: 14,456,194 | I5: 15,508,155 | J5: 15,680,472 | K5: 16,572,612 | L5: 17,258,054 | M5: 17,710,435 | N5: 18,025,120 | O5: 19,020,976 | P5: 19,669,422 | Q5: 20,600,666 | R5: 21,417,490 | S5: 23,313,742 | T5: 24,048,762
A6: Arjantin | B6: 123,989 | C6: 124,702 | D6: 123,589 | E6: 122,932 | F6: 119,709 | G6: 116,415 | H6: 128,913 | I6: 140,654 | J6: 140,877 | K6: 144,186 | L6: 146,248 | M6: 170,625 | N6: 181,170 | O6: 234,549 | P6: 277,932 | Q6: 278,489 | R6: 271,443 | S6: 267,868 | T6: 274,837
A7: Avusturya | B7: 801,400 | C7: 832,753 | D7: 788,415 | E7: 834,045 | F7: 869,225 | G7: 831,601 | H7: 822,045 | I7: 786,102 | J7: 811,983 | K7: 823,538 | L7: 740,078 | M7: 646,565 | N7: 614,831 | O7: 684,674 | P7: 655,604 | Q7: 686,438 | R7: 767,539 | S7: 737,556 | T7: 687,362
A8: Brezilya | B8: 240,495 | C8: 262,910 | D8: 259,926 | E8: 270,107 | F8: 281,842 | G8: 277,563 | H8: 351,941 | I8: 404,117 | J8: 440,604 | K8: 482,771 | L8: 712,518 | M8: 665,101 | N8: 676,647 | O8: 667,103 | P8: 665,777 | Q8: 675,789 | R8: 639,308 | S8: 670,286 | T8: -
A9: Danimarka | B9: 567,413 | C9: 588,776 | D9: 577,445 | E9: 607,375 | F9: 630,603 | G9: 605,826 | H9: 596,102 | I9: 571,000 | J9: 586,560 | K9: 609,707 | L9: 535,880 | M9: 462,849 | N9: 469,730 | O9: 545,555 | P9: 490,113 | Q9: 501,643 | R9: 606,429 | S9: 571,977 | T9: 516,552
A10: Endonezya | B10: 141,171 | C10: 155,067 | D10: 151,228 | E10: 153,826 | F10: 168,048 | G10: 172,871 | H10: 202,413 | I10: 225,375 | J10: 252,364 | K10: 265,589 | L10: 293,876 | M10: 310,179 | N10: 317,782 | O10: 352,936 | P10: 377,355 | Q10: 403,660 | R10: 459,156 | S10: 458,265 | T10: -
A11: Finlandiya | B11: 314,136 | C11: 339,454 | D11: 355,519 | E11: 370,937 | F11: 381,766 | G11: 406,812 | H11: 441,369 | I11: 538,365 | J11: 586,940 | K11: 455,139 | L11: 546,743 | M11: 480,325 | N11: 462,618 | O11: 489,216 | P11: 579,052 | Q11: 604,906 | R11: 652,368 | S11: 586,277 | T11: 631,700
A12: Hindistan | B12: 206,005 | C12: 228,942 | D12: 223,953 | E12: 227,688 | F12: 242,612 | G12: 252,398 | H12: 295,890 | I12: 331,591 | J12: 378,490 | K12: 427,607 | L12: 458,769 | M12: 479,264 | N12: 455,969 | O12: 513,462 | P12: 521,202 | Q12: 563,941 | R12: 563,756 | S12: 614,919 | T12: 617,098
A13: İngiltere | B13: 11,260,597 | C13: 9,106,737 | D13: 8,570,340 | E13: 9,177,063 | F13: 9,512,322 | G13: 9,409,468 | H13: 9,482,996 | I13: 9,976,167 | J13: 9,525,120 | K13: 9,365,044 | L13: 9,168,133 | M13: 8,186,626 | N13: 7,428,442 | O13: 8,647,109 | P13: 8,424,581 | Q13: 8,840,646 | R13: 9,733,339 | S13: 9,867,266 | T13: 8,733,614
A14: İrlanda | B14: 2,263,299 | C14: 2,355,639 | D14: 2,256,760 | E14: 2,386,612 | F14: 2,397,435 | G14: 2,384,730 | H14: 2,303,419 | I14: 2,213,173 | J14: 2,170,553 | K14: 2,257,021 | L14: 1,959,963 | M14: 2,424,379 | N14: 2,225,865 | O14: 2,427,926 | P14: 2,729,696 | Q14: 2,852,044 | R14: - | S14: - | T14: 3,093,001
A15: İspanya | B15: 2,299,065 | C15: 2,316,545 | D15: 2,245,555 | E15: 2,409,516 | F15: 2,538,610 | G15: 2,531,091 | H15: 2,309,284 | I15: 2,276,890 | J15: 2,277,935 | K15: 2,213,334 | L15: 2,106,008 | M15: 1,972,936 | N15: 1,967,819 | O15: 2,324,789 | P15: 2,316,185 | Q15: 2,382,740 | R15: 2,741,387 | S15: 2,639,067 | T15: 2,437,346
A16: İsrail | B16: 89,582 | C16: 86,083 | D16: 83,860 | E16: 83,584 | F16: 90,247 | G16: 92,109 | H16: 106,018 | I16: 103,914 | J16: 96,970 | K16: 95,366 | L16: 96,161 | M16: 89,437 | N16: 87,734 | O16: 88,643 | P16: 93,794 | Q16: 104,989 | R16: 130,409 | S16: 161,836 | T16: 161,400
A17: İtalya | B17: 2,499,984 | C17: 2,395,317 | D17: 2,370,579 | E17: 2,577,890 | F17: 2,669,507 | G17: 2,551,151 | H17: 2,435,220 | I17: 2,349,707 | J17: 2,516,032 | K17: 2,628,853 | L17: 2,451,463 | M17: 2,256,637 | N17: 2,185,732 | O17: 2,530,044 | P17: 2,443,011 | Q17: 2,507,452 | R17: 2,843,543 | S17: 2,767,273 | T17: 2,586,619
A18: Japonya | B18: 1,767,807 | C18: 2,230,634 | D18: 2,087,258 | E18: 2,131,756 | F18: 2,215,128 | G18: 2,086,400 | H18: 2,588,607 | I18: 3,115,170 | J18: 3,016,811 | K18: 2,803,153 | L18: 2,726,442 | M18: 2,945,062 | N18: 3,411,515 | O18: 3,600,458 | P18: 4,012,590 | Q18: 4,239,168 | R18: 4,821,479 | S18: 4,638,977 | T18: 4,361,082
A19: Kanada | B19: 806,946 | C19: 781,073 | D19: 806,493 | E19: 850,142 | F19: 941,978 | G19: 997,474 | H19: 1,106,998 | I19: 1,190,897 | J19: 1,331,262 | K19: 1,389,932 | L19: 1,531,450 | M19: 1,590,860 | N19: 1,755,927 | O19: 1,967,301 | P19: 1,896,960 | Q19: 2,221,818 | R19: 2,446,626 | S19: 2,632,406 | T19: 2,517,089
A20: Kolombiya | B20: 44,553 | C20: 46,377 | D20: 46,779 | E20: 46,509 | F20: 51,335 | G20: 53,719 | H20: 64,738 | I20: 75,903 | J20: 78,763 | K20: 91,923 | L20: 101,301 | M20: 110,492 | N20: 120,153 | O20: 124,579 | P20: 131,928 | Q20: 138,088 | R20: 154,509 | S20: 171,476 | T20: -
A21: Macaristan | B21: 167,736 | C21: 215,265 | D21: 211,533 | E21: 222,009 | F21: 239,561 | G21: 238,865 | H21: 208,996 | I21: 208,143 | J21: 203,472 | K21: 200,485 | L21: 184,098 | M21: 156,295 | N21: 145,519 | O21: 153,997 | P21: 153,356 | Q21: 156,238 | R21: 252,430 | S21: 262,576 | T21: -
A22: Malezya | B22: 62,326 | C22: 75,326 | D22: 74,670 | E22: 73,258 | F22: 77,858 | G22: 76,376 | H22: 82,320 | I22: 91,662 | J22: 98,647 | K22: 212,284 | L22: 213,873 | M22: 194,279 | N22: 204,203 | O22: 216,585 | P22: 223,484 | Q22: 213,013 | R22: 238,760 | S22: 258,613 | T22: -
A23: Meksika | B23: 193,143 | C23: 201,674 | D23: 170,380 | E23: 173,484 | F23: 191,437 | G23: 198,634 | H23: 250,955 | I23: 285,351 | J23: 372,104 | K23: 424,023 | L23: 426,939 | M23: 417,589 | N23: 415,666 | O23: 438,143 | P23: 447,465 | Q23: 464,252 | R23: 620,871 | S23: 608,875 | T23: -
A24: Mısır | B24: 32,840 | C24: 32,123 | D24: 30,880 | E24: 31,531 | F24: 32,399 | G24: 33,287 | H24: 34,993 | I24: 33,693 | J24: 38,824 | K24: 45,752 | L24: 41,324 | M24: 47,792 | N24: 67,323 | O24: 82,885 | P24: 96,612 | Q24: 112,671 | R24: 129,196 | S24: 145,529 | T24: 155,700
A25: Peru | B25: 32,567 | C25: 34,587 | D25: 34,195 | E25: 34,104 | F25: 34,655 | G25: 35,731 | H25: 40,574 | I25: 43,515 | J25: 53,325 | K25: 56,508 | L25: 61,270 | M25: 65,938 | N25: 69,609 | O25: 67,519 | P25: 66,697 | Q25: 64,207 | R25: 73,483 | S25: 89,671 | T25: -
A26: Polonya | B26: 233,074 | C26: 243,477 | D26: 225,438 | E26: 246,827 | F26: 276,110 | G26: 280,187 | H26: 315,341 | I26: 320,637 | J26: 365,745 | K26: 382,087 | L26: 354,720 | M26: 329,967 | N26: 337,633 | O26: 382,010 | P26: 359,860 | Q26: 353,962 | R26: 375,353 | S26: 365,026 | T26: 349,424
A27: Şili | B27: 55,671 | C27: 64,768 | D27: 64,552 | E27: 64,222 | F27: 68,393 | G27: 72,991 | H27: 86,738 | I27: 98,579 | J27: 117,569 | K27: 130,724 | L27: 149,652 | M27: 155,656 | N27: 163,789 | O27: 180,184 | P27: 184,548 | Q27: 197,234 | R27: 209,591 | S27: 239,002 | T27: -
A28: Tayland | B28: 61,738 | C28: 65,225 | D28: 62,357 | E28: 63,067 | F28: 67,433 | G28: 75,307 | H28: 100,561 | I28: 104,386 | J28: 130,747 | K28: 141,933 | L28: 140,135 | M28: 131,427 | N28: 132,194 | O28: 155,225 | P28: 162,376 | Q28: 171,885 | R28: 190,713 | S28: 197,453 | T28: 194,189
A29: TÜRKİYE | B29: 249,390 | C29: 278,302 | D29: 266,632 | E29: 268,559 | F29: 269,934 | G29: 268,794 | H29: 290,022 | I29: 306,703 | J29: 337,679 | K29: 389,273 | L29: 402,705 | M29: 397,711 | N29: 404,460 | O29: 455,545 | P29: 443,730 | Q29: 434,503 | R29: 432,848 | S29: 442,492 | T29: 444,392
A30: Yunanistan | B30: 454,200 | C30: 504,612 | D30: 491,294 | E30: 553,003 | F30: 594,598 | G30: 587,562 | H30: 543,706 | I30: 478,678 | J30: 577,182 | K30: 575,400 | L30: 515,330 | M30: 480,326 | N30: 454,094 | O30: 484,242 | P30: 473,330 | Q30: 503,841 | R30: 606,822 | S30: 630,426 | T30: 587,100
A31: Kaynak:The World Bank Group (BIS-IMF-OECD), https://www.ceicdata.com/en
A32: Güncelleme tarihi: 07.12.2022
A33: 2022/06 verileri https://www.ceicdata.com/en kaynağından, öncesi ise http://databank.worldbank.org kaynağından alınmıştır.
A34: İÇİNDEKİLER SAYFASI

Sheet III.8
A1: III.8. DIŞ TİCARET GÖSTERGELERİ* (milyar dolar)
B2: İthalat | P2: İhracat | AD2: İhracat - İthalat
A3: Ülkeler | B3: 2006 | C3: 2009 | D3: 2010 | E3: 2011 | F3: 2012 | G3: 2013 | H3: 2014 | I3: 2015 | J3: 2016 | K3: 2017 | L3: 2018 | M3: 2019 | N3: 2020 | O3: 2021 | P3: 2006 | Q3: 2009 | R3: 2010 | S3: 2011 | T3: 2012 | U3: 2013 | V3: 2014 | W3: 2015 | X3: 2016 | Y3: 2017 | Z3: 2018 | AA3: 2019 | AB3: 2020 | AC3: 2021 | AD3: 2006 | AE3: 2009 | AF3: 2010 | AG3: 2011 | AH3: 2012 | AI3: 2013 | AJ3: 2014 | AK3: 2015 | AL3: 2016 | AM3: 2017 | AN3: 2018 | AO3: 2019 | AP3: 2020 | AQ3: 2021
A4: Gelişmiş Ülkeler
A5: Almanya | B5: 906.4 | C5: 874 | D5: 999 | E5: 1,202 | F5: 1,118 | G5: 1,152 | H5: 1,177 | I5: 1,019 | J5: 1,025 | K5: 1,129 | L5: 1,261 | M5: 1,218 | N5: 1,136 | O5: 1,390 | P5: 1,108 | Q5: 1,070 | R5: 1,212 | S5: 1,429 | T5: 1,374 | U5: 1,422 | V5: 1,469 | W5: 1,294 | X5: 1,304 | Y5: 1,417 | Z5: 1,523 | AA5: 1,459 | AB5: 1,352 | AC5: 1,617 | AD5: =P5-B5 -> 201 | AE5: 195 | AF5: 213 | AG5: 227 | AH5: 256 | AI5: 271 | AJ5: 291 | AK5: 276 | AL5: 279 | AM5: 288 | AN5: 262 | AO5: 241 | AP5: 216 | AQ5: 228
A6: ABD | B6: 1,853.9 | C6: 1,580 | D6: 1,939 | E6: 2,240 | F6: 2,304 | G6: 2,294 | H6: 2,385 | I6: 2,273 | J6: 2,207 | K6: 2,356 | L6: 2,556 | M6: 2,514 | N6: 2,351 | O6: 2,853 | P6: 1,037 | Q6: 1,070 | R6: 1,290 | S6: 1,499 | T6: 1,563 | U6: 1,594 | V6: 1,636 | W6: 1,511 | X6: 1,457 | Y6: 1,557 | Z6: 1,677 | AA6: 1,652 | AB6: 1,429 | AC6: 1,762 | AD6: =P6-B6 -> -817 | AE6: =Q6-C6 -> -510 | AF6: =R6-D6 -> -649 | AG6: =S6-E6 -> -741 | AH6: =T6-F6 -> -741 | AI6: =U6-G6 -> -701 | AJ6: =V6-H6 -> -750 | AK6: =W6-I6 -> -762 | AL6: =X6-J6 -> -750 | AM6: =Y6-K6 -> -799 | AN6: =Z6-L6 -> -879 | AO6: =AA6-M6 -> -862 | AP6: =AB6-N6 -> -922 | AQ6: =AC6-O6 -> -1,091
A7: Avusturya | B7: 137.2 | C7: 132 | D7: 147 | E7: 175 | F7: 164 | G7: 166 | H7: 166 | I7: 141 | J7: 143 | K7: 157 | L7: 175 | M7: 166 | N7: 154 | O7: 201 | P7: 137 | Q7: 131 | R7: 145 | S7: 170 | T7: 160 | U7: 164 | V7: 167 | W7: 143 | X7: 145 | Y7: 158 | Z7: 176 | AA7: 170 | AB7: 158 | AC7: 199 | AD7: -0 | AE7: -1 | AF7: -2 | AG7: -5 | AH7: -4 | AI7: -1 | AJ7: 1 | AK7: 3 | AL7: 3 | AM7: 1 | AN7: =Z7-L7 -> 1 | AO7: =AA7-M7 -> 4 | AP7: =AB7-N7 -> 3 | AQ7: =AC7-O7 -> -2
A8: Fransa | B8: 541.7 | C8: 520 | D8: 571 | E8: 677 | F8: 631 | G8: 639 | H8: 637 | I8: 554 | J8: 557 | K8: 610 | L8: 674 | M8: 649 | N8: 571 | O8: 700 | P8: 496 | Q8: 469 | R8: 507 | S8: 587 | T8: 561 | U8: 582 | V8: 580 | W8: 522 | X8: 521 | Y8: 558 | Z8: 613 | AA8: 597 | AB8: 503 | AC8: 620 | AD8: -46 | AE8: -51 | AF8: -64 | AG8: -90 | AH8: -70 | AI8: -57 | AJ8: -57 | AK8: -32 | AL8: -36 | AM8: -52 | AN8: -60 | AO8: -52 | AP8: =AB8-N8 -> -68 | AQ8: =AC8-O8 -> -80
A9: Hollanda | B9: 416.7 | C9: 349 | D9: 397 | E9: 464 | F9: 455 | G9: 467 | H9: 469 | I9: 392 | J9: 393 | K9: 438 | L9: 488 | M9: 482 | N9: 455 | O9: 575 | P9: 463 | Q9: 423 | R9: 477 | S9: 554 | T9: 547 | U9: 567 | V9: 570 | W9: 464 | X9: 465 | Y9: 519 | Z9: 572 | AA9: 549 | AB9: 528 | AC9: 658 | AD9: 47 | AE9: 74 | AF9: 80 | AG9: 90 | AH9: 91 | AI9: 100 | AJ9: 101 | AK9: 73 | AL9: 73 | AM9: 81 | AN9: 85 | AO9: 67 | AP9: =AB9-N9 -> 74 | AQ9: =AC9-O9 -> 83
A10: İngiltere | B10: 560.1 | C10: 493 | D10: 562 | E10: 650 | F10: 649 | G10: 661 | H10: 691 | I10: 620 | J10: 590 | K10: 616 | L10: 658 | M10: 651 | N10: 562 | O10: 657 | P10: 452 | Q10: 355 | R10: 410 | S10: 485 | T10: 473 | U10: 468 | V10: 475 | W10: 428 | X10: 402 | Y10: 435 | Z10: 468 | AA10: 475 | AB10: 396 | AC10: 443 | AD10: -108 | AE10: -138 | AF10: -152 | AG10: -165 | AH10: -176 | AI10: -193 | AJ10: -215 | AK10: -192 | AL10: -188 | AM10: -181 | AN10: -190 | AO10: -176 | AP10: -166 | AQ10: =AC10-O10 -> -215
A11: İspanya | B11: 328.6 | C11: 287 | D11: 318 | E11: 364 | F11: 328 | G11: 333 | H11: 349 | I11: 303 | J11: 303 | K11: 342 | L11: 378 | M11: 360 | N11: 312 | O11: 403 | P11: 214 | Q11: 229 | R11: 254 | S11: 304 | T11: 292 | U11: 316 | V11: 321 | W11: 280 | X11: 287 | Y11: 317 | Z11: 344 | AA11: 330 | AB11: 301 | AC11: 379 | AD11: -115 | AE11: -58 | AF11: -64 | AG11: -60 | AH11: -36 | AI11: -17 | AJ11: -28 | AK11: -23 | AL11: -16 | AM11: -25 | AN11: -35 | AO11: -30 | AP11: -10 | AQ11: =AC11-O11 -> -24
A12: İtalya | B12: 442.4 | C12: 395 | D12: 461 | E12: 528 | F12: 460 | G12: 450 | H12: 449 | I12: 387 | J12: 383 | K12: 429 | L12: 478 | M12: 446 | N12: 395 | O12: 523 | P12: 417 | Q12: 396 | R12: 435 | S12: 506 | T12: 484 | U12: 501 | V12: 514 | W12: 447 | X12: 449 | Y12: 490 | Z12: 533 | AA12: 514 | AB12: 472 | AC12: 585 | AD12: -26 | AE12: 1 | AF12: -26 | AG12: -22 | AH12: 24 | AI12: 51 | AJ12: 65 | AK12: 60 | AL12: 66 | AM12: 61 | AN12: 54 | AO12: 68 | AP12: 78 | AQ12: =AC12-O12 -> 62
A13: Japonya | B13: 578.8 | C13: 489 | D13: 625 | E13: 794 | F13: 830 | G13: 785 | H13: 799 | I13: 629 | J13: 584 | K13: 645 | L13: 725 | M13: 694 | N13: 603 | O13: 734 | P13: 647 | Q13: 546 | R13: 734 | S13: 790 | T13: 776 | U13: 695 | V13: 700 | W13: 622 | X13: 635 | Y13: 689 | Z13: 735 | AA13: 695 | AB13: 631 | AC13: 750 | AD13: 68 | AE13: 58 | AF13: 108 | AG13: -4 | AH13: -54 | AI13: -90 | AJ13: -99 | AK13: -7 | AL13: 51 | AM13: 44 | AN13: 10 | AO13: 1 | AP13: 28 | AQ13: =AC13-O13 -> 16
A14: Kanada | B14: 350.0 | C14: 328 | D14: 402 | E14: 461 | F14: 476 | G14: 473 | H14: 475 | I14: 430 | J14: 413 | K14: 443 | L14: 469 | M14: 463 | N14: 419 | O14: 503 | P14: 388 | Q14: 323 | R14: 393 | S14: 463 | T14: 463 | U14: 466 | V14: 480 | W14: 411 | X14: 394 | Y14: 424 | Z14: 452 | AA14: 449 | AB14: 389 | AC14: 507 | AD14: 38 | AE14: -5 | AF14: -9 | AG14: 1 | AH14: -13 | AI14: -7 | AJ14: 5 | AK14: -19 | AL14: -19 | AM14: -19 | AN14: -17 | AO14: -14 | AP14: -30 | AQ14: 4
A15: Gelişmekte Olan Ülkeler
A16: Brezilya | B16: 91.4 | C16: 129 | D16: 183 | E16: 228 | F16: 225 | G16: 241 | H16: 231 | I16: 172 | J16: 140 | K16: 161 | L16: 196 | M16: 199 | N16: 178 | O16: 248 | P16: 138 | Q16: 154 | R16: 201 | S16: 255 | T16: 242 | U16: 242 | V16: 224 | W16: 190 | X16: 184 | Y16: 218 | Z16: 240 | AA16: 226 | AB16: 211 | AC16: 284 | AD16: =P16-B16 -> 46 | AE16: 25 | AF16: 18 | AG16: 28 | AH16: 17 | AI16: 0 | AJ16: -7 | AK16: 17 | AL16: 45 | AM16: 57 | AN16: 43 | AO16: 27 | AP16: 32 | AQ16: 36
A17: Çin | B17: 791.8 | C17: 884 | D17: 1,240 | E17: 1,579 | F17: 1,662 | G17: 1,790 | H17: 1,809 | I17: 1,567 | J17: 1,501 | K17: 1,740 | L17: 2,037 | M17: 1,994 | N17: 1,999 | O17: 2,653 | P17: 969 | Q17: 1,119 | R17: 1,478 | S17: 1,808 | T17: 1,974 | U17: 2,149 | V17: 2,244 | W17: 2,143 | X17: 1,990 | Y17: 2,216 | Z17: 2,417 | AA17: 2,387 | AB17: 2,510 | AC17: 3,216 | AD17: 178 | AE17: 235 | AF17: 238 | AG17: 229 | AH17: 312 | AI17: 359 | AJ17: 435 | AK17: 576 | AL17: 489 | AM17: 476 | AN17: 380 | AO17: 393 | AP17: 511 | AQ17: 563
A18: Endonezya | B18: 61.1 | C18: 81 | D18: 119 | E18: 157 | F18: 179 | G18: 176 | H18: 168 | I18: 135 | J18: 129 | K18: 150 | L18: 181 | M18: 165 | N18: 135 | O18: 189 | P18: 101 | Q18: 113 | R18: 150 | S18: 191 | T18: 187 | U18: 182 | V18: 175 | W18: 149 | X18: 144 | Y18: 169 | Z18: 181 | AA18: 168 | AB18: 163 | AC18: 233 | AD18: =P18-B18 -> 40 | AE18: 32 | AF18: 31 | AG18: 34 | AH18: 9 | AI18: 6 | AJ18: 7 | AK18: 14 | AL18: 15 | AM18: =Y18-K18 -> 19 | AN18: =Z18-L18 -> -0 | AO18: =AA18-M18 -> 4 | AP18: =AB18-N18 -> 28 | AQ18: 44
A19: Güney Afrika | B19: 68.2 | C19: 66 | D19: 83 | E19: 103 | F19: 105 | G19: 104 | H19: 99 | I19: 85 | J19: 74 | K19: 83 | L19: 92 | M19: 87 | N19: 67 | O19: 91 | P19: 58 | Q19: 70 | R19: 91 | S19: 109 | T19: 100 | U19: 97 | V19: 93 | W19: 80 | X19: 76 | Y19: 88 | Z19: 94 | AA19: 90 | AB19: 85 | AC19: 122 | AD19: -10 | AE19: 3 | AF19: 8 | AG19: 7 | AH19: -5 | AI19: -8 | AJ19: -6 | AK19: -4 | AL19: 2 | AM19: 4 | AN19: 2 | AO19: 3 | AP19: 18 | AQ19: 30
A20: Hindistan | B20: 178.4 | C20: 275 | D20: 360 | E20: 475 | F20: 503 | G20: 481 | H20: 472 | I20: 409 | J20: 376 | K20: 452 | L20: 519 | M20: 489 | N20: 376 | O20: 580 | P20: 122 | Q20: 168 | R20: 231 | S20: 307 | T20: 301 | U20: 320 | V20: 328 | W20: 272 | X20: 269 | Y20: 304 | Z20: 332 | AA20: 331 | AB20: 281 | AC20: 403 | AD20: -57 | AE20: -107 | AF20: -129 | AG20: -168 | AH20: -202 | AI20: -161 | AJ20: -144 | AK20: -137 | AL20: -108 | AM20: -148 | AN20: -187 | AO20: -158 | AP20: -95 | AQ20: -178
A21: Kore | B21: 309.4 | C21: 316 | D21: 416 | E21: 559 | F21: 555 | G21: 538 | H21: 527 | I21: 423 | J21: 395 | K21: 467 | L21: 516 | M21: 477 | N21: 437 | O21: 574 | P21: 325 | Q21: 364 | R21: 464 | S21: 587 | T21: 604 | U21: 618 | V21: 613 | W21: 543 | X21: 512 | Y21: 580 | Z21: 626 | AA21: 557 | AB21: 518 | AC21: 650 | AD21: 16 | AE21: 48 | AF21: 48 | AG21: 28 | AH21: 49 | AI21: 80 | AJ21: 86 | AK21: 120 | AL21: 116 | AM21: 114 | AN21: 110 | AO21: =AA21-M21 -> 80 | AP21: 81 | AQ21: 76
A22: Rusya | B22: 163.2 | C22: 184 | D22: 246 | E22: 319 | F22: 336 | G22: 341 | H22: 308 | I22: 193 | J22: 191 | K22: 238 | L22: 249 | M22: 254 | N22: 240 | O22: 304 | P22: 297 | Q22: 297 | R22: 393 | S22: 515 | T22: 527 | U22: 522 | V22: 497 | W22: 341 | X22: 282 | Y22: 353 | Z22: 444 | AA22: 420 | AB22: 333 | AC22: 494 | AD22: 134 | AE22: 113 | AF22: 147 | AG22: 197 | AH22: 192 | AI22: 181 | AJ22: 189 | AK22: 148 | AL22: 90 | AM22: 115 | AN22: 195 | AO22: 166 | AP22: 94 | AQ22: =AC22-O22 -> 190
A23: TÜRKİYE | B23: 140.1 | C23: 134 | D23: 177 | E23: 232 | F23: 227 | G23: 249 | H23: 240 | I23: 204 | J23: 193 | K23: 228 | L23: 220 | M23: 199 | N23: 206 | O23: 254 | P23: 86 | Q23: 110 | R23: 121 | S23: 142 | T23: 162 | U23: 167 | V23: 173 | W23: 155 | X23: 153 | Y23: 169 | Z23: 179 | AA23: 182 | AB23: 168 | AC23: 225 | AD23: -54 | AE23: -25 | AF23: -56 | AG23: -89 | AH23: -65 | AI23: -82 | AJ23: -67 | AK23: -49 | AL23: -40 | AM23: =Y23-K23 -> -59 | AN23: -41 | AO23: =AA23-M23 -> -17 | AP23: =AB23-N23 -> -38 | AQ23: =AC23-O23 -> -29
A24: Kaynak: OECD
A25: * Rakamlar mal ihracat ve ithalatını göstermektedir.
A26: Güncelleme Tarihi: 10.05.2022
A29: İÇİNDEKİLER SAYFASI

Sheet III.9
A1: III.9. CARİ İŞLEMLER DENGESİ (GSYH'ye oranı)
A3: Ülkeler | B3: 1999 | C3: 2000 | D3: 2001 | E3: 2002 | F3: 2003 | G3: 2004 | H3: 2005 | I3: 2006 | J3: 2007 | K3: 2008 | L3: 2009 | M3: 2010 | N3: 2011 | O3: 2012 | P3: 2013 | Q3: 2014 | R3: 2015 | S3: 2016 | T3: 2017 | U3: 2018 | V3: 2019 | W3: 2020 | X3: 2021(*) | Y3: 2022(*) | Z3: 2023(*)
A4: Almanya | B4: -1.42 | C4: -1.76 | D4: -0.37 | E4: 1.89 | F4: 1.41 | G4: 4.52 | H4: 4.67 | I4: 5.77 | J4: 6.86 | K4: 5.69 | L4: 5.84 | M4: 5.74 | N4: 6.21 | O4: 7.13 | P4: 6.56 | Q4: 7.20 | R4: 8.60 | S4: 8.51 | T4: 7.83 | U4: 7.96 | V4: 7.57 | W4: 7.01 | X4: 7.36 | Y4: 4.19 | Z4: 5.26
A5: Amerika | B5: -2.98 | C5: -3.92 | D5: -3.72 | E5: -4.17 | F5: -4.56 | G5: -5.21 | H5: -5.75 | I5: -5.91 | J5: -5.09 | K5: -4.72 | L5: -2.62 | M5: -2.87 | N5: -2.92 | O5: -2.57 | P5: -2.02 | Q5: -2.11 | R5: -2.24 | S5: -2.12 | T5: -1.85 | U5: -2.14 | V5: -2.09 | W5: -2.97 | X5: -3.68 | Y5: -3.94 | Z5: -3.14
A6: Arjantin | B6: -3.82 | C6: -2.88 | D6: -1.32 | E6: 7.67 | F6: 5.60 | G6: 1.80 | H6: 2.47 | I6: 2.79 | J6: 2.10 | K6: 1.49 | L6: 2.17 | M6: -0.38 | N6: -1.01 | O6: -0.37 | P6: -2.15 | Q6: -1.63 | R6: -2.74 | S6: -2.71 | T6: -4.84 | U6: -5.17 | V6: -0.78 | W6: 0.80 | X6: 1.38 | Y6: -0.32 | Z6: 0.58
A7: Avusturya | B7: -2.26 | C7: -0.71 | D7: -0.80 | E7: 2.10 | F7: 1.55 | G7: 2.08 | H7: 2.26 | I7: 3.30 | J7: 3.80 | K7: 4.49 | L7: 2.60 | M7: 2.86 | N7: 1.63 | O7: 1.48 | P7: 1.94 | Q7: 2.47 | R7: 1.73 | S7: 2.72 | T7: 1.37 | U7: 0.90 | V7: 2.09 | W7: 1.90 | X7: -0.52 | Y7: -2.62 | Z7: -2.08
A8: Brezilya | B8: -4.31 | C8: -3.81 | D8: -4.24 | E8: -1.60 | F8: 0.64 | G8: 1.66 | H8: 1.55 | I8: 1.18 | J8: 0.03 | K8: -1.82 | L8: -1.58 | M8: -3.59 | N8: -2.93 | O8: -3.43 | P8: -3.24 | Q8: -4.14 | R8: -3.04 | S8: -1.36 | T8: -1.07 | U8: -2.68 | V8: -3.47 | W8: -1.69 | X8: -1.74 | Y8: -1.45 | Z8: -1.56
A9: Çin | B9: 1.94 | C9: 1.70 | D9: 1.31 | E9: 2.42 | F9: 2.60 | G9: 3.54 | H9: 5.78 | I9: 8.42 | J9: 9.93 | K9: 9.19 | L9: 4.78 | M9: 3.94 | N9: 1.82 | O9: 2.52 | P9: 1.54 | Q9: 2.24 | R9: 2.64 | S9: 1.70 | T9: 1.54 | U9: 0.17 | V9: 0.72 | W9: 1.67 | X9: 1.79 | Y9: 1.80 | Z9: 1.45
A10: Danimarka | B10: 2.53 | C10: 1.99 | D10: 3.65 | E10: 3.00 | F10: 3.93 | G10: 4.05 | H10: 4.20 | I10: 3.33 | J10: 1.45 | K10: 2.92 | L10: 3.47 | M10: 6.57 | N10: 6.59 | O10: 6.28 | P10: 7.76 | Q10: 8.92 | R10: 8.25 | S10: 7.77 | T10: 8.01 | U10: 7.28 | V10: 8.47 | W10: 8.02 | X10: 8.75 | Y10: 8.22 | Z10: 7.44
A11: Endonezya | B11: 3.40 | C11: 4.45 | D11: 3.95 | E11: 3.68 | F11: 3.17 | G11: 1.88 | H11: 0.51 | I11: 2.41 | J11: 1.45 | K11: 0.02 | L11: 1.84 | M11: 0.70 | N11: 0.19 | O11: -2.66 | P11: -3.18 | Q11: -3.09 | R11: -2.04 | S11: -1.82 | T11: -1.60 | U11: -2.94 | V11: -2.71 | W11: -0.42 | X11: 0.29 | Y11: 2.18 | Z11: 1.11
A12: Filipinler | B12: -3.36 | C12: -2.66 | D12: -2.22 | E12: -0.33 | F12: 0.33 | G12: 1.71 | H12: 1.85 | I12: 5.46 | J12: 5.18 | K12: 0.08 | L12: 4.80 | M12: 3.45 | N12: 2.41 | O12: 2.65 | P12: 4.01 | Q12: 3.62 | R12: 2.37 | S12: -0.38 | T12: -0.65 | U12: -2.56 | V12: -0.81 | W12: 3.20 | X12: -1.76 | Y12: -4.39 | Z12: -3.31
A13: Finlandiya | B13: 4.85 | C13: 7.16 | D13: 7.68 | E13: 7.82 | F13: 4.31 | G13: 5.60 | H13: 2.88 | I13: 3.93 | J13: 4.03 | K13: 2.54 | L13: 2.00 | M13: 1.49 | N13: -1.44 | O13: -2.06 | P13: -1.80 | Q13: -1.33 | R13: -0.94 | S13: -2.00 | T13: -0.80 | U13: -1.85 | V13: -0.31 | W13: 0.64 | X13: 0.92 | Y13: -0.77 | Z13: -0.25
A14: Hindistan | B14: -1.01 | C14: -0.56 | D14: 0.69 | E14: 1.21 | F14: 2.28 | G14: -0.34 | H14: -1.19 | I14: -1.01 | J14: -1.27 | K14: -2.28 | L14: -2.82 | M14: -2.80 | N14: -4.29 | O14: -4.81 | P14: -1.74 | Q14: -1.31 | R14: -1.05 | S14: -0.63 | T14: -1.84 | U14: -2.12 | V14: -0.87 | W14: 0.90 | X14: -1.22 | Y14: -3.48 | Z14: -2.94
A15: Birleşik Krallık | B15: -2.51 | C15: -2.19 | D15: -1.97 | E15: -2.11 | F15: -1.79 | G15: -2.32 | H15: -1.91 | I15: -2.81 | J15: -3.39 | K15: -3.87 | L15: -3.23 | M15: -3.07 | N15: -1.91 | O15: -3.48 | P15: -4.77 | Q15: -5.11 | R15: -5.17 | S15: -5.33 | T15: -3.63 | U15: -3.88 | V15: -2.67 | W15: -2.50 | X15: -2.59 | Y15: -4.81 | Z15: -4.54
A16: İrlanda | B16: -0.12 | C16: 0.61 | D16: 0.18 | E16: 0.25 | F16: 0.49 | G16: -0.10 | H16: -3.54 | I16: -5.35 | J16: -6.51 | K16: -6.26 | L16: -4.67 | M16: -1.29 | N16: -1.70 | O16: -3.38 | P16: 1.55 | Q16: 1.07 | R16: 4.39 | S16: -4.21 | T16: 0.49 | U16: 4.90 | V16: -19.84 | W16: -6.84 | X16: 14.23 | Y16: 12.22 | Z16: 9.81
A17: İspanya | B17: -3.24 | C17: -4.31 | D17: -4.38 | E17: -3.73 | F17: -3.88 | G17: -5.48 | H17: -7.25 | I17: -8.85 | J17: -9.43 | K17: -8.90 | L17: -4.09 | M17: -3.66 | N17: -2.72 | O17: 0.09 | P17: 2.04 | Q17: 1.70 | R17: 2.03 | S17: 3.18 | T17: 2.77 | U17: 1.88 | V17: 2.10 | W17: 0.83 | X17: 0.92 | Y17: -0.17 | Z17: -0.25
A18: İsrail | B18: -1.27 | C18: -1.46 | D18: -1.43 | E18: -0.87 | F18: 0.58 | G18: 1.45 | H18: 2.97 | I18: 3.97 | J18: 3.05 | K18: 1.00 | L18: 3.19 | M18: 3.34 | N18: 1.44 | O18: 0.40 | P18: 2.89 | Q18: 4.10 | R18: 5.07 | S18: 3.54 | T18: 3.52 | U18: 2.85 | V18: 3.33 | W18: 5.28 | X18: 4.19 | Y18: 2.49 | Z18: 3.70
A19: İsveç | B19: 3.82 | C19: 3.81 | D19: 4.61 | E19: 4.36 | F19: 5.80 | G19: 5.93 | H19: 5.95 | I19: 8.08 | J19: 8.05 | K19: 7.71 | L19: 5.90 | M19: 5.84 | N19: 5.43 | O19: 5.47 | P19: 5.23 | Q19: 4.21 | R19: 3.31 | S19: 2.39 | T19: 2.95 | U19: 2.72 | V19: 5.50 | W19: 5.89 | X19: 5.35 | Y19: 3.82 | Z19: 3.47
A20: İtalya | B20: 0.80 | C20: -0.27 | D20: 0.16 | E20: -0.50 | F20: -0.79 | G20: -0.48 | H20: -0.88 | I20: -1.48 | J20: -1.37 | K20: -2.80 | L20: -1.89 | M20: -3.30 | N20: -2.83 | O20: -0.23 | P20: 1.11 | Q20: 1.90 | R20: 1.44 | S20: 2.61 | T20: 2.59 | U20: 2.53 | V20: 3.22 | W20: 3.75 | X20: 2.44 | Y20: -0.17 | Z20: 0.28
A21: Japonya | B21: 2.47 | C21: 2.63 | D21: 1.97 | E21: 2.61 | F21: 3.09 | G21: 3.72 | H21: 3.52 | I21: 3.79 | J21: 4.63 | K21: 2.79 | L21: 2.75 | M21: 3.84 | N21: 2.08 | O21: 0.95 | P21: 0.88 | Q21: 0.75 | R21: 3.07 | S21: 3.95 | T21: 4.13 | U21: 3.53 | V21: 3.44 | W21: 2.92 | X21: 2.88 | Y21: 1.35 | Z21: 2.16
A22: Kanada | B22: 0.18 | C22: 2.55 | D22: 2.21 | E22: 1.74 | F22: 1.23 | G22: 2.35 | H22: 1.93 | I22: 1.45 | J22: 0.82 | K22: 0.15 | L22: -2.91 | M22: -3.56 | N22: -2.71 | O22: -3.53 | P22: -3.14 | Q22: -2.32 | R22: -3.50 | S22: -3.09 | T22: -2.80 | U22: -2.38 | V22: -2.04 | W22: -1.79 | X22: 0.04 | Y22: 0.53 | Z22: -0.23
A23: Kolombiya | B23: 0.65 | C23: 0.85 | D23: -1.07 | E23: -1.33 | F23: -0.97 | G23: -0.67 | H23: -1.34 | I23: -1.85 | J23: -2.98 | K23: -2.68 | L23: -1.91 | M23: -3.00 | N23: -2.91 | O23: -3.14 | P23: -3.24 | Q23: -5.20 | R23: -6.37 | S23: -4.45 | T23: -3.18 | U23: -4.20 | V23: -4.58 | W23: -3.41 | X23: -5.67 | Y23: -5.14 | Z23: -4.37
A24: Kore | B24: 4.38 | C24: 1.77 | D24: 0.40 | E24: 0.65 | F24: 1.61 | G24: 3.70 | H24: 1.31 | I24: 0.20 | J24: 0.89 | K24: 0.17 | L24: 3.51 | M24: 2.44 | N24: 1.33 | O24: 3.82 | P24: 5.64 | Q24: 5.59 | R24: 7.17 | S24: 6.53 | T24: 4.64 | U24: 4.49 | V24: 3.61 | W24: 4.62 | X24: 4.88 | Y24: 3.19 | Z24: 3.49
A25: Lüksemburg | B25: 10.77 | C25: 12.65 | D25: 8.28 | E25: 7.61 | F25: 7.15 | G25: 7.07 | H25: 6.94 | I25: 6.64 | J25: 6.55 | K25: 6.13 | L25: 5.79 | M25: 5.78 | N25: 5.64 | O25: 5.30 | P25: 5.09 | Q25: 4.92 | R25: 4.84 | S25: 4.76 | T25: 4.74 | U25: 4.68 | V25: 4.56 | W25: 4.12 | X25: 4.77 | Y25: 4.26 | Z25: 4.38
A26: Macaristan | B26: -7.89 | C26: -8.50 | D26: -5.82 | E26: -6.34 | F26: -7.99 | G26: -8.54 | H26: -7.20 | I26: -7.46 | J26: -7.38 | K26: -7.27 | L26: -0.80 | M26: 0.19 | N26: 0.47 | O26: 1.55 | P26: 3.47 | Q26: 1.21 | R26: 2.35 | S26: 4.48 | T26: 2.00 | U26: 0.16 | V26: -0.70 | W26: -1.14 | X26: -3.17 | Y26: -6.70 | Z26: -3.03
A27: Malezya | B27: 14.62 | C27: 8.31 | D27: 7.21 | E27: 6.55 | F27: 11.15 | G27: 11.10 | H27: 13.76 | I27: 15.36 | J27: 14.66 | K27: 16.30 | L27: 14.83 | M27: 9.94 | N27: 10.74 | O27: 5.09 | P27: 3.44 | Q27: 4.33 | R27: 2.99 | S27: 2.39 | T27: 2.79 | U27: 2.23 | V27: 3.50 | W27: 4.17 | X27: 3.80 | Y27: 1.60 | Z27: 2.24
A28: Meksika | B28: -2.33 | C28: -2.65 | D28: -2.31 | E28: -1.69 | F28: -0.72 | G28: -0.60 | H28: -0.64 | I28: -0.35 | J28: -0.91 | K28: -1.51 | L28: -0.85 | M28: -0.45 | N28: -1.00 | O28: -1.53 | P28: -2.47 | Q28: -1.92 | R28: -2.64 | S28: -2.24 | T28: -1.73 | U28: -1.99 | V28: -0.27 | W28: 2.49 | X28: -0.37 | Y28: -1.23 | Z28: -1.20
A29: Mısır | B29: -1.81 | C29: -1.11 | D29: -0.03 | E29: 0.68 | F29: 2.28 | G29: 4.13 | H29: 3.09 | I29: 1.55 | J29: 1.66 | K29: 0.52 | L29: -2.23 | M29: -1.88 | N29: -2.46 | O29: -3.64 | P29: -2.22 | Q29: -0.89 | R29: -3.56 | S29: -5.74 | T29: -5.83 | U29: -2.27 | V29: -3.43 | W29: -2.92 | X29: -4.36 | Y29: -3.63 | Z29: -3.44
A30: Peru | B30: -2.83 | C30: -3.06 | D30: -2.35 | E30: -2.03 | F30: -1.59 | G30: 0.10 | H30: 1.57 | I30: 3.33 | J30: 1.49 | K30: -4.36 | L30: -0.52 | M30: -2.39 | N30: -1.98 | O30: -3.15 | P30: -5.12 | Q30: -4.48 | R30: -4.96 | S30: -2.59 | T30: -1.29 | U30: -1.73 | V30: -1.04 | W30: 0.75 | X30: -2.50 | Y30: -3.04 | Z30: -2.13
A31: Polonya | B31: -7.43 | C31: -6.03 | D31: -3.12 | E31: -2.79 | F31: -2.51 | G31: -5.73 | H31: -2.89 | I31: -4.32 | J31: -6.70 | K31: -6.99 | L31: -4.22 | M31: -5.56 | N31: -5.37 | O31: -4.05 | P31: -1.82 | Q31: -2.62 | R31: -0.91 | S31: -0.79 | T31: -0.39 | U31: -1.28 | V31: 0.47 | W31: 2.89 | X31: -0.67 | Y31: -4.02 | Z31: -3.33
A32: Rusya | B32: 10.90 | C32: 16.31 | D32: 9.76 | E32: 7.42 | F32: 7.18 | G32: 9.25 | H32: 10.32 | I32: 8.70 | J32: 5.18 | K32: 5.84 | L32: 3.85 | M32: 4.13 | N32: 4.75 | O32: 3.25 | P32: 1.46 | Q32: 2.81 | R32: 5.00 | S32: 1.91 | T32: 2.04 | U32: 7.00 | V32: 3.87 | W32: 2.38 | X32: 6.88 | Y32: 12.16 | Z32: 11.05
A33: Sri Lanka | B33: -3.51 | C33: -5.33 | D33: -0.93 | E33: -1.17 | F33: -0.33 | G33: -2.65 | H33: -2.10 | I33: -4.48 | J33: -3.66 | K33: -8.06 | L33: -0.43 | M33: -1.83 | N33: -6.81 | O33: -4.74 | P33: -3.30 | Q33: -2.41 | R33: -2.21 | S33: -1.98 | T33: -2.45 | U33: -2.96 | V33: -2.07 | W33: -1.39 | X33: -3.76 | Y33: -3.39 | Z33: -1.96
A34: Şili | B34: 0.22 | C34: -1.05 | D34: -1.51 | E34: -0.73 | F34: 0.32 | G34: 3.47 | H34: 2.16 | I34: 5.57 | J34: 5.11 | K34: -4.37 | L34: 1.50 | M34: 0.92 | N34: -4.96 | O34: -5.32 | P34: -4.80 | Q34: -3.50 | R34: -2.76 | S34: -2.62 | T34: -2.76 | U34: -4.52 | V34: -5.19 | W34: -1.69 | X34: -6.70 | Y34: -6.69 | Z34: -4.43
A35: Tayland | B35: 9.82 | C35: 7.38 | D35: 4.25 | E35: 3.47 | F35: 3.14 | G35: 1.60 | H35: -4.04 | I35: 1.05 | J35: 5.93 | K35: 0.32 | L35: 7.89 | M35: 3.37 | N35: 2.54 | O35: -1.23 | P35: -2.10 | Q35: 2.86 | R35: 6.92 | S35: 10.51 | T35: 9.63 | U35: 5.61 | V35: 6.99 | W35: 4.24 | X35: -2.18 | Y35: -0.48 | Z35: 1.94
A36: TÜRKİYE | B36: -0.36 | C36: -3.62 | D36: 1.86 | E36: -0.26 | F36: -2.40 | G36: -3.47 | H36: -4.15 | I36: -5.62 | J36: -5.43 | K36: -5.12 | L36: -1.75 | M36: -5.75 | N36: -8.87 | O36: -5.45 | P36: -5.83 | Q36: -4.14 | R36: -3.16 | S36: -3.11 | T36: -4.76 | U36: -2.79 | V36: 0.70 | W36: -4.94 | X36: -1.66 | Y36: -5.66 | Z36: -3.88
A37: Yunanistan | B37: -3.61 | C37: -5.98 | D37: -6.95 | E37: -6.31 | F37: -6.35 | G37: -5.58 | H37: -7.41 | I37: -10.95 | J37: -14.04 | K37: -14.61 | L37: -10.96 | M37: -10.04 | N37: -10.15 | O37: -2.47 | P37: -2.56 | Q37: -2.36 | R37: -1.50 | S37: -2.37 | T37: -2.58 | U37: -3.58 | V37: -2.23 | W37: -7.34 | X37: -6.49 | Y37: -6.72 | Z37: -6.33
A38: Kaynak: IMF
A39: (*) Gölgeli hücreler IMF tahmin rakamlarını vermektedir.
A40: Güncelleme tarihi: 25.11.2022
A42: İÇİNDEKİLER SAYFASI

Sheet III.10
A1: III.10. İŞSİZLİK ORANI (%)
A3: Ülkeler | B3: 1999 | C3: 2000 | D3: 2001 | E3: 2002 | F3: 2003 | G3: 2004 | H3: 2005 | I3: 2006 | J3: 2007 | K3: 2008 | L3: 2009 | M3: 2010 | N3: 2011 | O3: 2012 | P3: 2013 | Q3: 2014 | R3: 2015 | S3: 2016 | T3: 2017 | U3: 2018 | V3: 2019 | W3: 2020 | X3: 2021(*) | Y3: 2022(*) | Z3: 2023(*)
A4: Almanya | B4: 8.56 | C4: 7.95 | D4: 7.80 | E4: 8.60 | F4: 9.71 | G4: 10.33 | H4: 11.01 | I4: 10.04 | J4: 8.54 | K4: 7.43 | L4: 7.23 | M4: 6.58 | N4: 5.52 | O4: 5.08 | P4: 4.95 | Q4: 4.71 | R4: 4.37 | S4: 3.91 | T4: 3.57 | U4: 3.21 | V4: 2.98 | W4: 3.63 | X4: 3.58 | Y4: 2.94 | Z4: 3.39
A5: Amerika | B5: 4.22 | C5: 3.97 | D5: 4.74 | E5: 5.78 | F5: 5.99 | G5: 5.54 | H5: 5.08 | I5: 4.61 | J5: 4.62 | K5: 5.80 | L5: 9.28 | M5: 9.61 | N5: 8.93 | O5: 8.08 | P5: 7.36 | Q5: 6.16 | R5: 5.28 | S5: 4.88 | T5: 4.36 | U5: 3.89 | V5: 3.68 | W5: 8.09 | X5: 5.36 | Y5: 3.67 | Z5: 4.56
A6: Arjantin | B6: 16.06 | C6: 17.13 | D6: 19.21 | E6: 22.45 | F6: 17.25 | G6: 13.63 | H6: 11.58 | I6: 10.18 | J6: 8.48 | K6: 7.88 | L6: 8.68 | M6: 7.75 | N6: 7.15 | O6: 7.20 | P6: 7.08 | Q6: 7.25 | R6: 6.53 | S6: 8.47 | T6: 8.35 | U6: 9.20 | V6: 9.83 | W6: 11.55 | X6: 8.73 | Y6: 6.90 | Z6: 6.90
A7: Austurya | B7: 4.14 | C7: 3.88 | D7: 4.01 | E7: 4.39 | F7: 4.79 | G7: 5.88 | H7: 6.03 | I7: 5.60 | J7: 5.22 | K7: 4.43 | L7: 5.68 | M7: 5.18 | N7: 4.89 | O7: 5.24 | P7: 5.35 | Q7: 6.04 | R7: 6.16 | S7: 6.45 | T7: 5.93 | U7: 5.23 | V7: 4.82 | W7: 5.40 | X7: 6.17 | Y7: 4.47 | Z7: 4.60
A8: Brezilya | B8: 14.70 | C8: 13.90 | D8: 12.50 | E8: 13.00 | F8: 13.70 | G8: 12.90 | H8: 11.40 | I8: 11.50 | J8: 10.90 | K8: 9.40 | L8: 9.70 | M8: 8.50 | N8: 7.80 | O8: 7.40 | P8: 7.23 | Q8: 6.90 | R8: 8.63 | S8: 11.65 | T8: 12.85 | U8: 12.38 | V8: 11.98 | W8: 13.78 | X8: 13.20 | Y8: 9.77 | Z8: 9.46
A9: Çin | B9: 3.10 | C9: 3.10 | D9: 3.60 | E9: 4.00 | F9: 4.30 | G9: 4.20 | H9: 4.20 | I9: 4.10 | J9: 4.00 | K9: 4.20 | L9: 4.30 | M9: 4.14 | N9: 4.09 | O9: 4.09 | P9: 4.05 | Q9: 4.09 | R9: 4.05 | S9: 4.02 | T9: 3.90 | U9: 3.80 | V9: 3.62 | W9: 4.24 | X9: 3.96 | Y9: 4.20 | Z9: 4.10
A10: Danimarka | B10: 5.11 | C10: 4.32 | D10: 4.51 | E10: 4.64 | F10: 5.43 | G10: 5.52 | H10: 4.80 | I10: 3.90 | J10: 3.78 | K10: 3.71 | L10: 6.38 | M10: 7.75 | N10: 7.77 | O10: 7.81 | P10: 7.38 | Q10: 6.85 | R10: 6.29 | S10: 6.02 | T10: 5.82 | U10: 5.10 | V10: 5.04 | W10: 5.64 | X10: 5.08 | Y10: 5.20 | Z10: 5.30
A11: Endonezya | B11: 6.36 | C11: 6.08 | D11: 8.10 | E11: 9.06 | F11: 9.67 | G11: 9.86 | H11: 11.24 | I11: 10.28 | J11: 9.11 | K11: 8.39 | L11: 7.87 | M11: 7.14 | N11: 6.56 | O11: 6.14 | P11: 6.25 | Q11: 5.94 | R11: 6.18 | S11: 5.61 | T11: 5.50 | U11: 5.24 | V11: 5.18 | W11: 7.07 | X11: 6.49 | Y11: 5.50 | Z11: 5.30
A12: Filipinler | B12: 9.73 | C12: 11.18 | D12: 11.13 | E12: 11.40 | F12: 11.40 | G12: 11.83 | H12: 11.35 | I12: 7.95 | J12: 7.33 | K12: 7.40 | L12: 7.48 | M12: 7.33 | N12: 7.03 | O12: 6.98 | P12: 7.08 | Q12: 6.80 | R12: 6.28 | S12: 5.48 | T12: 5.73 | U12: 5.33 | V12: 5.10 | W12: 10.40 | X12: 7.76 | Y12: 5.73 | Z12: 5.38
A13: Finlandiya | B13: 10.28 | C13: 9.88 | D13: 9.20 | E13: 9.18 | F13: 9.08 | G13: 8.88 | H13: 8.48 | I13: 7.78 | J13: 6.95 | K13: 6.43 | L13: 8.33 | M13: 8.50 | N13: 7.90 | O13: 7.80 | P13: 8.33 | Q13: 8.83 | R13: 9.58 | S13: 8.98 | T13: 8.83 | U13: 7.43 | V13: 6.73 | W13: 7.76 | X13: 7.61 | Y13: 7.05 | Z13: 7.44
A14: Bileşik Krallık | B14: 5.98 | C14: 5.45 | D14: 5.10 | E14: 5.20 | F14: 5.00 | G14: 4.75 | H14: 4.83 | I14: 5.43 | J14: 5.35 | K14: 5.73 | L14: 7.63 | M14: 7.90 | N14: 8.10 | O14: 7.98 | P14: 7.58 | Q14: 6.20 | R14: 5.38 | S14: 4.88 | T14: 4.43 | U14: 4.08 | V14: 3.83 | W14: 4.55 | X14: 4.48 | Y14: 3.83 | Z14: 4.76
A15: İrlanda | B15: 5.91 | C15: 4.39 | D15: 4.18 | E15: 4.73 | F15: 4.85 | G15: 4.75 | H15: 4.63 | I15: 4.78 | J15: 5.00 | K15: 6.81 | L15: 12.64 | M15: 14.59 | N15: 15.40 | O15: 15.49 | P15: 13.77 | Q15: 11.90 | R15: 9.92 | S15: 8.38 | T15: 6.75 | U15: 5.78 | V15: 4.98 | W15: 5.84 | X15: 6.25 | Y15: 4.73 | Z15: 4.80
A16: İspanya | B16: 15.64 | C16: 13.86 | D16: 10.54 | E16: 11.45 | F16: 11.49 | G16: 10.97 | H16: 9.15 | I16: 8.45 | J16: 8.23 | K16: 11.25 | L16: 17.86 | M16: 19.86 | N16: 21.39 | O16: 24.79 | P16: 26.10 | Q16: 24.44 | R16: 22.06 | S16: 19.64 | T16: 17.23 | U16: 15.26 | V16: 14.11 | W16: 15.53 | X16: 14.79 | Y16: 12.69 | Z16: 12.30
A17: İsrail | B17: 11.08 | C17: 10.90 | D17: 11.63 | E17: 12.88 | F17: 13.40 | G17: 12.90 | H17: 11.20 | I17: 10.45 | J17: 9.15 | K17: 7.65 | L17: 9.43 | M17: 8.25 | N17: 7.05 | O17: 6.87 | P17: 6.21 | Q17: 5.88 | R17: 5.24 | S17: 4.83 | T17: 4.23 | U17: 3.98 | V17: 3.82 | W17: 4.30 | X17: 4.95 | Y17: 3.90 | Z17: 3.80
A18: İsveç | B18: 7.55 | C18: 6.34 | D18: 5.83 | E18: 5.95 | F18: 6.57 | G18: 7.38 | H18: 7.78 | I18: 7.24 | J18: 6.32 | K18: 6.35 | L18: 8.48 | M18: 8.78 | N18: 7.95 | O18: 8.15 | P18: 8.21 | Q18: 8.10 | R18: 7.59 | S18: 7.15 | T18: 6.86 | U18: 6.52 | V18: 6.98 | W18: 8.54 | X18: 8.80 | Y18: 7.64 | Z18: 7.40
A19: İtalya | B19: 10.94 | C19: 10.10 | D19: 9.10 | E19: 8.61 | F19: 8.45 | G19: 8.03 | H19: 7.75 | I19: 6.87 | J19: 6.21 | K19: 6.80 | L19: 7.87 | M19: 8.48 | N19: 8.60 | O19: 10.90 | P19: 12.36 | Q19: 12.78 | R19: 12.03 | S19: 11.71 | T19: 11.31 | U19: 10.63 | V19: 9.89 | W19: 9.34 | X19: 9.52 | Y19: 8.80 | Z19: 9.40
A20: Japonya | B20: 4.67 | C20: 4.73 | D20: 5.04 | E20: 5.36 | F20: 5.24 | G20: 4.73 | H20: 4.43 | I20: 4.12 | J20: 3.83 | K20: 3.98 | L20: 5.08 | M20: 5.06 | N20: 4.58 | O20: 4.33 | P20: 4.01 | Q20: 3.58 | R20: 3.38 | S20: 3.11 | T20: 2.83 | U20: 2.44 | V20: 2.36 | W20: 2.78 | X20: 2.82 | Y20: 2.55 | Z20: 2.40
A21: Kanada | B21: 7.57 | C21: 6.83 | D21: 7.23 | E21: 7.67 | F21: 7.58 | G21: 7.15 | H21: 6.77 | I21: 6.33 | J21: 6.08 | K21: 6.20 | L21: 8.38 | M21: 8.08 | N21: 7.55 | O21: 7.38 | P21: 7.13 | Q21: 6.97 | R21: 6.94 | S21: 7.05 | T21: 6.38 | U21: 5.91 | V21: 5.75 | W21: 9.58 | X21: 7.43 | Y21: 5.29 | Z21: 5.86
A22: Kolombiya | B22: 13.10 | C22: 13.33 | D22: 14.98 | E22: 15.58 | F22: 14.11 | G22: 13.67 | H22: 11.81 | I22: 12.04 | J22: 11.19 | K22: 11.25 | L22: 12.19 | M22: 11.97 | N22: 10.96 | O22: 10.50 | P22: 9.73 | Q22: 9.18 | R22: 8.94 | S22: 9.22 | T22: 9.29 | U22: 9.51 | V22: 10.38 | W22: 15.87 | X22: 13.80 | Y22: 11.29 | Z22: 11.05
A23: Kore | B23: 6.58 | C23: 4.43 | D23: 4.00 | E23: 3.26 | F23: 3.55 | G23: 3.66 | H23: 3.75 | I23: 3.48 | J23: 3.26 | K23: 3.18 | L23: 3.63 | M23: 3.71 | N23: 3.41 | O23: 3.23 | P23: 3.10 | Q23: 3.49 | R23: 3.59 | S23: 3.68 | T23: 3.68 | U23: 3.83 | V23: 3.78 | W23: 3.94 | X23: 3.68 | Y23: 3.00 | Z23: 3.40
A24: Lüksemburg | B24: 2.89 | C24: 2.40 | D24: 2.22 | E24: 2.50 | F24: 3.29 | G24: 3.69 | H24: 4.08 | I24: 4.23 | J24: 4.18 | K24: 4.14 | L24: 5.48 | M24: 5.82 | N24: 5.67 | O24: 6.10 | P24: 6.83 | Q24: 7.09 | R24: 6.65 | S24: 6.26 | T24: 5.84 | U24: 5.10 | V24: 5.40 | W24: 6.35 | X24: 5.72 | Y24: 5.00 | Z24: 4.99
A25: Macaristan | B25: 7.00 | C25: 6.43 | D25: 5.74 | E25: 5.84 | F25: 5.90 | G25: 6.12 | H25: 6.80 | I25: 7.08 | J25: 7.00 | K25: 7.47 | L25: 9.68 | M25: 10.80 | N25: 10.66 | O25: 10.67 | P25: 9.85 | Q25: 7.51 | R25: 6.63 | S25: 4.97 | T25: 4.04 | U25: 3.60 | V25: 3.31 | W25: 4.12 | X25: 4.07 | Y25: 3.41 | Z25: 3.85
A26: Malezya | B26: 3.43 | C26: 3.10 | D26: 3.68 | E26: 3.48 | F26: 3.60 | G26: 3.55 | H26: 3.55 | I26: 3.33 | J26: 3.23 | K26: 3.33 | L26: 3.68 | M26: 3.30 | N26: 3.05 | O26: 3.03 | P26: 3.10 | Q26: 2.88 | R26: 3.15 | S26: 3.45 | T26: 3.43 | U26: 3.33 | V26: 3.28 | W26: 4.53 | X26: 4.65 | Y26: 4.45 | Z26: 4.25
A27: Meksika | B27: 2.50 | C27: 2.20 | D27: 2.77 | E27: 2.98 | F27: 3.40 | G27: 3.92 | H27: 3.48 | I27: 3.53 | J27: 3.61 | K27: 3.89 | L27: 5.33 | M27: 5.27 | N27: 5.17 | O27: 4.89 | P27: 4.90 | Q27: 4.82 | R27: 4.35 | S27: 3.88 | T27: 3.42 | U27: 3.32 | V27: 3.49 | W27: 4.41 | X27: 4.14 | Y27: 3.43 | Z27: 3.68
A28: Mısır | B28: 7.69 | C28: 9.00 | D28: 8.81 | E28: 10.05 | F28: 11.28 | G28: 10.53 | H28: 11.47 | I28: 10.92 | J28: 9.21 | K28: 8.68 | L28: 9.37 | M28: 9.21 | N28: 10.38 | O28: 12.37 | P28: 12.99 | Q28: 13.37 | R28: 12.86 | S28: 12.71 | T28: 12.25 | U28: 10.93 | V28: 8.61 | W28: 8.30 | X28: 7.29 | Y28: 7.32 | Z28: 7.30
A29: Peru | B29: 9.40 | C29: 7.85 | D29: 9.25 | E29: 9.42 | F29: 9.42 | G29: 9.44 | H29: 9.58 | I29: 8.54 | J29: 8.42 | K29: 8.38 | L29: 8.39 | M29: 7.88 | N29: 7.73 | O29: 6.80 | P29: 5.95 | Q29: 5.94 | R29: 6.49 | S29: 6.74 | T29: 6.88 | U29: 6.70 | V29: 6.60 | W29: 13.90 | X29: 10.90 | Y29: 7.60 | Z29: 7.50
A30: Polonya | B30: 13.13 | C30: 16.09 | D30: 18.24 | E30: 20.24 | F30: 19.94 | G30: 19.28 | H30: 18.05 | I30: 14.17 | J30: 9.94 | K30: 7.47 | L30: 8.51 | M30: 9.96 | N30: 9.94 | O30: 10.38 | P30: 10.60 | Q30: 9.20 | R30: 7.66 | S30: 6.26 | T30: 4.95 | U30: 3.89 | V30: 3.31 | W30: 3.20 | X30: 3.36 | Y30: 2.78 | Z30: 3.17
A31: Rusya | B31: 13.03 | C31: 10.56 | D31: 8.94 | E31: 8.04 | F31: 8.23 | G31: 7.73 | H31: 7.15 | I31: 7.05 | J31: 6.03 | K31: 6.23 | L31: 8.24 | M31: 7.36 | N31: 6.51 | O31: 5.45 | P31: 5.50 | Q31: 5.16 | R31: 5.58 | S31: 5.53 | T31: 5.20 | U31: 4.80 | V31: 4.60 | W31: 5.78 | X31: 4.83 | Y31: 4.00 | Z31: 4.31
A32: Sri Lanka | B32: 8.86 | C32: 7.57 | D32: 7.90 | E32: 8.80 | F32: 8.40 | G32: 8.30 | H32: 7.70 | I32: 6.60 | J32: 6.20 | K32: 6.00 | L32: 5.90 | M32: 5.00 | N32: 4.10 | O32: 4.00 | P32: 4.40 | Q32: 4.30 | R32: 4.70 | S32: 4.40 | T32: 4.20 | U32: 4.40 | V32: 4.80 | W32: 5.50 | X32: 5.10 | Y32: 5.25 | Z32: 5.00
A33: Şili | B33: 10.01 | C33: 9.71 | D33: 9.87 | E33: 9.80 | F33: 9.53 | G33: 10.02 | H33: 9.30 | I33: 7.95 | J33: 7.01 | K33: 7.75 | L33: 11.05 | M33: 8.31 | N33: 7.30 | O33: 6.60 | P33: 6.08 | Q33: 6.50 | R33: 6.33 | S33: 6.69 | T33: 6.97 | U33: 7.38 | V33: 7.22 | W33: 10.77 | X33: 8.86 | Y33: 7.85 | Z33: 8.35
A34: Tayland | B34: - | C34: - | D34: 3.33 | E34: 2.44 | F34: 2.19 | G34: 2.11 | H34: 1.86 | I34: 1.52 | J34: 1.36 | K34: 1.37 | L34: 1.50 | M34: 1.05 | N34: 0.66 | O34: 0.66 | P34: 0.70 | Q34: 0.80 | R34: 0.90 | S34: 1.00 | T34: 1.20 | U34: 1.10 | V34: 1.00 | W34: 2.00 | X34: 1.50 | Y34: 1.00 | Z34: 1.00
A35: Türkiye | B35: 7.16 | C35: 6.00 | D35: 7.80 | E35: 9.76 | F35: 9.93 | G35: 9.69 | H35: 9.49 | I35: 9.03 | J35: 9.18 | K35: 10.02 | L35: 13.05 | M35: 11.13 | N35: 9.10 | O35: 8.43 | P35: 9.04 | Q35: 9.90 | R35: 10.32 | S35: 10.92 | T35: 10.92 | U35: 10.91 | V35: 13.73 | W35: 13.15 | X35: 11.96 | Y35: 10.10 | Z35: 10.53
A36: Yunanistan | B36: 12.13 | C36: 11.35 | D36: 10.78 | E36: 10.35 | F36: 9.78 | G36: 10.60 | H36: 10.00 | I36: 9.00 | J36: 8.40 | K36: 7.75 | L36: 9.60 | M36: 12.73 | N36: 17.85 | O36: 24.43 | P36: 27.48 | Q36: 26.50 | R36: 24.90 | S36: 23.55 | T36: 21.45 | U36: 19.30 | V36: 17.33 | W36: 16.40 | X36: 15.00 | Y36: 12.60 | Z36: 12.19
A37: Kaynak: IMF
A38: * Gölgeli hücreler IMF tahmin rakamlarını göstermektedir.
A39: Güncelleme tarihi: 25.11.2022
A40: Türkiye için 2022 rakamı TÜİK'ten alınmış olup Eylül ayı itibariyledir.
A41: İÇİNDEKİLER SAYFASI
